NUMERO_MANDATO;RIGA_MANDATO;QUIET;IMPORTO_RIGA;IMPORTO_MANDATO;BENEFICIARIO;CIG;TITOLO_PAGAMENTO;DATA_MANDATO;CAPITOLO;ARTICOLO;NUMERO_IMPEGNO;TITOLO;DESCR_TITOLO;LIVELLO_II;DESCR_LIVELLO_II;LIVELLO_III;DESCR_LIVELLO_III;LIVELLO_IV;DESCR_LIVELLO_IV;LIVELLO_V;DESCR_LIVELLO_V;DATA_PAG_EFF
1066;1;0;2.450,00;2.450,00;ASSOCIAZIONE FOCUS EUROPE; ;"Progetto Focus Europe ""I Giovani della Consulta di Sant'Andrea Frius e l'Europa"" - Organizzazione del viaggio e soggiorno nella citta di Bruxelles. LIQUIDAZIONE di spesa e liquidazione SALDO";04/07/2018;760;3;175;1;Spese correnti;4;Trasferimenti correnti;4;Trasferimenti correnti a Istituzioni Sociali Private;1;Trasferimenti correnti a Istituzioni Sociali Private;1;Trasferimenti correnti a Istituzioni Sociali Private;04/07/2018
1071;1;0;1.301,48;1.301,48;DIVERSI DIPENDENTI; ;LIQUIDAZIONE DI SPESA PER LA CORRESPONSIONE DELL' INDENNITA' DI FUNZIONE ANNO 2018;05/07/2018;14;1;6;1;Spese correnti;3;Acquisto di beni e servizi;2;Acquisto di servizi;1;Organi e incarichi istituzionali dell'amministrazione;1;Organi istituzionali dell'amministrazione - Indennità;05/07/2018
1072;1;0;780,9;780,9;DIVERSI DIPENDENTI; ;LIQUIDAZIONE DI SPESA PER LA CORRESPONSIONE DELL' INDENNITA' DI FUNZIONE ANNO 2018;05/07/2018;14;1;7;1;Spese correnti;3;Acquisto di beni e servizi;2;Acquisto di servizi;1;Organi e incarichi istituzionali dell'amministrazione;1;Organi istituzionali dell'amministrazione - Indennità;05/07/2018
1073;1;0;585,66;585,66;DIVERSI DIPENDENTI; ;LIQUIDAZIONE DI SPESA PER LA CORRESPONSIONE DELL' INDENNITA' DI FUNZIONE ANNO 2018;05/07/2018;14;1;8;1;Spese correnti;3;Acquisto di beni e servizi;2;Acquisto di servizi;1;Organi e incarichi istituzionali dell'amministrazione;1;Organi istituzionali dell'amministrazione - Indennità;05/07/2018
1074;1;0;585,66;585,66;DIVERSI DIPENDENTI; ;LIQUIDAZIONE DI SPESA PER LA CORRESPONSIONE DELL' INDENNITA' DI FUNZIONE ANNO 2018;05/07/2018;14;1;9;1;Spese correnti;3;Acquisto di beni e servizi;2;Acquisto di servizi;1;Organi e incarichi istituzionali dell'amministrazione;1;Organi istituzionali dell'amministrazione - Indennità;05/07/2018
1075;1;0;195,22;195,22;DIVERSI DIPENDENTI; ;LIQUIDAZIONE DI SPESA PER LA CORRESPONSIONE DELL' INDENNITA' DI FUNZIONE ANNO 2018 3 BIMESTRE;05/07/2018;14;1;10;1;Spese correnti;3;Acquisto di beni e servizi;2;Acquisto di servizi;1;Organi e incarichi istituzionali dell'amministrazione;1;Organi istituzionali dell'amministrazione - Indennità;05/07/2018
1080;1;0;53,35;53,35;TELECOM ITALIA S.P.A-TIM S.P.A.Direz e coordin.Vivendi;Z8913E8555;SALDO Fatt.n. 7X02751529  del 14/06/2018 4BIM 2018;06/07/2018;42;4;97;1;Spese correnti;3;Acquisto di beni e servizi;2;Acquisto di servizi;5;Utenze e canoni;2;Telefonia mobile;06/07/2018
1081;1;0;80,23;188,79;TELECOM ITALIA S.P.A-TIM S.P.A.Direz e coordin.Vivendi;Z1713E63AA;SALDO Fatt.n. 8R00114314  del 06/06/2018 4BIM 2018;06/07/2018;618;3;427;1;Spese correnti;3;Acquisto di beni e servizi;2;Acquisto di servizi;5;Utenze e canoni;1;Telefonia fissa;06/07/2018
1081;2;0;108,56;188,79;TELECOM ITALIA S.P.A-TIM S.P.A.Direz e coordin.Vivendi;Z1713E63AA;SALDO Fatt.n. 8R00113998  del 06/06/2018 4BIM 2018;06/07/2018;618;3;427;1;Spese correnti;3;Acquisto di beni e servizi;2;Acquisto di servizi;5;Utenze e canoni;1;Telefonia fissa;06/07/2018
1082;1;0;166,93;166,93;TELECOM ITALIA S.P.A-TIM S.P.A.Direz e coordin.Vivendi;Z1713E63AA;SALDO Fatt.n. 8R00113843  del 06/06/2018 4BIM 2018;06/07/2018;592;3;429;1;Spese correnti;3;Acquisto di beni e servizi;2;Acquisto di servizi;5;Utenze e canoni;1;Telefonia fissa;06/07/2018
1083;1;0;96,38;222,24;TELECOM ITALIA S.P.A-TIM S.P.A.Direz e coordin.Vivendi;Z1713E63AA;SALDO Fatt.n. 8R00114225  del 06/06/2018 4BIM 2018;06/07/2018;118;3;430;1;Spese correnti;3;Acquisto di beni e servizi;2;Acquisto di servizi;5;Utenze e canoni;1;Telefonia fissa;06/07/2018
1083;2;0;125,86;222,24;TELECOM ITALIA S.P.A-TIM S.P.A.Direz e coordin.Vivendi;Z1713E63AA;SALDO Fatt.n. 8R00114863  del 06/06/2018 4BIM 2018;06/07/2018;118;3;430;1;Spese correnti;3;Acquisto di beni e servizi;2;Acquisto di servizi;5;Utenze e canoni;1;Telefonia fissa;06/07/2018
1084;1;0;139,78;139,78;TELECOM ITALIA S.P.A-TIM S.P.A.Direz e coordin.Vivendi;Z1713E63AA;SALDO Fatt.n. 8R00115343  del 06/06/2018 4BIM 2018;06/07/2018;716;3;428;1;Spese correnti;3;Acquisto di beni e servizi;2;Acquisto di servizi;5;Utenze e canoni;1;Telefonia fissa;06/07/2018
1085;1;0;35,38;169,58;TELECOM ITALIA S.P.A-TIM S.P.A.Direz e coordin.Vivendi;Z1713E63AA;SALDO Fatt.n. 8R00114149  del 06/06/2018 4BIM 2018;06/07/2018;1340;4;434;1;Spese correnti;3;Acquisto di beni e servizi;2;Acquisto di servizi;5;Utenze e canoni;1;Telefonia fissa;06/07/2018
1085;2;0;134,2;169,58;TELECOM ITALIA S.P.A-TIM S.P.A.Direz e coordin.Vivendi;Z1713E63AA;SALDO Fatt.n. 8R00113985  del 06/06/2018 4BIM 2018;06/07/2018;1340;4;434;1;Spese correnti;3;Acquisto di beni e servizi;2;Acquisto di servizi;5;Utenze e canoni;1;Telefonia fissa;06/07/2018
1086;1;0;289,05;289,05;MASNATA CHIMICI SPA;Z9823FA539;SALDO Fatt.n. 900481  del 26/06/2018;06/07/2018;82;5;244;1;Spese correnti;3;Acquisto di beni e servizi;1;Acquisto di beni;2;Altri beni di consumo;999;Altri beni e materiali di consumo n.a.c.;06/07/2018
1088;1;0;66,92;284,73;KUWAIT PETROLEUM ITALIA SPA;Z621D28DB4;SALDO Fatt.n. PJ00142239  del 30/06/2018;09/07/2018;208;8;508;1;Spese correnti;3;Acquisto di beni e servizi;1;Acquisto di beni;2;Altri beni di consumo;2;Carburanti, combustibili e lubrificanti;09/07/2018
1088;2;0;217,81;284,73;KUWAIT PETROLEUM ITALIA SPA;Z621D28DB4;ACCONTO Fatt.n. PJ00142239  del 30/06/2018;09/07/2018;208;8;508;1;Spese correnti;3;Acquisto di beni e servizi;1;Acquisto di beni;2;Altri beni di consumo;2;Carburanti, combustibili e lubrificanti;09/07/2018
1089;1;0;990;990;AS.TR.E.D. COOP. SOCIALE;Z8321734AD;ACCONTO Fatt.n. 12PU_PA2018  del 29/06/2018 CIG Z8321734AD;09/07/2018;230;1;186;1;Spese correnti;3;Acquisto di beni e servizi;2;Acquisto di servizi;13;Servizi ausiliari per il funzionamento dell'ente;2;Servizi di pulizia e lavanderia;09/07/2018
1090;1;0;1.979,99;1.979,99;AS.TR.E.D. COOP. SOCIALE;Z8321734AD;SALDO Fatt.n. 12PU_PA2018  del 29/06/2018 CIG Z8321734AD;09/07/2018;1302;1;187;1;Spese correnti;3;Acquisto di beni e servizi;2;Acquisto di servizi;9;Manutenzione ordinaria e riparazioni;11;Manutenzione ordinaria e riparazioni di altri beni materiali;09/07/2018
1092;1;0;79,81;79,81;ABBANOA  SPA; ;ACCONTO Fatt.n. 0150020180031212300  del 28/06/2018 Cliente 36425563 PDE 35405738;10/07/2018;592;5;143;1;Spese correnti;3;Acquisto di beni e servizi;2;Acquisto di servizi;5;Utenze e canoni;5;Acqua;10/07/2018
1093;1;0;26,92;26,92;ABBANOA  SPA; ;SALDO Fatt.n. 0150020180031212300  del 28/06/2018 Cliente 36425563 PDE 35405738;10/07/2018;592;4;592;1;Spese correnti;3;Acquisto di beni e servizi;2;Acquisto di servizi;5;Utenze e canoni;5;Acqua;10/07/2018
1132;1;0;1.274,36;1.274,36;OMESSO NOMINATIVO NEL RISPETTO DELLA NORMATIVA SULLA PROTEZIONE DATI PERSONALI; ;PROGETTO RITORNARE A CASA MESE GIUGNO 2018;13/07/2018;1448;1;969;1;Spese correnti;4;Trasferimenti correnti;2;Trasferimenti correnti a Famiglie;2;Interventi assistenziali;999;Altri assegni e sussidi assistenziali;13/07/2018
1133;1;0;318,58;318,58;OMESSO NOMINATIVO NEL RISPETTO DELLA NORMATIVA SULLA PROTEZIONE DATI PERSONALI; ;"Legge regionale n. 4 dell'11/05/2006, art. 17, comma 1. Finanziamento per il programma sperimentale ""Ritornare a casa"".LIQUIDAZIONE di spesa in favore di un beneficiario. Giugno 2018.";13/07/2018;1448;5;84;1;Spese correnti;4;Trasferimenti correnti;2;Trasferimenti correnti a Famiglie;2;Interventi assistenziali;999;Altri assegni e sussidi assistenziali;13/07/2018
1134;1;0;180;180;OMESSO NOMINATIVO NEL RISPETTO DELLA NORMATIVA SULLA PROTEZIONE DATI PERSONALI; ;Servizio di Assistenza Domiciliare per anziani e disabili.LIQUIDAZIONE di spesa. Giugno 2018.;13/07/2018;1433;3;64;1;Spese correnti;4;Trasferimenti correnti;2;Trasferimenti correnti a Famiglie;2;Interventi assistenziali;999;Altri assegni e sussidi assistenziali;13/07/2018
1135;1;0;486;486;OMESSO NOMINATIVO NEL RISPETTO DELLA NORMATIVA SULLA PROTEZIONE DATI PERSONALI; ;Servizio di Assistenza Domiciliare per anziani e disabili.Liquidazione di spesa. Gennaio - giugno 2018.;13/07/2018;1433;3;64;1;Spese correnti;4;Trasferimenti correnti;2;Trasferimenti correnti a Famiglie;2;Interventi assistenziali;999;Altri assegni e sussidi assistenziali;13/07/2018
1136;1;0;210;210;OMESSO NOMINATIVO NEL RISPETTO DELLA NORMATIVA SULLA PROTEZIONE DATI PERSONALI; ;Servizio di Assistenza Domiciliare per anziani e disabili. Impegno di spesa. Giugno 2018.;13/07/2018;1433;3;64;1;Spese correnti;4;Trasferimenti correnti;2;Trasferimenti correnti a Famiglie;2;Interventi assistenziali;999;Altri assegni e sussidi assistenziali;13/07/2018
1137;1;0;83,45;83,45;OMESSO NOMINATIVO NEL RISPETTO DELLA NORMATIVA SULLA PROTEZIONE DATI PERSONALI; ;Servizio di Assistenza Domiciliare per anziani e disabili. liquidazione di spesa. Giugno 2018.;13/07/2018;1433;3;64;1;Spese correnti;4;Trasferimenti correnti;2;Trasferimenti correnti a Famiglie;2;Interventi assistenziali;999;Altri assegni e sussidi assistenziali;13/07/2018
1138;1;0;396;396;OMESSO NOMINATIVO NEL RISPETTO DELLA NORMATIVA SULLA PROTEZIONE DATI PERSONALI; ;Servizio di Assistenza Domiciliare per anziani e disabili. LIQUIDAZIONE di spesa. Giugno 2018.;13/07/2018;1433;3;64;1;Spese correnti;4;Trasferimenti correnti;2;Trasferimenti correnti a Famiglie;2;Interventi assistenziali;999;Altri assegni e sussidi assistenziali;13/07/2018
1139;1;0;420;420;OMESSO NOMINATIVO NEL RISPETTO DELLA NORMATIVA SULLA PROTEZIONE DATI PERSONALI; ;Servizio di Assistenza Domiciliare per anziani e disabili. Impegno di spesa in favore di n. 1 beneficiario.  Giugno 2018.;13/07/2018;1433;3;159;1;Spese correnti;4;Trasferimenti correnti;2;Trasferimenti correnti a Famiglie;2;Interventi assistenziali;999;Altri assegni e sussidi assistenziali;13/07/2018
1140;1;0;480;480;OMESSO NOMINATIVO NEL RISPETTO DELLA NORMATIVA SULLA PROTEZIONE DATI PERSONALI; ;Servizio di Assistenza Domiciliare per anziani e disabili. LIQUIDAZIONE di spesa. Giugno 2018.;13/07/2018;1433;3;64;1;Spese correnti;4;Trasferimenti correnti;2;Trasferimenti correnti a Famiglie;2;Interventi assistenziali;999;Altri assegni e sussidi assistenziali;13/07/2018
1147;1;0;660;660;OMESSO NOMINATIVO NEL RISPETTO DELLA NORMATIVA SULLA PROTEZIONE DATI PERSONALI; ;L. 162/98. Piani personalizzati di sostegno in favore di persone con handicap grave. Finanziamento maggio - dicembre 2018.LIIQUIDAZIONE di spesa.;13/07/2018;1429;1;179;1;Spese correnti;4;Trasferimenti correnti;2;Trasferimenti correnti a Famiglie;2;Interventi assistenziali;999;Altri assegni e sussidi assistenziali;13/07/2018
1148;1;0;228,88;228,88;OMESSO NOMINATIVO NEL RISPETTO DELLA NORMATIVA SULLA PROTEZIONE DATI PERSONALI; ;L. 162/98. Piani personalizzati di sostegno in favore di persone con handicap grave. Proroga gennaio - aprile 2018. Liquidazione  di spesa in favore di n. 46 beneficiari.;13/07/2018;1429;1;65;1;Spese correnti;4;Trasferimenti correnti;2;Trasferimenti correnti a Famiglie;2;Interventi assistenziali;999;Altri assegni e sussidi assistenziali;13/07/2018
1149;1;0;248,14;248,14;OMESSO NOMINATIVO NEL RISPETTO DELLA NORMATIVA SULLA PROTEZIONE DATI PERSONALI; ;L. 162/98. Piani personalizzati di sostegno in favore di persone con handicap grave. Finanziamento aprile /giugno 2018.liquidazionedi spesa.;13/07/2018;1429;1;179;1;Spese correnti;4;Trasferimenti correnti;2;Trasferimenti correnti a Famiglie;2;Interventi assistenziali;999;Altri assegni e sussidi assistenziali;13/07/2018
1150;1;0;125;125;OMESSO NOMINATIVO NEL RISPETTO DELLA NORMATIVA SULLA PROTEZIONE DATI PERSONALI; ;L. 162/98. Piani personalizzati di sostegno in favore di persone con handicap grave. Proroga gennaio - aprile 2018.LIQUIDAZIONE di spesa in favore di n. 46 beneficiari.;13/07/2018;1429;1;65;1;Spese correnti;4;Trasferimenti correnti;2;Trasferimenti correnti a Famiglie;2;Interventi assistenziali;999;Altri assegni e sussidi assistenziali;13/07/2018
1151;1;0;401,5;401,5;OMESSO NOMINATIVO NEL RISPETTO DELLA NORMATIVA SULLA PROTEZIONE DATI PERSONALI; ;L. 162/98. Piani personalizzati di sostegno in favore di persone con handicap grave. Finanziamento maggio - GIUGNO  2018. LIQUIDAZIONE di spesa.;13/07/2018;1429;1;179;1;Spese correnti;4;Trasferimenti correnti;2;Trasferimenti correnti a Famiglie;2;Interventi assistenziali;999;Altri assegni e sussidi assistenziali;13/07/2018
1152;1;0;312,5;312,5;OMESSO NOMINATIVO NEL RISPETTO DELLA NORMATIVA SULLA PROTEZIONE DATI PERSONALI; ;L. 162/98. Piani personalizzati di sostegno in favore di persone con handicap grave. Finanziamento maggio - dicembre 2018. Impegno di spesa.;13/07/2018;1429;1;179;1;Spese correnti;4;Trasferimenti correnti;2;Trasferimenti correnti a Famiglie;2;Interventi assistenziali;999;Altri assegni e sussidi assistenziali;13/07/2018
1153;1;0;767,9;767,9;OMESSO NOMINATIVO NEL RISPETTO DELLA NORMATIVA SULLA PROTEZIONE DATI PERSONALI; ;L. 162/98. Piani personalizzati di sostegno in favore di persone con handicap grave. Finanziamento maggio - GIUGNO 2018.LIQUIDAZIONE di spesa.;13/07/2018;1429;1;179;1;Spese correnti;4;Trasferimenti correnti;2;Trasferimenti correnti a Famiglie;2;Interventi assistenziali;999;Altri assegni e sussidi assistenziali;13/07/2018
1154;1;0;293,74;293,74;OMESSO NOMINATIVO NEL RISPETTO DELLA NORMATIVA SULLA PROTEZIONE DATI PERSONALI; ;L. 162/98. Piani personalizzati di sostegno in favore di persone con handicap grave. Finanziamento Maggio - GIUGNO 2018. LIQUIDAZIONE di spesa.;13/07/2018;1429;1;179;1;Spese correnti;4;Trasferimenti correnti;2;Trasferimenti correnti a Famiglie;2;Interventi assistenziali;999;Altri assegni e sussidi assistenziali;13/07/2018
1155;1;0;363,32;363,32;OMESSO NOMINATIVO NEL RISPETTO DELLA NORMATIVA SULLA PROTEZIONE DATI PERSONALI; ;L. 162/98. Piani personalizzati di sostegno in favore di persone con handicap grave. Finanziamento maggio - GIUGNO 2018. LIQUIDAZIONE di spesa.;13/07/2018;1429;1;179;1;Spese correnti;4;Trasferimenti correnti;2;Trasferimenti correnti a Famiglie;2;Interventi assistenziali;999;Altri assegni e sussidi assistenziali;13/07/2018
1156;1;0;625;625;OMESSO NOMINATIVO NEL RISPETTO DELLA NORMATIVA SULLA PROTEZIONE DATI PERSONALI; ;L. 162/98. Piani personalizzati di sostegno in favore di persone con handicap grave. Finanziamento maggio - GIUGNO 2018. Liquidazione di spesa.;13/07/2018;1429;1;179;1;Spese correnti;4;Trasferimenti correnti;2;Trasferimenti correnti a Famiglie;2;Interventi assistenziali;999;Altri assegni e sussidi assistenziali;13/07/2018
1157;1;0;363,74;363,74;OMESSO NOMINATIVO NEL RISPETTO DELLA NORMATIVA SULLA PROTEZIONE DATI PERSONALI; ;L. 162/98. Piani personalizzati di sostegno in favore di persone con handicap grave. Finanziamento maggio - dicembre 2018. Impegno di spesa.;13/07/2018;1429;1;179;1;Spese correnti;4;Trasferimenti correnti;2;Trasferimenti correnti a Famiglie;2;Interventi assistenziali;999;Altri assegni e sussidi assistenziali;13/07/2018
1158;1;0;250;250;OMESSO NOMINATIVO NEL RISPETTO DELLA NORMATIVA SULLA PROTEZIONE DATI PERSONALI; ;L. 162/98. Piani personalizzati di sostegno in favore di persone con handicap grave. Finanziamento MAGGIO - GIUGNO 2018.LIQUIDAZIONE di spesa.;13/07/2018;1429;1;179;1;Spese correnti;4;Trasferimenti correnti;2;Trasferimenti correnti a Famiglie;2;Interventi assistenziali;999;Altri assegni e sussidi assistenziali;13/07/2018
1159;1;0;606,24;606,24;OMESSO NOMINATIVO NEL RISPETTO DELLA NORMATIVA SULLA PROTEZIONE DATI PERSONALI; ;L. 162/98. Piani personalizzati di sostegno in favore di persone con handicap grave. Finanziamento Maggio - Giugno 2018. LIQUIDAZIONE di spesa.;13/07/2018;1429;1;179;1;Spese correnti;4;Trasferimenti correnti;2;Trasferimenti correnti a Famiglie;2;Interventi assistenziali;999;Altri assegni e sussidi assistenziali;13/07/2018
1160;1;0;606,24;606,24;OMESSO NOMINATIVO NEL RISPETTO DELLA NORMATIVA SULLA PROTEZIONE DATI PERSONALI; ;L. 162/98. Piani personalizzati di sostegno in favore di persone con handicap grave. Finanziamento Maggio - Giugno 2018. Liquidazione di spesa.;13/07/2018;1429;1;179;1;Spese correnti;4;Trasferimenti correnti;2;Trasferimenti correnti a Famiglie;2;Interventi assistenziali;999;Altri assegni e sussidi assistenziali;13/07/2018
1161;1;0;312,5;312,5;OMESSO NOMINATIVO NEL RISPETTO DELLA NORMATIVA SULLA PROTEZIONE DATI PERSONALI; ;L. 162/98. Piani personalizzati di sostegno in favore di persone con handicap grave. Finanziamento maggio - dicembre 2018.liquidazione di spesa.;13/07/2018;1429;1;179;1;Spese correnti;4;Trasferimenti correnti;2;Trasferimenti correnti a Famiglie;2;Interventi assistenziali;999;Altri assegni e sussidi assistenziali;13/07/2018
1162;1;0;750;750;OMESSO NOMINATIVO NEL RISPETTO DELLA NORMATIVA SULLA PROTEZIONE DATI PERSONALI; ;L. 162/98. Piani personalizzati di sostegno in favore di persone con handicap grave. Finanziamento maggio - dicembre 2018. lIquidazione di spesa.;13/07/2018;1429;1;179;1;Spese correnti;4;Trasferimenti correnti;2;Trasferimenti correnti a Famiglie;2;Interventi assistenziali;999;Altri assegni e sussidi assistenziali;13/07/2018
1163;1;0;375;375;OMESSO NOMINATIVO NEL RISPETTO DELLA NORMATIVA SULLA PROTEZIONE DATI PERSONALI; ;L. 162/98. Piani personalizzati di sostegno in favore di persone con handicap grave. Finanziamento maggio - GIUGNO 2018.liquidazione di spesa.;13/07/2018;1429;1;179;1;Spese correnti;4;Trasferimenti correnti;2;Trasferimenti correnti a Famiglie;2;Interventi assistenziali;999;Altri assegni e sussidi assistenziali;13/07/2018
1164;1;0;1.916,66;1.916,66;OMESSO NOMINATIVO NEL RISPETTO DELLA NORMATIVA SULLA PROTEZIONE DATI PERSONALI; ;L. 162/98. Piani personalizzati di sostegno in favore di persone con handicap grave. Finanziamento maggio - GIUGNO  2018. Liquidazione di spesa.;13/07/2018;1429;1;179;1;Spese correnti;4;Trasferimenti correnti;2;Trasferimenti correnti a Famiglie;2;Interventi assistenziali;999;Altri assegni e sussidi assistenziali;13/07/2018
1165;1;0;156,66;156,66;OMESSO NOMINATIVO NEL RISPETTO DELLA NORMATIVA SULLA PROTEZIONE DATI PERSONALI; ;L. 162/98. Piani personalizzati di sostegno in favore di persone con handicap grave. Finanziamento maggio - Giugno 2018. LIQUIDAZIONE di spesa.;13/07/2018;1429;1;179;1;Spese correnti;4;Trasferimenti correnti;2;Trasferimenti correnti a Famiglie;2;Interventi assistenziali;999;Altri assegni e sussidi assistenziali;13/07/2018
1166;1;0;472,34;472,34;OMESSO NOMINATIVO NEL RISPETTO DELLA NORMATIVA SULLA PROTEZIONE DATI PERSONALI; ;L. 162/98. Piani personalizzati di sostegno in favore di persone con handicap grave. Finanziamento Maggio - Giugno 2018. Liquidazione di spesa.;13/07/2018;1429;1;179;1;Spese correnti;4;Trasferimenti correnti;2;Trasferimenti correnti a Famiglie;2;Interventi assistenziali;999;Altri assegni e sussidi assistenziali;13/07/2018
1167;1;0;207,86;207,86;OMESSO NOMINATIVO NEL RISPETTO DELLA NORMATIVA SULLA PROTEZIONE DATI PERSONALI; ;L. 162/98. Piani personalizzati di sostegno in favore di persone con handicap grave. Finanziamento  - Giugno 2018.Liquidazione di spesa.;13/07/2018;1429;1;179;1;Spese correnti;4;Trasferimenti correnti;2;Trasferimenti correnti a Famiglie;2;Interventi assistenziali;999;Altri assegni e sussidi assistenziali;13/07/2018
1168;1;0;163,32;163,32;OMESSO NOMINATIVO NEL RISPETTO DELLA NORMATIVA SULLA PROTEZIONE DATI PERSONALI; ;L. 162/98. Piani personalizzati di sostegno in favore di persone con handicap grave. Finanziamento Maggio -GIUGNO 2018. Liquidazione di spesa.;13/07/2018;1429;1;179;1;Spese correnti;4;Trasferimenti correnti;2;Trasferimenti correnti a Famiglie;2;Interventi assistenziali;999;Altri assegni e sussidi assistenziali;13/07/2018
1169;1;0;455,55;455,55;OMESSO NOMINATIVO NEL RISPETTO DELLA NORMATIVA SULLA PROTEZIONE DATI PERSONALI; ;L. 162/98. Piani personalizzati di sostegno in favore di persone con handicap grave. Finanziamento Maggio - Giugno 2018. Liquidazione di spesa.;13/07/2018;1429;1;179;1;Spese correnti;4;Trasferimenti correnti;2;Trasferimenti correnti a Famiglie;2;Interventi assistenziali;999;Altri assegni e sussidi assistenziali;13/07/2018
1170;1;0;504,43;504,43;OMESSO NOMINATIVO NEL RISPETTO DELLA NORMATIVA SULLA PROTEZIONE DATI PERSONALI; ;L. 162/98. Piani personalizzati di sostegno in favore di persone con handicap grave. Finanziamento GIUGNO 2018.Liquidazione di spesa.;13/07/2018;1429;1;179;1;Spese correnti;4;Trasferimenti correnti;2;Trasferimenti correnti a Famiglie;2;Interventi assistenziali;999;Altri assegni e sussidi assistenziali;13/07/2018
1171;1;0;302,02;302,02;OMESSO NOMINATIVO NEL RISPETTO DELLA NORMATIVA SULLA PROTEZIONE DATI PERSONALI; ;L. 162/98. Piani personalizzati di sostegno in favore di persone con handicap grave. Finanziamento maggio - dicembre 2018. Liquidazione di spesa.;13/07/2018;1429;1;179;1;Spese correnti;4;Trasferimenti correnti;2;Trasferimenti correnti a Famiglie;2;Interventi assistenziali;999;Altri assegni e sussidi assistenziali;13/07/2018
1172;1;0;217,08;217,08;OMESSO NOMINATIVO NEL RISPETTO DELLA NORMATIVA SULLA PROTEZIONE DATI PERSONALI; ;L. 162/98. Piani personalizzati di sostegno in favore di persone con handicap grave. Finanziamento maggio - Giugno 2018. Liquidazione di spesa.;13/07/2018;1429;1;179;1;Spese correnti;4;Trasferimenti correnti;2;Trasferimenti correnti a Famiglie;2;Interventi assistenziali;999;Altri assegni e sussidi assistenziali;13/07/2018
1173;1;0;197,22;197,22;OMESSO NOMINATIVO NEL RISPETTO DELLA NORMATIVA SULLA PROTEZIONE DATI PERSONALI; ;L. 162/98. Piani personalizzati di sostegno in favore di persone con handicap grave. Finanziamento Giugno - 2018. Liquidazione di spesa.;13/07/2018;1429;1;179;1;Spese correnti;4;Trasferimenti correnti;2;Trasferimenti correnti a Famiglie;2;Interventi assistenziali;999;Altri assegni e sussidi assistenziali;13/07/2018
1174;1;0;414,65;414,65;OMESSO NOMINATIVO NEL RISPETTO DELLA NORMATIVA SULLA PROTEZIONE DATI PERSONALI; ;L. 162/98. Piani personalizzati di sostegno in favore di persone con handicap grave. Finanziamento Giugno 2018. Liquidazione di spesa.;13/07/2018;1429;1;179;1;Spese correnti;4;Trasferimenti correnti;2;Trasferimenti correnti a Famiglie;2;Interventi assistenziali;999;Altri assegni e sussidi assistenziali;13/07/2018
1175;1;0;300,78;300,78;OMESSO NOMINATIVO NEL RISPETTO DELLA NORMATIVA SULLA PROTEZIONE DATI PERSONALI; ;L. 162/98. Piani personalizzati di sostegno in favore di persone con handicap grave. Finanziamento Giugno 2018. Liquidazione di spesa.;13/07/2018;1429;1;179;1;Spese correnti;4;Trasferimenti correnti;2;Trasferimenti correnti a Famiglie;2;Interventi assistenziali;999;Altri assegni e sussidi assistenziali;13/07/2018
1176;1;0;328;328;OMESSO NOMINATIVO NEL RISPETTO DELLA NORMATIVA SULLA PROTEZIONE DATI PERSONALI; ;L. 162/98. Piani personalizzati di sostegno in favore di persone con handicap grave. Finanziamento giugno2018.liquidazionedi spesa.;13/07/2018;1429;1;179;1;Spese correnti;4;Trasferimenti correnti;2;Trasferimenti correnti a Famiglie;2;Interventi assistenziali;999;Altri assegni e sussidi assistenziali;13/07/2018
1177;1;0;375;375;OMESSO NOMINATIVO NEL RISPETTO DELLA NORMATIVA SULLA PROTEZIONE DATI PERSONALI; ;L. 162/98. Piani personalizzati di sostegno in favore di persone con handicap grave. Finanziamento giugno 2018. Liquidazione di spesa.;13/07/2018;1429;1;179;1;Spese correnti;4;Trasferimenti correnti;2;Trasferimenti correnti a Famiglie;2;Interventi assistenziali;999;Altri assegni e sussidi assistenziali;13/07/2018
1178;1;0;201,08;201,08;OMESSO NOMINATIVO NEL RISPETTO DELLA NORMATIVA SULLA PROTEZIONE DATI PERSONALI; ;L. 162/98. Piani personalizzati di sostegno in favore di persone con handicap grave. Finanziamento Giugno 2018. Liquidazione di spesa.;13/07/2018;1429;1;179;1;Spese correnti;4;Trasferimenti correnti;2;Trasferimenti correnti a Famiglie;2;Interventi assistenziali;999;Altri assegni e sussidi assistenziali;13/07/2018
1179;1;0;757,2;757,2;OMESSO NOMINATIVO NEL RISPETTO DELLA NORMATIVA SULLA PROTEZIONE DATI PERSONALI; ;L. 162/98. Piani personalizzati di sostegno in favore di persone con handicap grave. Finanziamento Giugno 2018. Liquidazione di spesa.;13/07/2018;1429;1;179;1;Spese correnti;4;Trasferimenti correnti;2;Trasferimenti correnti a Famiglie;2;Interventi assistenziali;999;Altri assegni e sussidi assistenziali;13/07/2018
1180;1;0;584,5;584,5;OMESSO NOMINATIVO NEL RISPETTO DELLA NORMATIVA SULLA PROTEZIONE DATI PERSONALI; ;L. 162/98. Piani personalizzati di sostegno in favore di persone con handicap grave. Finanziamento giugno 2018.LIQUIDAZIONE di spesa.;13/07/2018;1429;1;179;1;Spese correnti;4;Trasferimenti correnti;2;Trasferimenti correnti a Famiglie;2;Interventi assistenziali;999;Altri assegni e sussidi assistenziali;13/07/2018
1181;1;0;830,96;830,96;OMESSO NOMINATIVO NEL RISPETTO DELLA NORMATIVA SULLA PROTEZIONE DATI PERSONALI; ;L. 162/98. Piani personalizzati di sostegno in favore di persone con handicap grave. Finanziamento Giugno 2018.Liquidazione di spesa.;13/07/2018;1429;1;179;1;Spese correnti;4;Trasferimenti correnti;2;Trasferimenti correnti a Famiglie;2;Interventi assistenziali;999;Altri assegni e sussidi assistenziali;13/07/2018
1182;1;0;226,57;226,57;OMESSO NOMINATIVO NEL RISPETTO DELLA NORMATIVA SULLA PROTEZIONE DATI PERSONALI; ;L. 162/98. Piani personalizzati di sostegno in favore di persone con handicap grave. Finanziamento Giugno 2018. Liquidazione di spesa.;13/07/2018;1429;1;179;1;Spese correnti;4;Trasferimenti correnti;2;Trasferimenti correnti a Famiglie;2;Interventi assistenziali;999;Altri assegni e sussidi assistenziali;13/07/2018
1183;1;0;968;968;OMESSO NOMINATIVO NEL RISPETTO DELLA NORMATIVA SULLA PROTEZIONE DATI PERSONALI; ;L. 162/98. Piani personalizzati di sostegno in favore di persone con handicap grave. Finanziamento giugno 2018. Liquidazione di spesa.;13/07/2018;1429;1;179;1;Spese correnti;4;Trasferimenti correnti;2;Trasferimenti correnti a Famiglie;2;Interventi assistenziali;999;Altri assegni e sussidi assistenziali;13/07/2018
1184;1;0;1.107,64;1.107,64;OMESSO NOMINATIVO NEL RISPETTO DELLA NORMATIVA SULLA PROTEZIONE DATI PERSONALI; ;L. 162/98. Piani personalizzati di sostegno in favore di persone con handicap grave. Finanziamento Giugno 2018. Liquidazione di spesa.;13/07/2018;1429;1;179;1;Spese correnti;4;Trasferimenti correnti;2;Trasferimenti correnti a Famiglie;2;Interventi assistenziali;999;Altri assegni e sussidi assistenziali;13/07/2018
1185;1;0;1.233,05;1.233,05;OMESSO NOMINATIVO NEL RISPETTO DELLA NORMATIVA SULLA PROTEZIONE DATI PERSONALI; ;L. 162/98. Piani personalizzati di sostegno in favore di persone con handicap grave. Finanziamento GIUGNO 2018. Liquidazione di spesa.;13/07/2018;1429;1;179;1;Spese correnti;4;Trasferimenti correnti;2;Trasferimenti correnti a Famiglie;2;Interventi assistenziali;999;Altri assegni e sussidi assistenziali;13/07/2018
1186;1;0;1.326,00;1.326,00;OMESSO NOMINATIVO NEL RISPETTO DELLA NORMATIVA SULLA PROTEZIONE DATI PERSONALI; ;ECONOMIA GESTIONE ANNO 2017 - LIQUIDAZUIONE MESE GIUGNO 2018;13/07/2018;1429;1;605;1;Spese correnti;4;Trasferimenti correnti;2;Trasferimenti correnti a Famiglie;2;Interventi assistenziali;999;Altri assegni e sussidi assistenziali;13/07/2018
1187;1;0;367;367;OMESSO NOMINATIVO NEL RISPETTO DELLA NORMATIVA SULLA PROTEZIONE DATI PERSONALI; ;L. 162/98. Piani personalizzati di sostegno in favore di persone con handicap grave. Finanziamento GIUGNO 2018.Liquidazione di spesa.;13/07/2018;1429;1;179;1;Spese correnti;4;Trasferimenti correnti;2;Trasferimenti correnti a Famiglie;2;Interventi assistenziali;999;Altri assegni e sussidi assistenziali;13/07/2018
1188;1;0;1.039,50;1.039,50;OMESSO NOMINATIVO NEL RISPETTO DELLA NORMATIVA SULLA PROTEZIONE DATI PERSONALI; ;L. 162/98. Piani personalizzati di sostegno in favore di persone con handicap grave. Finanziamento Giugno  2018. liquidazione di spesa in favore di n. 52 beneficiari.;13/07/2018;1429;1;179;1;Spese correnti;4;Trasferimenti correnti;2;Trasferimenti correnti a Famiglie;2;Interventi assistenziali;999;Altri assegni e sussidi assistenziali;13/07/2018
1189;1;0;220;220;OMESSO NOMINATIVO NEL RISPETTO DELLA NORMATIVA SULLA PROTEZIONE DATI PERSONALI; ;L. 162/98. Piani personalizzati di sostegno in favore di persone con handicap grave. Finanziamento Giugno 2018. Liquidazione di spesa.;13/07/2018;1429;1;179;1;Spese correnti;4;Trasferimenti correnti;2;Trasferimenti correnti a Famiglie;2;Interventi assistenziali;999;Altri assegni e sussidi assistenziali;13/07/2018
1190;1;0;352,58;352,58;OMESSO NOMINATIVO NEL RISPETTO DELLA NORMATIVA SULLA PROTEZIONE DATI PERSONALI; ;L. 162/98. Piani personalizzati di sostegno in favore di persone con handicap grave. Finanziamento maggio - dicembre 2018.liquidazione di spesa.;13/07/2018;1429;1;179;1;Spese correnti;4;Trasferimenti correnti;2;Trasferimenti correnti a Famiglie;2;Interventi assistenziali;999;Altri assegni e sussidi assistenziali;13/07/2018
1191;1;0;1.174,90;1.174,90;OMESSO NOMINATIVO NEL RISPETTO DELLA NORMATIVA SULLA PROTEZIONE DATI PERSONALI; ;L. 162/98. Piani personalizzati di sostegno in favore di persone con handicap grave. Finanziamento giugno 2018. liquidazione di spesa.;13/07/2018;1429;1;179;1;Spese correnti;4;Trasferimenti correnti;2;Trasferimenti correnti a Famiglie;2;Interventi assistenziali;999;Altri assegni e sussidi assistenziali;13/07/2018
1192;1;0;344,35;344,35;OMESSO NOMINATIVO NEL RISPETTO DELLA NORMATIVA SULLA PROTEZIONE DATI PERSONALI; ;L. 162/98. Piani personalizzati di sostegno in favore di persone con handicap grave. Finanziamento Giugno 2018. Liquidazione di spesa.;13/07/2018;1429;1;179;1;Spese correnti;4;Trasferimenti correnti;2;Trasferimenti correnti a Famiglie;2;Interventi assistenziali;999;Altri assegni e sussidi assistenziali;13/07/2018
1193;1;0;193,32;193,32;OMESSO NOMINATIVO NEL RISPETTO DELLA NORMATIVA SULLA PROTEZIONE DATI PERSONALI; ;L. 162/98. Piani personalizzati di sostegno in favore di persone con handicap grave. Finanziamento Giugno 2018. liquidazione  di spesa.;13/07/2018;1429;1;179;1;Spese correnti;4;Trasferimenti correnti;2;Trasferimenti correnti a Famiglie;2;Interventi assistenziali;999;Altri assegni e sussidi assistenziali;13/07/2018
1194;1;0;429,8;429,8;OMESSO NOMINATIVO NEL RISPETTO DELLA NORMATIVA SULLA PROTEZIONE DATI PERSONALI; ;L. 162/98. Piani personalizzati di sostegno in favore di persone con handicap grave. Finanziamento GIUGNO 2018.liquidazione di spesa.;13/07/2018;1429;1;179;1;Spese correnti;4;Trasferimenti correnti;2;Trasferimenti correnti a Famiglie;2;Interventi assistenziali;999;Altri assegni e sussidi assistenziali;13/07/2018
1195;1;0;325,58;325,58;OMESSO NOMINATIVO NEL RISPETTO DELLA NORMATIVA SULLA PROTEZIONE DATI PERSONALI; ;L. 162/98. Piani personalizzati di sostegno in favore di persone con handicap grave. Finanziamento GIUGNO 2018. LIQUIDAZIONE di spesa.;13/07/2018;1429;1;179;1;Spese correnti;4;Trasferimenti correnti;2;Trasferimenti correnti a Famiglie;2;Interventi assistenziali;999;Altri assegni e sussidi assistenziali;13/07/2018
1196;1;0;36,92;36,92;POSTE ITALIANE spa;Z4A1F1447A;SALDO Fatt.n. 8718227333  del 11/07/2018 Fattura Elettronica relativa all'Identificativo Rendiconto 2097874783;13/07/2018;42;7;227;1;Spese correnti;3;Acquisto di beni e servizi;2;Acquisto di servizi;16;Servizi amministrativi;2;Spese postali;13/07/2018
1197;1;0;655,8;655,8;ORRU' AGOSTINO;Z262439CA8;SALDO Fatt.n. 2018/E/06  del 11/07/2018 SALDO FATTURA;13/07/2018;34;1;271;1;Spese correnti;3;Acquisto di beni e servizi;2;Acquisto di servizi;1;Organi e incarichi istituzionali dell'amministrazione;8;Compensi agli organi istituzionali di revisione, di controllo ed altri incarichi istituzionali dell'amministrazione;13/07/2018
1198;1;0;1.208,16;1.208,16;ORRU' AGOSTINO;ZC3151CDF0;ACCONTO Fatt.n. 2018/E/05  del 11/07/2018 SALDO FATTURA;13/07/2018;34;1;378;1;Spese correnti;3;Acquisto di beni e servizi;2;Acquisto di servizi;1;Organi e incarichi istituzionali dell'amministrazione;8;Compensi agli organi istituzionali di revisione, di controllo ed altri incarichi istituzionali dell'amministrazione;13/07/2018
1199;1;0;482,08;482,08;ORRU' AGOSTINO;ZC3151CDF0;SALDO Fatt.n. 2018/E/05  del 11/07/2018 SALDO FATTURA;13/07/2018;34;1;181;1;Spese correnti;3;Acquisto di beni e servizi;2;Acquisto di servizi;1;Organi e incarichi istituzionali dell'amministrazione;1;Organi istituzionali dell'amministrazione - Indennità;13/07/2018
1200;1;0;-448,62;785,14;ENEL ENERGIA SPA;7429682F87;SALDO Fatt.n. 004810967203  del 08/06/2018;14/07/2018;820;1;405;1;Spese correnti;3;Acquisto di beni e servizi;2;Acquisto di servizi;5;Utenze e canoni;4;Energia elettrica;14/07/2018
1200;2;0;-336,52;785,14;ENEL ENERGIA SPA;7429682F87;SALDO Fatt.n. 004810967191  del 08/06/2018;14/07/2018;820;1;405;1;Spese correnti;3;Acquisto di beni e servizi;2;Acquisto di servizi;5;Utenze e canoni;4;Energia elettrica;14/07/2018
1200;3;0;336,52;785,14;ENEL ENERGIA SPA;7429682F87;SALDO Fatt.n. 004810385370  del 05/03/2018;14/07/2018;820;1;405;1;Spese correnti;3;Acquisto di beni e servizi;2;Acquisto di servizi;5;Utenze e canoni;4;Energia elettrica;14/07/2018
1200;4;0;336,52;785,14;ENEL ENERGIA SPA;7429682F87;SALDO Fatt.n. 004810967287  del 08/06/2018;14/07/2018;820;1;405;1;Spese correnti;3;Acquisto di beni e servizi;2;Acquisto di servizi;5;Utenze e canoni;4;Energia elettrica;14/07/2018
1200;5;0;448,62;785,14;ENEL ENERGIA SPA;7429682F87;SALDO Fatt.n. 004810385358  del 05/03/2018;14/07/2018;820;1;405;1;Spese correnti;3;Acquisto di beni e servizi;2;Acquisto di servizi;5;Utenze e canoni;4;Energia elettrica;14/07/2018
1200;6;0;448,62;785,14;ENEL ENERGIA SPA;7429682F87;SALDO Fatt.n. 004810967275  del 08/06/2018;14/07/2018;820;1;405;1;Spese correnti;3;Acquisto di beni e servizi;2;Acquisto di servizi;5;Utenze e canoni;4;Energia elettrica;14/07/2018
1201;1;0;-120,15;120,15;ENEL ENERGIA SPA;7429682F87;SALDO Fatt.n. 004810967193  del 08/06/2018;14/07/2018;1340;4;403;1;Spese correnti;3;Acquisto di beni e servizi;2;Acquisto di servizi;5;Utenze e canoni;4;Energia elettrica;14/07/2018
1201;2;0;120,15;120,15;ENEL ENERGIA SPA;7429682F87;SALDO Fatt.n. 004810385368  del 05/03/2018;14/07/2018;1340;4;403;1;Spese correnti;3;Acquisto di beni e servizi;2;Acquisto di servizi;5;Utenze e canoni;4;Energia elettrica;14/07/2018
1201;3;0;120,15;120,15;ENEL ENERGIA SPA;7429682F87;SALDO Fatt.n. 004810967312  del 08/06/2018;14/07/2018;1340;4;403;1;Spese correnti;3;Acquisto di beni e servizi;2;Acquisto di servizi;5;Utenze e canoni;4;Energia elettrica;14/07/2018
1202;1;0;-207,05;207,05;ENEL ENERGIA SPA;7429682F87;SALDO Fatt.n. 004810967197  del 08/06/2018;14/07/2018;592;4;402;1;Spese correnti;3;Acquisto di beni e servizi;2;Acquisto di servizi;5;Utenze e canoni;4;Energia elettrica;14/07/2018
1202;2;0;207,05;207,05;ENEL ENERGIA SPA;7429682F87;SALDO Fatt.n. 004810385363  del 05/03/2018;14/07/2018;592;4;402;1;Spese correnti;3;Acquisto di beni e servizi;2;Acquisto di servizi;5;Utenze e canoni;4;Energia elettrica;14/07/2018
1202;3;0;207,05;207,05;ENEL ENERGIA SPA;7429682F87;SALDO Fatt.n. 004810967280  del 08/06/2018;14/07/2018;592;4;402;1;Spese correnti;3;Acquisto di beni e servizi;2;Acquisto di servizi;5;Utenze e canoni;4;Energia elettrica;14/07/2018
1203;1;0;-586,55;695,52;ENEL ENERGIA SPA;7429682F87;SALDO Fatt.n. 004810967182  del 08/06/2018;14/07/2018;152;4;398;1;Spese correnti;3;Acquisto di beni e servizi;2;Acquisto di servizi;5;Utenze e canoni;4;Energia elettrica;14/07/2018
1203;2;0;-71,48;695,52;ENEL ENERGIA SPA;7429682F87;SALDO Fatt.n. 004810967198  del 08/06/2018;14/07/2018;152;4;398;1;Spese correnti;3;Acquisto di beni e servizi;2;Acquisto di servizi;5;Utenze e canoni;4;Energia elettrica;14/07/2018
1203;3;0;-37,49;695,52;ENEL ENERGIA SPA;7429682F87;SALDO Fatt.n. 004810967190  del 08/06/2018;14/07/2018;152;4;398;1;Spese correnti;3;Acquisto di beni e servizi;2;Acquisto di servizi;5;Utenze e canoni;4;Energia elettrica;14/07/2018
1203;4;0;37,49;695,52;ENEL ENERGIA SPA;7429682F87;SALDO Fatt.n. 004810385371  del 05/03/2018;14/07/2018;152;4;398;1;Spese correnti;3;Acquisto di beni e servizi;2;Acquisto di servizi;5;Utenze e canoni;4;Energia elettrica;14/07/2018
1203;5;0;37,49;695,52;ENEL ENERGIA SPA;7429682F87;SALDO Fatt.n. 004810967288  del 08/06/2018;14/07/2018;152;4;398;1;Spese correnti;3;Acquisto di beni e servizi;2;Acquisto di servizi;5;Utenze e canoni;4;Energia elettrica;14/07/2018
1203;6;0;71,48;695,52;ENEL ENERGIA SPA;7429682F87;SALDO Fatt.n. 004810385362  del 05/03/2018;14/07/2018;152;4;398;1;Spese correnti;3;Acquisto di beni e servizi;2;Acquisto di servizi;5;Utenze e canoni;4;Energia elettrica;14/07/2018
1203;7;0;71,48;695,52;ENEL ENERGIA SPA;7429682F87;SALDO Fatt.n. 004810967279  del 08/06/2018;14/07/2018;152;4;398;1;Spese correnti;3;Acquisto di beni e servizi;2;Acquisto di servizi;5;Utenze e canoni;4;Energia elettrica;14/07/2018
1203;8;0;586,55;695,52;ENEL ENERGIA SPA;7429682F87;SALDO Fatt.n. 004810385379  del 05/03/2018;14/07/2018;152;4;398;1;Spese correnti;3;Acquisto di beni e servizi;2;Acquisto di servizi;5;Utenze e canoni;4;Energia elettrica;14/07/2018
1203;9;0;586,55;695,52;ENEL ENERGIA SPA;7429682F87;SALDO Fatt.n. 004810967296  del 08/06/2018;14/07/2018;152;4;398;1;Spese correnti;3;Acquisto di beni e servizi;2;Acquisto di servizi;5;Utenze e canoni;4;Energia elettrica;14/07/2018
1204;1;0;-264,42;264,42;ENEL ENERGIA SPA;7429682F87;SALDO Fatt.n. 004810967188  del 08/06/2018;14/07/2018;618;4;396;1;Spese correnti;3;Acquisto di beni e servizi;2;Acquisto di servizi;5;Utenze e canoni;4;Energia elettrica;14/07/2018
1204;2;0;264,42;264,42;ENEL ENERGIA SPA;7429682F87;SALDO Fatt.n. 004810385373  del 05/03/2018;14/07/2018;618;4;396;1;Spese correnti;3;Acquisto di beni e servizi;2;Acquisto di servizi;5;Utenze e canoni;4;Energia elettrica;14/07/2018
1204;3;0;264,42;264,42;ENEL ENERGIA SPA;7429682F87;SALDO Fatt.n. 004810967290  del 08/06/2018;14/07/2018;618;4;396;1;Spese correnti;3;Acquisto di beni e servizi;2;Acquisto di servizi;5;Utenze e canoni;4;Energia elettrica;14/07/2018
1205;1;0;-209,68;209,68;ENEL ENERGIA SPA;7429682F87;SALDO Fatt.n. 004810967189  del 08/06/2018;14/07/2018;716;4;395;1;Spese correnti;3;Acquisto di beni e servizi;2;Acquisto di servizi;5;Utenze e canoni;4;Energia elettrica;14/07/2018
1205;2;0;209,68;209,68;ENEL ENERGIA SPA;7429682F87;SALDO Fatt.n. 004810385372  del 05/03/2018;14/07/2018;716;4;395;1;Spese correnti;3;Acquisto di beni e servizi;2;Acquisto di servizi;5;Utenze e canoni;4;Energia elettrica;14/07/2018
1205;3;0;209,68;209,68;ENEL ENERGIA SPA;7429682F87;SALDO Fatt.n. 004810967289  del 08/06/2018;14/07/2018;716;4;395;1;Spese correnti;3;Acquisto di beni e servizi;2;Acquisto di servizi;5;Utenze e canoni;4;Energia elettrica;14/07/2018
1206;1;0;-42,9;64,88;ENEL ENERGIA SPA;7429682F87;SALDO Fatt.n. 004810967207  del 08/06/2018;14/07/2018;1302;2;394;1;Spese correnti;3;Acquisto di beni e servizi;2;Acquisto di servizi;5;Utenze e canoni;4;Energia elettrica;14/07/2018
1206;2;0;-21,98;64,88;ENEL ENERGIA SPA;7429682F87;SALDO Fatt.n. 004810967186  del 08/06/2018;14/07/2018;1302;2;394;1;Spese correnti;3;Acquisto di beni e servizi;2;Acquisto di servizi;5;Utenze e canoni;4;Energia elettrica;14/07/2018
1206;3;0;21,98;64,88;ENEL ENERGIA SPA;7429682F87;SALDO Fatt.n. 004810385375  del 05/03/2018;14/07/2018;1302;2;394;1;Spese correnti;3;Acquisto di beni e servizi;2;Acquisto di servizi;5;Utenze e canoni;4;Energia elettrica;14/07/2018
1206;4;0;21,98;64,88;ENEL ENERGIA SPA;7429682F87;SALDO Fatt.n. 004810967292  del 08/06/2018;14/07/2018;1302;2;394;1;Spese correnti;3;Acquisto di beni e servizi;2;Acquisto di servizi;5;Utenze e canoni;4;Energia elettrica;14/07/2018
1206;5;0;42,9;64,88;ENEL ENERGIA SPA;7429682F87;SALDO Fatt.n. 004810385356  del 05/03/2018;14/07/2018;1302;2;394;1;Spese correnti;3;Acquisto di beni e servizi;2;Acquisto di servizi;5;Utenze e canoni;4;Energia elettrica;14/07/2018
1206;6;0;42,9;64,88;ENEL ENERGIA SPA;7429682F87;SALDO Fatt.n. 004810967273  del 08/06/2018;14/07/2018;1302;2;394;1;Spese correnti;3;Acquisto di beni e servizi;2;Acquisto di servizi;5;Utenze e canoni;4;Energia elettrica;14/07/2018
1207;1;0;-23,67;67,63;ENEL ENERGIA SPA;7429682F87;SALDO Fatt.n. 004810967200  del 08/06/2018;14/07/2018;1090;1;393;1;Spese correnti;3;Acquisto di beni e servizi;2;Acquisto di servizi;5;Utenze e canoni;4;Energia elettrica;14/07/2018
1207;2;0;-21,98;67,63;ENEL ENERGIA SPA;7429682F87;SALDO Fatt.n. 004810967201  del 08/06/2018;14/07/2018;1090;1;393;1;Spese correnti;3;Acquisto di beni e servizi;2;Acquisto di servizi;5;Utenze e canoni;4;Energia elettrica;14/07/2018
1207;3;0;-21,98;67,63;ENEL ENERGIA SPA;7429682F87;SALDO Fatt.n. 004810967196  del 08/06/2018;14/07/2018;1090;1;393;1;Spese correnti;3;Acquisto di beni e servizi;2;Acquisto di servizi;5;Utenze e canoni;4;Energia elettrica;14/07/2018
1207;4;0;21,98;67,63;ENEL ENERGIA SPA;7429682F87;SALDO Fatt.n. 004810385359  del 05/03/2018;14/07/2018;1090;1;393;1;Spese correnti;3;Acquisto di beni e servizi;2;Acquisto di servizi;5;Utenze e canoni;4;Energia elettrica;14/07/2018
1207;5;0;21,98;67,63;ENEL ENERGIA SPA;7429682F87;SALDO Fatt.n. 004810385364  del 05/03/2018;14/07/2018;1090;1;393;1;Spese correnti;3;Acquisto di beni e servizi;2;Acquisto di servizi;5;Utenze e canoni;4;Energia elettrica;14/07/2018
1207;6;0;21,98;67,63;ENEL ENERGIA SPA;7429682F87;SALDO Fatt.n. 004810967281  del 08/06/2018;14/07/2018;1090;1;393;1;Spese correnti;3;Acquisto di beni e servizi;2;Acquisto di servizi;5;Utenze e canoni;4;Energia elettrica;14/07/2018
1207;7;0;21,98;67,63;ENEL ENERGIA SPA;7429682F87;SALDO Fatt.n. 004810967276  del 08/06/2018;14/07/2018;1090;1;393;1;Spese correnti;3;Acquisto di beni e servizi;2;Acquisto di servizi;5;Utenze e canoni;4;Energia elettrica;14/07/2018
1207;8;0;23,67;67,63;ENEL ENERGIA SPA;7429682F87;SALDO Fatt.n. 004810385360  del 05/03/2018;14/07/2018;1090;1;393;1;Spese correnti;3;Acquisto di beni e servizi;2;Acquisto di servizi;5;Utenze e canoni;4;Energia elettrica;14/07/2018
1207;9;0;23,67;67,63;ENEL ENERGIA SPA;7429682F87;SALDO Fatt.n. 004810967277  del 08/06/2018;14/07/2018;1090;1;393;1;Spese correnti;3;Acquisto di beni e servizi;2;Acquisto di servizi;5;Utenze e canoni;4;Energia elettrica;14/07/2018
1208;1;0;-986,81;2.967,10;ENEL ENERGIA SPA;7429682F87;SALDO Fatt.n. 004810967238  del 08/06/2018;14/07/2018;1015;1;392;1;Spese correnti;3;Acquisto di beni e servizi;2;Acquisto di servizi;5;Utenze e canoni;4;Energia elettrica;14/07/2018
1208;2;0;-517,77;2.967,10;ENEL ENERGIA SPA;7429682F87;SALDO Fatt.n. 004810967194  del 08/06/2018;14/07/2018;1015;1;392;1;Spese correnti;3;Acquisto di beni e servizi;2;Acquisto di servizi;5;Utenze e canoni;4;Energia elettrica;14/07/2018
1208;3;0;-362,21;2.967,10;ENEL ENERGIA SPA;7429682F87;SALDO Fatt.n. 004810967184  del 08/06/2018;14/07/2018;1015;1;392;1;Spese correnti;3;Acquisto di beni e servizi;2;Acquisto di servizi;5;Utenze e canoni;4;Energia elettrica;14/07/2018
1208;4;0;-305,65;2.967,10;ENEL ENERGIA SPA;7429682F87;SALDO Fatt.n. 004810967195  del 08/06/2018;14/07/2018;1015;1;392;1;Spese correnti;3;Acquisto di beni e servizi;2;Acquisto di servizi;5;Utenze e canoni;4;Energia elettrica;14/07/2018
1208;5;0;-222,02;2.967,10;ENEL ENERGIA SPA;7429682F87;SALDO Fatt.n. 004810967192  del 08/06/2018;14/07/2018;1015;1;392;1;Spese correnti;3;Acquisto di beni e servizi;2;Acquisto di servizi;5;Utenze e canoni;4;Energia elettrica;14/07/2018
1208;6;0;-205,36;2.967,10;ENEL ENERGIA SPA;7429682F87;SALDO Fatt.n. 004810967183  del 08/06/2018;14/07/2018;1015;1;392;1;Spese correnti;3;Acquisto di beni e servizi;2;Acquisto di servizi;5;Utenze e canoni;4;Energia elettrica;14/07/2018
1208;7;0;-198,9;2.967,10;ENEL ENERGIA SPA;7429682F87;SALDO Fatt.n. 004810967199  del 08/06/2018;14/07/2018;1015;1;392;1;Spese correnti;3;Acquisto di beni e servizi;2;Acquisto di servizi;5;Utenze e canoni;4;Energia elettrica;14/07/2018
1208;8;0;-111,37;2.967,10;ENEL ENERGIA SPA;7429682F87;SALDO Fatt.n. 004810967244  del 08/06/2018;14/07/2018;1015;1;392;1;Spese correnti;3;Acquisto di beni e servizi;2;Acquisto di servizi;5;Utenze e canoni;4;Energia elettrica;14/07/2018
1208;9;0;-45,69;2.967,10;ENEL ENERGIA SPA;7429682F87;SALDO Fatt.n. 004810967185  del 08/06/2018;14/07/2018;1015;1;392;1;Spese correnti;3;Acquisto di beni e servizi;2;Acquisto di servizi;5;Utenze e canoni;4;Energia elettrica;14/07/2018
1208;10;0;-11,32;2.967,10;ENEL ENERGIA SPA;7429682F87;SALDO Fatt.n. 004810967179  del 08/06/2018;14/07/2018;1015;1;392;1;Spese correnti;3;Acquisto di beni e servizi;2;Acquisto di servizi;5;Utenze e canoni;4;Energia elettrica;14/07/2018
1208;11;0;11,32;2.967,10;ENEL ENERGIA SPA;7429682F87;SALDO Fatt.n. 004810385382  del 05/03/2018;14/07/2018;1015;1;392;1;Spese correnti;3;Acquisto di beni e servizi;2;Acquisto di servizi;5;Utenze e canoni;4;Energia elettrica;14/07/2018
1208;12;0;11,32;2.967,10;ENEL ENERGIA SPA;7429682F87;SALDO Fatt.n. 004810967299  del 08/06/2018;14/07/2018;1015;1;392;1;Spese correnti;3;Acquisto di beni e servizi;2;Acquisto di servizi;5;Utenze e canoni;4;Energia elettrica;14/07/2018
1208;13;0;45,69;2.967,10;ENEL ENERGIA SPA;7429682F87;SALDO Fatt.n. 004810385376  del 05/03/2018;14/07/2018;1015;1;392;1;Spese correnti;3;Acquisto di beni e servizi;2;Acquisto di servizi;5;Utenze e canoni;4;Energia elettrica;14/07/2018
1208;14;0;45,69;2.967,10;ENEL ENERGIA SPA;7429682F87;SALDO Fatt.n. 004810967293  del 08/06/2018;14/07/2018;1015;1;392;1;Spese correnti;3;Acquisto di beni e servizi;2;Acquisto di servizi;5;Utenze e canoni;4;Energia elettrica;14/07/2018
1208;15;0;111,37;2.967,10;ENEL ENERGIA SPA;7429682F87;SALDO Fatt.n. 004810385366  del 05/03/2018;14/07/2018;1015;1;392;1;Spese correnti;3;Acquisto di beni e servizi;2;Acquisto di servizi;5;Utenze e canoni;4;Energia elettrica;14/07/2018
1208;16;0;111,37;2.967,10;ENEL ENERGIA SPA;7429682F87;SALDO Fatt.n. 004810967283  del 08/06/2018;14/07/2018;1015;1;392;1;Spese correnti;3;Acquisto di beni e servizi;2;Acquisto di servizi;5;Utenze e canoni;4;Energia elettrica;14/07/2018
1208;17;0;198,9;2.967,10;ENEL ENERGIA SPA;7429682F87;SALDO Fatt.n. 004810385361  del 05/03/2018;14/07/2018;1015;1;392;1;Spese correnti;3;Acquisto di beni e servizi;2;Acquisto di servizi;5;Utenze e canoni;4;Energia elettrica;14/07/2018
1208;18;0;198,9;2.967,10;ENEL ENERGIA SPA;7429682F87;SALDO Fatt.n. 004810967278  del 08/06/2018;14/07/2018;1015;1;392;1;Spese correnti;3;Acquisto di beni e servizi;2;Acquisto di servizi;5;Utenze e canoni;4;Energia elettrica;14/07/2018
1208;19;0;205,36;2.967,10;ENEL ENERGIA SPA;7429682F87;SALDO Fatt.n. 004810385378  del 05/03/2018;14/07/2018;1015;1;392;1;Spese correnti;3;Acquisto di beni e servizi;2;Acquisto di servizi;5;Utenze e canoni;4;Energia elettrica;14/07/2018
1208;20;0;205,36;2.967,10;ENEL ENERGIA SPA;7429682F87;SALDO Fatt.n. 004810967295  del 08/06/2018;14/07/2018;1015;1;392;1;Spese correnti;3;Acquisto di beni e servizi;2;Acquisto di servizi;5;Utenze e canoni;4;Energia elettrica;14/07/2018
1208;21;0;222,02;2.967,10;ENEL ENERGIA SPA;7429682F87;SALDO Fatt.n. 004810385369  del 05/03/2018;14/07/2018;1015;1;392;1;Spese correnti;3;Acquisto di beni e servizi;2;Acquisto di servizi;5;Utenze e canoni;4;Energia elettrica;14/07/2018
1208;22;0;222,02;2.967,10;ENEL ENERGIA SPA;7429682F87;SALDO Fatt.n. 004810967286  del 08/06/2018;14/07/2018;1015;1;392;1;Spese correnti;3;Acquisto di beni e servizi;2;Acquisto di servizi;5;Utenze e canoni;4;Energia elettrica;14/07/2018
1208;23;0;305,65;2.967,10;ENEL ENERGIA SPA;7429682F87;SALDO Fatt.n. 004810385365  del 05/03/2018;14/07/2018;1015;1;392;1;Spese correnti;3;Acquisto di beni e servizi;2;Acquisto di servizi;5;Utenze e canoni;4;Energia elettrica;14/07/2018
1208;24;0;305,65;2.967,10;ENEL ENERGIA SPA;7429682F87;SALDO Fatt.n. 004810967255  del 08/06/2018;14/07/2018;1015;1;392;1;Spese correnti;3;Acquisto di beni e servizi;2;Acquisto di servizi;5;Utenze e canoni;4;Energia elettrica;14/07/2018
1208;25;0;362,21;2.967,10;ENEL ENERGIA SPA;7429682F87;SALDO Fatt.n. 004810385377  del 05/03/2018;14/07/2018;1015;1;392;1;Spese correnti;3;Acquisto di beni e servizi;2;Acquisto di servizi;5;Utenze e canoni;4;Energia elettrica;14/07/2018
1208;26;0;362,21;2.967,10;ENEL ENERGIA SPA;7429682F87;SALDO Fatt.n. 004810967294  del 08/06/2018;14/07/2018;1015;1;392;1;Spese correnti;3;Acquisto di beni e servizi;2;Acquisto di servizi;5;Utenze e canoni;4;Energia elettrica;14/07/2018
1208;27;0;517,77;2.967,10;ENEL ENERGIA SPA;7429682F87;SALDO Fatt.n. 004810385367  del 05/03/2018;14/07/2018;1015;1;392;1;Spese correnti;3;Acquisto di beni e servizi;2;Acquisto di servizi;5;Utenze e canoni;4;Energia elettrica;14/07/2018
1208;28;0;517,77;2.967,10;ENEL ENERGIA SPA;7429682F87;SALDO Fatt.n. 004810967284  del 08/06/2018;14/07/2018;1015;1;392;1;Spese correnti;3;Acquisto di beni e servizi;2;Acquisto di servizi;5;Utenze e canoni;4;Energia elettrica;14/07/2018
1208;29;0;986,81;2.967,10;ENEL ENERGIA SPA;7429682F87;SALDO Fatt.n. 004810385357  del 05/03/2018;14/07/2018;1015;1;392;1;Spese correnti;3;Acquisto di beni e servizi;2;Acquisto di servizi;5;Utenze e canoni;4;Energia elettrica;14/07/2018
1208;30;0;986,81;2.967,10;ENEL ENERGIA SPA;7429682F87;SALDO Fatt.n. 004810967274  del 08/06/2018;14/07/2018;1015;1;392;1;Spese correnti;3;Acquisto di beni e servizi;2;Acquisto di servizi;5;Utenze e canoni;4;Energia elettrica;14/07/2018
1209;1;0;39.002,24;39.002,24;I.C.E. di Milia Simone;7152519D63;SALDO Fatt.n. FATTPA 22_18  del 17/07/2018;17/07/2018;2989;1;413;2;Spese in conto capitale;2;Investimenti fissi lordi e acquisto di terreni;1;Beni materiali;9;Beni immobili;18;Musei, teatri e biblioteche;17/07/2018
1210;1;0;119,06;3.048,46;ENEL ENERGIA SPA;7429682F87;SALDO Fatt.n. 004810951618  del 07/06/2018;18/07/2018;1015;1;392;1;Spese correnti;3;Acquisto di beni e servizi;2;Acquisto di servizi;5;Utenze e canoni;4;Energia elettrica;18/07/2018
1210;2;0;-826,35;3.048,46;ENEL ENERGIA SPA;7429682F87;SALDO Fatt.n. 004810967234  del 08/06/2018;18/07/2018;1015;1;392;1;Spese correnti;3;Acquisto di beni e servizi;2;Acquisto di servizi;5;Utenze e canoni;4;Energia elettrica;18/07/2018
1210;3;0;-487,74;3.048,46;ENEL ENERGIA SPA;7429682F87;SALDO Fatt.n. 004810967117  del 08/06/2018;18/07/2018;1015;1;392;1;Spese correnti;3;Acquisto di beni e servizi;2;Acquisto di servizi;5;Utenze e canoni;4;Energia elettrica;18/07/2018
1210;4;0;-469,2;3.048,46;ENEL ENERGIA SPA;7429682F87;SALDO Fatt.n. 004810967102  del 08/06/2018;18/07/2018;1015;1;392;1;Spese correnti;3;Acquisto di beni e servizi;2;Acquisto di servizi;5;Utenze e canoni;4;Energia elettrica;18/07/2018
1210;5;0;-292,86;3.048,46;ENEL ENERGIA SPA;7429682F87;SALDO Fatt.n. 004810967106  del 08/06/2018;18/07/2018;1015;1;392;1;Spese correnti;3;Acquisto di beni e servizi;2;Acquisto di servizi;5;Utenze e canoni;4;Energia elettrica;18/07/2018
1210;6;0;-267,78;3.048,46;ENEL ENERGIA SPA;7429682F87;SALDO Fatt.n. 004810967118  del 08/06/2018;18/07/2018;1015;1;392;1;Spese correnti;3;Acquisto di beni e servizi;2;Acquisto di servizi;5;Utenze e canoni;4;Energia elettrica;18/07/2018
1210;7;0;-203,24;3.048,46;ENEL ENERGIA SPA;7429682F87;SALDO Fatt.n. 004810967105  del 08/06/2018;18/07/2018;1015;1;392;1;Spese correnti;3;Acquisto di beni e servizi;2;Acquisto di servizi;5;Utenze e canoni;4;Energia elettrica;18/07/2018
1210;8;0;-182,62;3.048,46;ENEL ENERGIA SPA;7429682F87;SALDO Fatt.n. 004810967115  del 08/06/2018;18/07/2018;1015;1;392;1;Spese correnti;3;Acquisto di beni e servizi;2;Acquisto di servizi;5;Utenze e canoni;4;Energia elettrica;18/07/2018
1210;9;0;-175,08;3.048,46;ENEL ENERGIA SPA;7429682F87;SALDO Fatt.n. 004810967123  del 08/06/2018;18/07/2018;1015;1;392;1;Spese correnti;3;Acquisto di beni e servizi;2;Acquisto di servizi;5;Utenze e canoni;4;Energia elettrica;18/07/2018
1210;10;0;-119,06;3.048,46;ENEL ENERGIA SPA;7429682F87;SALDO Fatt.n. 004810967240  del 08/06/2018;18/07/2018;1015;1;392;1;Spese correnti;3;Acquisto di beni e servizi;2;Acquisto di servizi;5;Utenze e canoni;4;Energia elettrica;18/07/2018
1210;11;0;-43,81;3.048,46;ENEL ENERGIA SPA;7429682F87;SALDO Fatt.n. 004810967107  del 08/06/2018;18/07/2018;1015;1;392;1;Spese correnti;3;Acquisto di beni e servizi;2;Acquisto di servizi;5;Utenze e canoni;4;Energia elettrica;18/07/2018
1210;12;0;-8,78;3.048,46;ENEL ENERGIA SPA;7429682F87;SALDO Fatt.n. 004810967100  del 08/06/2018;18/07/2018;1015;1;392;1;Spese correnti;3;Acquisto di beni e servizi;2;Acquisto di servizi;5;Utenze e canoni;4;Energia elettrica;18/07/2018
1210;13;0;8,78;3.048,46;ENEL ENERGIA SPA;7429682F87;SALDO Fatt.n. 004810967375  del 08/06/2018;18/07/2018;1015;1;392;1;Spese correnti;3;Acquisto di beni e servizi;2;Acquisto di servizi;5;Utenze e canoni;4;Energia elettrica;18/07/2018
1210;14;0;8,78;3.048,46;ENEL ENERGIA SPA;7429682F87;SALDO Fatt.n. 004810951632  del 07/06/2018;18/07/2018;1015;1;392;1;Spese correnti;3;Acquisto di beni e servizi;2;Acquisto di servizi;5;Utenze e canoni;4;Energia elettrica;18/07/2018
1210;15;0;43,81;3.048,46;ENEL ENERGIA SPA;7429682F87;SALDO Fatt.n. 004810967371  del 08/06/2018;18/07/2018;1015;1;392;1;Spese correnti;3;Acquisto di beni e servizi;2;Acquisto di servizi;5;Utenze e canoni;4;Energia elettrica;18/07/2018
1210;16;0;43,81;3.048,46;ENEL ENERGIA SPA;7429682F87;SALDO Fatt.n. 004810951626  del 07/06/2018;18/07/2018;1015;1;392;1;Spese correnti;3;Acquisto di beni e servizi;2;Acquisto di servizi;5;Utenze e canoni;4;Energia elettrica;18/07/2018
1210;17;0;91;3.048,46;ENEL ENERGIA SPA;7429682F87;SALDO Fatt.n. 004810967363  del 08/06/2018;18/07/2018;1015;1;392;1;Spese correnti;3;Acquisto di beni e servizi;2;Acquisto di servizi;5;Utenze e canoni;4;Energia elettrica;18/07/2018
1210;18;0;175,08;3.048,46;ENEL ENERGIA SPA;7429682F87;SALDO Fatt.n. 004810951613  del 07/06/2018;18/07/2018;1015;1;392;1;Spese correnti;3;Acquisto di beni e servizi;2;Acquisto di servizi;5;Utenze e canoni;4;Energia elettrica;18/07/2018
1210;19;0;175,08;3.048,46;ENEL ENERGIA SPA;7429682F87;SALDO Fatt.n. 004810967358  del 08/06/2018;18/07/2018;1015;1;392;1;Spese correnti;3;Acquisto di beni e servizi;2;Acquisto di servizi;5;Utenze e canoni;4;Energia elettrica;18/07/2018
1210;20;0;182,62;3.048,46;ENEL ENERGIA SPA;7429682F87;SALDO Fatt.n. 004810951621  del 07/06/2018;18/07/2018;1015;1;392;1;Spese correnti;3;Acquisto di beni e servizi;2;Acquisto di servizi;5;Utenze e canoni;4;Energia elettrica;18/07/2018
1210;21;0;182,62;3.048,46;ENEL ENERGIA SPA;7429682F87;SALDO Fatt.n. 004810967366  del 08/06/2018;18/07/2018;1015;1;392;1;Spese correnti;3;Acquisto di beni e servizi;2;Acquisto di servizi;5;Utenze e canoni;4;Energia elettrica;18/07/2018
1210;22;0;203,24;3.048,46;ENEL ENERGIA SPA;7429682F87;SALDO Fatt.n. 004810951628  del 07/06/2018;18/07/2018;1015;1;392;1;Spese correnti;3;Acquisto di beni e servizi;2;Acquisto di servizi;5;Utenze e canoni;4;Energia elettrica;18/07/2018
1210;23;0;203,24;3.048,46;ENEL ENERGIA SPA;7429682F87;SALDO Fatt.n. 004810967373  del 08/06/2018;18/07/2018;1015;1;392;1;Spese correnti;3;Acquisto di beni e servizi;2;Acquisto di servizi;5;Utenze e canoni;4;Energia elettrica;18/07/2018
1210;24;0;267,78;3.048,46;ENEL ENERGIA SPA;7429682F87;SALDO Fatt.n. 004810967362  del 08/06/2018;18/07/2018;1015;1;392;1;Spese correnti;3;Acquisto di beni e servizi;2;Acquisto di servizi;5;Utenze e canoni;4;Energia elettrica;18/07/2018
1210;25;0;267,78;3.048,46;ENEL ENERGIA SPA;7429682F87;SALDO Fatt.n. 004810951617  del 07/06/2018;18/07/2018;1015;1;392;1;Spese correnti;3;Acquisto di beni e servizi;2;Acquisto di servizi;5;Utenze e canoni;4;Energia elettrica;18/07/2018
1210;26;0;292,86;3.048,46;ENEL ENERGIA SPA;7429682F87;SALDO Fatt.n. 004810967372  del 08/06/2018;18/07/2018;1015;1;392;1;Spese correnti;3;Acquisto di beni e servizi;2;Acquisto di servizi;5;Utenze e canoni;4;Energia elettrica;18/07/2018
1210;27;0;292,86;3.048,46;ENEL ENERGIA SPA;7429682F87;SALDO Fatt.n. 004810951627  del 07/06/2018;18/07/2018;1015;1;392;1;Spese correnti;3;Acquisto di beni e servizi;2;Acquisto di servizi;5;Utenze e canoni;4;Energia elettrica;18/07/2018
1210;28;0;469,2;3.048,46;ENEL ENERGIA SPA;7429682F87;SALDO Fatt.n. 004810951630  del 07/06/2018;18/07/2018;1015;1;392;1;Spese correnti;3;Acquisto di beni e servizi;2;Acquisto di servizi;5;Utenze e canoni;4;Energia elettrica;18/07/2018
1210;29;0;469,2;3.048,46;ENEL ENERGIA SPA;7429682F87;SALDO Fatt.n. 004810967350  del 08/06/2018;18/07/2018;1015;1;392;1;Spese correnti;3;Acquisto di beni e servizi;2;Acquisto di servizi;5;Utenze e canoni;4;Energia elettrica;18/07/2018
1210;30;0;487,74;3.048,46;ENEL ENERGIA SPA;7429682F87;SALDO Fatt.n. 004810951619  del 07/06/2018;18/07/2018;1015;1;392;1;Spese correnti;3;Acquisto di beni e servizi;2;Acquisto di servizi;5;Utenze e canoni;4;Energia elettrica;18/07/2018
1210;31;0;487,74;3.048,46;ENEL ENERGIA SPA;7429682F87;SALDO Fatt.n. 004810967364  del 08/06/2018;18/07/2018;1015;1;392;1;Spese correnti;3;Acquisto di beni e servizi;2;Acquisto di servizi;5;Utenze e canoni;4;Energia elettrica;18/07/2018
1210;32;0;826,35;3.048,46;ENEL ENERGIA SPA;7429682F87;SALDO Fatt.n. 004810967354  del 08/06/2018;18/07/2018;1015;1;392;1;Spese correnti;3;Acquisto di beni e servizi;2;Acquisto di servizi;5;Utenze e canoni;4;Energia elettrica;18/07/2018
1210;33;0;826,35;3.048,46;ENEL ENERGIA SPA;7429682F87;SALDO Fatt.n. 004810951609  del 07/06/2018;18/07/2018;1015;1;392;1;Spese correnti;3;Acquisto di beni e servizi;2;Acquisto di servizi;5;Utenze e canoni;4;Energia elettrica;18/07/2018
1211;1;0;-43,94;112,38;ENEL ENERGIA SPA;7429682F87;SALDO Fatt.n. 004810967101  del 08/06/2018;18/07/2018;1090;1;393;1;Spese correnti;3;Acquisto di beni e servizi;2;Acquisto di servizi;5;Utenze e canoni;4;Energia elettrica;18/07/2018
1211;2;0;-23,4;112,38;ENEL ENERGIA SPA;7429682F87;SALDO Fatt.n. 004810967124  del 08/06/2018;18/07/2018;1090;1;393;1;Spese correnti;3;Acquisto di beni e servizi;2;Acquisto di servizi;5;Utenze e canoni;4;Energia elettrica;18/07/2018
1211;3;0;-22,52;112,38;ENEL ENERGIA SPA;7429682F87;SALDO Fatt.n. 004810967119  del 08/06/2018;18/07/2018;1090;1;393;1;Spese correnti;3;Acquisto di beni e servizi;2;Acquisto di servizi;5;Utenze e canoni;4;Energia elettrica;18/07/2018
1211;4;0;-22,52;112,38;ENEL ENERGIA SPA;7429682F87;SALDO Fatt.n. 004810967125  del 08/06/2018;18/07/2018;1090;1;393;1;Spese correnti;3;Acquisto di beni e servizi;2;Acquisto di servizi;5;Utenze e canoni;4;Energia elettrica;18/07/2018
1211;5;0;22,52;112,38;ENEL ENERGIA SPA;7429682F87;SALDO Fatt.n. 004810967361  del 08/06/2018;18/07/2018;1090;1;393;1;Spese correnti;3;Acquisto di beni e servizi;2;Acquisto di servizi;5;Utenze e canoni;4;Energia elettrica;18/07/2018
1211;6;0;22,52;112,38;ENEL ENERGIA SPA;7429682F87;SALDO Fatt.n. 004810951611  del 07/06/2018;18/07/2018;1090;1;393;1;Spese correnti;3;Acquisto di beni e servizi;2;Acquisto di servizi;5;Utenze e canoni;4;Energia elettrica;18/07/2018
1211;7;0;22,52;112,38;ENEL ENERGIA SPA;7429682F87;SALDO Fatt.n. 004810967356  del 08/06/2018;18/07/2018;1090;1;393;1;Spese correnti;3;Acquisto di beni e servizi;2;Acquisto di servizi;5;Utenze e canoni;4;Energia elettrica;18/07/2018
1211;8;0;22,52;112,38;ENEL ENERGIA SPA;7429682F87;SALDO Fatt.n. 004810951616  del 07/06/2018;18/07/2018;1090;1;393;1;Spese correnti;3;Acquisto di beni e servizi;2;Acquisto di servizi;5;Utenze e canoni;4;Energia elettrica;18/07/2018
1211;9;0;23,4;112,38;ENEL ENERGIA SPA;7429682F87;SALDO Fatt.n. 004810951612  del 07/06/2018;18/07/2018;1090;1;393;1;Spese correnti;3;Acquisto di beni e servizi;2;Acquisto di servizi;5;Utenze e canoni;4;Energia elettrica;18/07/2018
1211;10;0;23,4;112,38;ENEL ENERGIA SPA;7429682F87;SALDO Fatt.n. 004810967357  del 08/06/2018;18/07/2018;1090;1;393;1;Spese correnti;3;Acquisto di beni e servizi;2;Acquisto di servizi;5;Utenze e canoni;4;Energia elettrica;18/07/2018
1211;11;0;43,94;112,38;ENEL ENERGIA SPA;7429682F87;SALDO Fatt.n. 004810951631  del 07/06/2018;18/07/2018;1090;1;393;1;Spese correnti;3;Acquisto di beni e servizi;2;Acquisto di servizi;5;Utenze e canoni;4;Energia elettrica;18/07/2018
1211;12;0;43,94;112,38;ENEL ENERGIA SPA;7429682F87;SALDO Fatt.n. 004810967351  del 08/06/2018;18/07/2018;1090;1;393;1;Spese correnti;3;Acquisto di beni e servizi;2;Acquisto di servizi;5;Utenze e canoni;4;Energia elettrica;18/07/2018
1212;1;0;-45,27;67,79;ENEL ENERGIA SPA;7429682F87;SALDO Fatt.n. 004810967127  del 08/06/2018;18/07/2018;1302;2;394;1;Spese correnti;3;Acquisto di beni e servizi;2;Acquisto di servizi;5;Utenze e canoni;4;Energia elettrica;18/07/2018
1212;2;0;-22,52;67,79;ENEL ENERGIA SPA;7429682F87;SALDO Fatt.n. 004810967108  del 08/06/2018;18/07/2018;1302;2;394;1;Spese correnti;3;Acquisto di beni e servizi;2;Acquisto di servizi;5;Utenze e canoni;4;Energia elettrica;18/07/2018
1212;3;0;22,52;67,79;ENEL ENERGIA SPA;7429682F87;SALDO Fatt.n. 004810967370  del 08/06/2018;18/07/2018;1302;2;394;1;Spese correnti;3;Acquisto di beni e servizi;2;Acquisto di servizi;5;Utenze e canoni;4;Energia elettrica;18/07/2018
1212;4;0;22,52;67,79;ENEL ENERGIA SPA;7429682F87;SALDO Fatt.n. 004810951625  del 07/06/2018;18/07/2018;1302;2;394;1;Spese correnti;3;Acquisto di beni e servizi;2;Acquisto di servizi;5;Utenze e canoni;4;Energia elettrica;18/07/2018
1212;5;0;45,27;67,79;ENEL ENERGIA SPA;7429682F87;SALDO Fatt.n. 004810967353  del 08/06/2018;18/07/2018;1302;2;394;1;Spese correnti;3;Acquisto di beni e servizi;2;Acquisto di servizi;5;Utenze e canoni;4;Energia elettrica;18/07/2018
1212;6;0;45,27;67,79;ENEL ENERGIA SPA;7429682F87;SALDO Fatt.n. 004810951608  del 07/06/2018;18/07/2018;1302;2;394;1;Spese correnti;3;Acquisto di beni e servizi;2;Acquisto di servizi;5;Utenze e canoni;4;Energia elettrica;18/07/2018
1213;1;0;-174,33;174,33;ENEL ENERGIA SPA;7429682F87;SALDO Fatt.n. 004810967111  del 08/06/2018;18/07/2018;716;4;395;1;Spese correnti;3;Acquisto di beni e servizi;2;Acquisto di servizi;5;Utenze e canoni;4;Energia elettrica;18/07/2018
1213;2;0;174,33;174,33;ENEL ENERGIA SPA;7429682F87;SALDO Fatt.n. 004810967368  del 08/06/2018;18/07/2018;716;4;395;1;Spese correnti;3;Acquisto di beni e servizi;2;Acquisto di servizi;5;Utenze e canoni;4;Energia elettrica;18/07/2018
1213;3;0;174,33;174,33;ENEL ENERGIA SPA;7429682F87;SALDO Fatt.n. 004810951623  del 07/06/2018;18/07/2018;716;4;395;1;Spese correnti;3;Acquisto di beni e servizi;2;Acquisto di servizi;5;Utenze e canoni;4;Energia elettrica;18/07/2018
1214;1;0;-233,78;233,78;ENEL ENERGIA SPA;7429682F87;SALDO Fatt.n. 004810967109  del 08/06/2018;18/07/2018;618;4;396;1;Spese correnti;3;Acquisto di beni e servizi;2;Acquisto di servizi;5;Utenze e canoni;4;Energia elettrica;18/07/2018
1214;2;0;233,78;233,78;ENEL ENERGIA SPA;7429682F87;SALDO Fatt.n. 004810967369  del 08/06/2018;18/07/2018;618;4;396;1;Spese correnti;3;Acquisto di beni e servizi;2;Acquisto di servizi;5;Utenze e canoni;4;Energia elettrica;18/07/2018
1214;3;0;233,78;233,78;ENEL ENERGIA SPA;7429682F87;SALDO Fatt.n. 004810951624  del 07/06/2018;18/07/2018;618;4;396;1;Spese correnti;3;Acquisto di beni e servizi;2;Acquisto di servizi;5;Utenze e canoni;4;Energia elettrica;18/07/2018
1215;1;0;-421,52;523,35;ENEL ENERGIA SPA;7429682F87;SALDO Fatt.n. 004810967104  del 08/06/2018;18/07/2018;118;4;397;1;Spese correnti;3;Acquisto di beni e servizi;2;Acquisto di servizi;5;Utenze e canoni;4;Energia elettrica;18/07/2018
1215;2;0;-73,07;523,35;ENEL ENERGIA SPA;7429682F87;SALDO Fatt.n. 004810967122  del 08/06/2018;18/07/2018;118;4;397;1;Spese correnti;3;Acquisto di beni e servizi;2;Acquisto di servizi;5;Utenze e canoni;4;Energia elettrica;18/07/2018
1215;3;0;28,76;523,35;ENEL ENERGIA SPA;7429682F87;SALDO Fatt.n. 004811004486  del 13/06/2018;18/07/2018;118;4;397;1;Spese correnti;3;Acquisto di beni e servizi;2;Acquisto di servizi;5;Utenze e canoni;4;Energia elettrica;18/07/2018
1215;4;0;73,07;523,35;ENEL ENERGIA SPA;7429682F87;SALDO Fatt.n. 004810951614  del 07/06/2018;18/07/2018;118;4;397;1;Spese correnti;3;Acquisto di beni e servizi;2;Acquisto di servizi;5;Utenze e canoni;4;Energia elettrica;18/07/2018
1215;5;0;73,07;523,35;ENEL ENERGIA SPA;7429682F87;SALDO Fatt.n. 004810967359  del 08/06/2018;18/07/2018;118;4;397;1;Spese correnti;3;Acquisto di beni e servizi;2;Acquisto di servizi;5;Utenze e canoni;4;Energia elettrica;18/07/2018
1215;6;0;421,52;523,35;ENEL ENERGIA SPA;7429682F87;SALDO Fatt.n. 004810951629  del 07/06/2018;18/07/2018;118;4;397;1;Spese correnti;3;Acquisto di beni e servizi;2;Acquisto di servizi;5;Utenze e canoni;4;Energia elettrica;18/07/2018
1215;7;0;421,52;523,35;ENEL ENERGIA SPA;7429682F87;SALDO Fatt.n. 004810967374  del 08/06/2018;18/07/2018;118;4;397;1;Spese correnti;3;Acquisto di beni e servizi;2;Acquisto di servizi;5;Utenze e canoni;4;Energia elettrica;18/07/2018
1216;1;0;-158;158;ENEL ENERGIA SPA;7429682F87;SALDO Fatt.n. 004810967120  del 08/06/2018;18/07/2018;592;4;402;1;Spese correnti;3;Acquisto di beni e servizi;2;Acquisto di servizi;5;Utenze e canoni;4;Energia elettrica;18/07/2018
1216;2;0;158;158;ENEL ENERGIA SPA;7429682F87;SALDO Fatt.n. 004810951615  del 07/06/2018;18/07/2018;592;4;402;1;Spese correnti;3;Acquisto di beni e servizi;2;Acquisto di servizi;5;Utenze e canoni;4;Energia elettrica;18/07/2018
1216;3;0;158;158;ENEL ENERGIA SPA;7429682F87;SALDO Fatt.n. 004810967360  del 08/06/2018;18/07/2018;592;4;402;1;Spese correnti;3;Acquisto di beni e servizi;2;Acquisto di servizi;5;Utenze e canoni;4;Energia elettrica;18/07/2018
1217;1;0;112,51;112,51;ENEL ENERGIA SPA;7429682F87;SALDO Fatt.n. 004810967365  del 08/06/2018;18/07/2018;1340;4;403;1;Spese correnti;3;Acquisto di beni e servizi;2;Acquisto di servizi;5;Utenze e canoni;4;Energia elettrica;18/07/2018
1218;1;0;23,17;23,17;ENEL ENERGIA SPA;7429682F87;SALDO Fatt.n. 004811004487  del 13/06/2018;18/07/2018;1486;1;404;1;Spese correnti;3;Acquisto di beni e servizi;2;Acquisto di servizi;5;Utenze e canoni;4;Energia elettrica;18/07/2018
1219;1;0;-297,28;441,96;ENEL ENERGIA SPA;7429682F87;SALDO Fatt.n. 004810967113  del 08/06/2018;18/07/2018;820;1;405;1;Spese correnti;3;Acquisto di beni e servizi;2;Acquisto di servizi;5;Utenze e canoni;4;Energia elettrica;18/07/2018
1219;2;0;-144,68;441,96;ENEL ENERGIA SPA;7429682F87;SALDO Fatt.n. 004810967126  del 08/06/2018;18/07/2018;820;1;405;1;Spese correnti;3;Acquisto di beni e servizi;2;Acquisto di servizi;5;Utenze e canoni;4;Energia elettrica;18/07/2018
1219;3;0;144,68;441,96;ENEL ENERGIA SPA;7429682F87;SALDO Fatt.n. 004810967355  del 08/06/2018;18/07/2018;820;1;405;1;Spese correnti;3;Acquisto di beni e servizi;2;Acquisto di servizi;5;Utenze e canoni;4;Energia elettrica;18/07/2018
1219;4;0;144,68;441,96;ENEL ENERGIA SPA;7429682F87;SALDO Fatt.n. 004810951610  del 07/06/2018;18/07/2018;820;1;405;1;Spese correnti;3;Acquisto di beni e servizi;2;Acquisto di servizi;5;Utenze e canoni;4;Energia elettrica;18/07/2018
1219;5;0;297,28;441,96;ENEL ENERGIA SPA;7429682F87;SALDO Fatt.n. 004810951622  del 07/06/2018;18/07/2018;820;1;405;1;Spese correnti;3;Acquisto di beni e servizi;2;Acquisto di servizi;5;Utenze e canoni;4;Energia elettrica;18/07/2018
1219;6;0;297,28;441,96;ENEL ENERGIA SPA;7429682F87;SALDO Fatt.n. 004810967367  del 08/06/2018;18/07/2018;820;1;405;1;Spese correnti;3;Acquisto di beni e servizi;2;Acquisto di servizi;5;Utenze e canoni;4;Energia elettrica;18/07/2018
1220;1;0;2.080,72;2.080,72;ASARP CASAMATTA ONLUS;ZD0237464E;SALDO Fatt.n. FATTPA 16_18  del 17/07/2018 CIG ZD0237464E IMP. N. 19 DEL 25/01/2018 GIUGNO 2018 INSERIMENTO STRUTTURA COMUNITA' INTEGRATA UTENTE M.F.;18/07/2018;1418;1;178;1;Spese correnti;3;Acquisto di beni e servizi;2;Acquisto di servizi;99;Altri servizi;999;Altri servizi diversi n.a.c.;18/07/2018
1221;1;0;3.500,00;3.500,00;TENNIS CLUB FRIUS a.s.d.;Z491D065D3;"Aggiudicazione della gestione degli Impianti Sportivi Comunali ""Don Bosco"" alla Societa TENNIS CLUB FRIUS a.s.d. CIG: Z491D065D3 -liquidazione";18/07/2018;826;1;55;1;Spese correnti;3;Acquisto di beni e servizi;2;Acquisto di servizi;13;Servizi ausiliari per il funzionamento dell'ente;1;Servizi di sorveglianza, custodia e accoglienza;18/07/2018
1223;1;0;5.749,25;5.749,25;HALLEY SARDEGNA SRL;ZE021BD894;SALDO Fatt.n. 0000891  del 12/07/2018;19/07/2018;78;1;106;1;Spese correnti;3;Acquisto di beni e servizi;2;Acquisto di servizi;19;Servizi informatici e di telecomunicazioni;11;Processi trasversali alle classi di servizio;19/07/2018
1224;1;0;10,96;3.654,70;ENEL ENERGIA SPA;7429682F87;SALDO Fatt.n. 004810967326  del 08/06/2018;20/07/2018;1015;1;392;1;Spese correnti;3;Acquisto di beni e servizi;2;Acquisto di servizi;5;Utenze e canoni;4;Energia elettrica;20/07/2018
1224;2;0;55,06;3.654,70;ENEL ENERGIA SPA;7429682F87;SALDO Fatt.n. 004810967320  del 08/06/2018;20/07/2018;1015;1;392;1;Spese correnti;3;Acquisto di beni e servizi;2;Acquisto di servizi;5;Utenze e canoni;4;Energia elettrica;20/07/2018
1224;3;0;120,13;3.654,70;ENEL ENERGIA SPA;7429682F87;SALDO Fatt.n. 004810967310  del 08/06/2018;20/07/2018;1015;1;392;1;Spese correnti;3;Acquisto di beni e servizi;2;Acquisto di servizi;5;Utenze e canoni;4;Energia elettrica;20/07/2018
1224;4;0;202,58;3.654,70;ENEL ENERGIA SPA;7429682F87;SALDO Fatt.n. 004810967305  del 08/06/2018;20/07/2018;1015;1;392;1;Spese correnti;3;Acquisto di beni e servizi;2;Acquisto di servizi;5;Utenze e canoni;4;Energia elettrica;20/07/2018
1224;5;0;223,99;3.654,70;ENEL ENERGIA SPA;7429682F87;SALDO Fatt.n. 004810967322  del 08/06/2018;20/07/2018;1015;1;392;1;Spese correnti;3;Acquisto di beni e servizi;2;Acquisto di servizi;5;Utenze e canoni;4;Energia elettrica;20/07/2018
1224;6;0;224,38;3.654,70;ENEL ENERGIA SPA;7429682F87;SALDO Fatt.n. 004810967313  del 08/06/2018;20/07/2018;1015;1;392;1;Spese correnti;3;Acquisto di beni e servizi;2;Acquisto di servizi;5;Utenze e canoni;4;Energia elettrica;20/07/2018
1224;7;0;317,77;3.654,70;ENEL ENERGIA SPA;7429682F87;SALDO Fatt.n. 004810967309  del 08/06/2018;20/07/2018;1015;1;392;1;Spese correnti;3;Acquisto di beni e servizi;2;Acquisto di servizi;5;Utenze e canoni;4;Energia elettrica;20/07/2018
1224;8;0;371,89;3.654,70;ENEL ENERGIA SPA;7429682F87;SALDO Fatt.n. 004810967321  del 08/06/2018;20/07/2018;1015;1;392;1;Spese correnti;3;Acquisto di beni e servizi;2;Acquisto di servizi;5;Utenze e canoni;4;Energia elettrica;20/07/2018
1224;9;0;538,29;3.654,70;ENEL ENERGIA SPA;7429682F87;SALDO Fatt.n. 004810967311  del 08/06/2018;20/07/2018;1015;1;392;1;Spese correnti;3;Acquisto di beni e servizi;2;Acquisto di servizi;5;Utenze e canoni;4;Energia elettrica;20/07/2018
1224;10;0;543,73;3.654,70;ENEL ENERGIA SPA;7429682F87;SALDO Fatt.n. 004810967324  del 08/06/2018;20/07/2018;1015;1;392;1;Spese correnti;3;Acquisto di beni e servizi;2;Acquisto di servizi;5;Utenze e canoni;4;Energia elettrica;20/07/2018
1224;11;0;1.045,92;3.654,70;ENEL ENERGIA SPA;7429682F87;SALDO Fatt.n. 004810967301  del 08/06/2018;20/07/2018;1015;1;392;1;Spese correnti;3;Acquisto di beni e servizi;2;Acquisto di servizi;5;Utenze e canoni;4;Energia elettrica;20/07/2018
1225;1;0;21,98;21,98;ENEL ENERGIA SPA;7429682F87;SALDO Fatt.n. 004810967308  del 08/06/2018;20/07/2018;1090;1;393;1;Spese correnti;3;Acquisto di beni e servizi;2;Acquisto di servizi;5;Utenze e canoni;4;Energia elettrica;20/07/2018
1226;1;0;21,98;43,96;ENEL ENERGIA SPA;7429682F87;SALDO Fatt.n. 004810967303  del 08/06/2018;20/07/2018;1302;2;394;1;Spese correnti;3;Acquisto di beni e servizi;2;Acquisto di servizi;5;Utenze e canoni;4;Energia elettrica;20/07/2018
1226;2;0;21,98;43,96;ENEL ENERGIA SPA;7429682F87;SALDO Fatt.n. 004810967319  del 08/06/2018;20/07/2018;1302;2;394;1;Spese correnti;3;Acquisto di beni e servizi;2;Acquisto di servizi;5;Utenze e canoni;4;Energia elettrica;20/07/2018
1227;1;0;219,19;219,19;ENEL ENERGIA SPA;7429682F87;SALDO Fatt.n. 004810967316  del 08/06/2018;20/07/2018;716;4;395;1;Spese correnti;3;Acquisto di beni e servizi;2;Acquisto di servizi;5;Utenze e canoni;4;Energia elettrica;20/07/2018
1228;1;0;305,54;305,54;ENEL ENERGIA SPA;7429682F87;SALDO Fatt.n. 004810967317  del 08/06/2018;20/07/2018;618;4;396;1;Spese correnti;3;Acquisto di beni e servizi;2;Acquisto di servizi;5;Utenze e canoni;4;Energia elettrica;20/07/2018
1229;1;0;38,25;702,15;ENEL ENERGIA SPA;7429682F87;SALDO Fatt.n. 004810967315  del 08/06/2018;20/07/2018;118;4;397;1;Spese correnti;3;Acquisto di beni e servizi;2;Acquisto di servizi;5;Utenze e canoni;4;Energia elettrica;20/07/2018
1229;2;0;71,97;702,15;ENEL ENERGIA SPA;7429682F87;SALDO Fatt.n. 004810967306  del 08/06/2018;20/07/2018;118;4;397;1;Spese correnti;3;Acquisto di beni e servizi;2;Acquisto di servizi;5;Utenze e canoni;4;Energia elettrica;20/07/2018
1229;3;0;591,93;702,15;ENEL ENERGIA SPA;7429682F87;SALDO Fatt.n. 004810967323  del 08/06/2018;20/07/2018;118;4;397;1;Spese correnti;3;Acquisto di beni e servizi;2;Acquisto di servizi;5;Utenze e canoni;4;Energia elettrica;20/07/2018
1230;1;0;235,59;235,59;ENEL ENERGIA SPA;7429682F87;SALDO Fatt.n. 004810967307  del 08/06/2018;20/07/2018;592;4;402;1;Spese correnti;3;Acquisto di beni e servizi;2;Acquisto di servizi;5;Utenze e canoni;4;Energia elettrica;20/07/2018
1231;1;0;373,03;849,23;ENEL ENERGIA SPA;7429682F87;SALDO Fatt.n. 004810967314  del 08/06/2018;20/07/2018;820;1;405;1;Spese correnti;3;Acquisto di beni e servizi;2;Acquisto di servizi;5;Utenze e canoni;4;Energia elettrica;20/07/2018
1231;2;0;476,2;849,23;ENEL ENERGIA SPA;7429682F87;SALDO Fatt.n. 004810967302  del 08/06/2018;20/07/2018;820;1;405;1;Spese correnti;3;Acquisto di beni e servizi;2;Acquisto di servizi;5;Utenze e canoni;4;Energia elettrica;20/07/2018
1232;1;0;-1.119,46;34,16;ENEL ENERGIA SPA;7429682F87;SALDO Fatt.n. 004810967239  del 08/06/2018;20/07/2018;1015;1;392;1;Spese correnti;3;Acquisto di beni e servizi;2;Acquisto di servizi;5;Utenze e canoni;4;Energia elettrica;20/07/2018
1232;2;0;-124,51;34,16;ENEL ENERGIA SPA;7429682F87;SALDO Fatt.n. 004810967245  del 08/06/2018;20/07/2018;1015;1;392;1;Spese correnti;3;Acquisto di beni e servizi;2;Acquisto di servizi;5;Utenze e canoni;4;Energia elettrica;20/07/2018
1232;3;0;152,57;34,16;ENEL ENERGIA SPA;7429682F87;SALDO Fatt.n. 004810967256  del 08/06/2018;20/07/2018;1015;1;392;1;Spese correnti;3;Acquisto di beni e servizi;2;Acquisto di servizi;5;Utenze e canoni;4;Energia elettrica;20/07/2018
1232;4;0;1.125,56;34,16;ENEL ENERGIA SPA;7429682F87;SALDO Fatt.n. 004810967247  del 08/06/2018;20/07/2018;1015;1;392;1;Spese correnti;3;Acquisto di beni e servizi;2;Acquisto di servizi;5;Utenze e canoni;4;Energia elettrica;20/07/2018
1233;1;0;-494,28;494,29;ENEL ENERGIA SPA;7429682F87;SALDO Fatt.n. 004810967181  del 08/06/2018;23/07/2018;1015;1;392;1;Spese correnti;3;Acquisto di beni e servizi;2;Acquisto di servizi;5;Utenze e canoni;4;Energia elettrica;23/07/2018
1233;2;0;-403;494,29;ENEL ENERGIA SPA;7429682F87;SALDO Fatt.n. 004810967135  del 08/06/2018;23/07/2018;1015;1;392;1;Spese correnti;3;Acquisto di beni e servizi;2;Acquisto di servizi;5;Utenze e canoni;4;Energia elettrica;23/07/2018
1233;3;0;494,28;494,29;ENEL ENERGIA SPA;7429682F87;SALDO Fatt.n. 004810385380  del 05/03/2018;23/07/2018;1015;1;392;1;Spese correnti;3;Acquisto di beni e servizi;2;Acquisto di servizi;5;Utenze e canoni;4;Energia elettrica;23/07/2018
1233;4;0;897,29;494,29;ENEL ENERGIA SPA;7429682F87;SALDO Fatt.n. 004810967270  del 08/06/2018;23/07/2018;1015;1;392;1;Spese correnti;3;Acquisto di beni e servizi;2;Acquisto di servizi;5;Utenze e canoni;4;Energia elettrica;23/07/2018
1234;1;0;-42,9;42,89;ENEL ENERGIA SPA;7429682F87;SALDO Fatt.n. 004810967218  del 08/06/2018;23/07/2018;1090;1;393;1;Spese correnti;3;Acquisto di beni e servizi;2;Acquisto di servizi;5;Utenze e canoni;4;Energia elettrica;23/07/2018
1234;2;0;-42,9;42,89;ENEL ENERGIA SPA;7429682F87;SALDO Fatt.n. 004810967180  del 08/06/2018;23/07/2018;1090;1;393;1;Spese correnti;3;Acquisto di beni e servizi;2;Acquisto di servizi;5;Utenze e canoni;4;Energia elettrica;23/07/2018
1234;3;0;42,9;42,89;ENEL ENERGIA SPA;7429682F87;SALDO Fatt.n. 004810385381  del 05/03/2018;23/07/2018;1090;1;393;1;Spese correnti;3;Acquisto di beni e servizi;2;Acquisto di servizi;5;Utenze e canoni;4;Energia elettrica;23/07/2018
1234;4;0;85,79;42,89;ENEL ENERGIA SPA;7429682F87;SALDO Fatt.n. 004810967271  del 08/06/2018;23/07/2018;1090;1;393;1;Spese correnti;3;Acquisto di beni e servizi;2;Acquisto di servizi;5;Utenze e canoni;4;Energia elettrica;23/07/2018
1235;1;0;-22,78;22,63;ENEL ENERGIA SPA;7429682F87;SALDO Fatt.n. 004810967209  del 08/06/2018;23/07/2018;1486;1;404;1;Spese correnti;3;Acquisto di beni e servizi;2;Acquisto di servizi;5;Utenze e canoni;4;Energia elettrica;23/07/2018
1235;2;0;-22,63;22,63;ENEL ENERGIA SPA;7429682F87;SALDO Fatt.n. 004810967187  del 08/06/2018;23/07/2018;1486;1;404;1;Spese correnti;3;Acquisto di beni e servizi;2;Acquisto di servizi;5;Utenze e canoni;4;Energia elettrica;23/07/2018
1235;3;0;22,63;22,63;ENEL ENERGIA SPA;7429682F87;SALDO Fatt.n. 004810385374  del 05/03/2018;23/07/2018;1486;1;404;1;Spese correnti;3;Acquisto di beni e servizi;2;Acquisto di servizi;5;Utenze e canoni;4;Energia elettrica;23/07/2018
1235;4;0;45,41;22,63;ENEL ENERGIA SPA;7429682F87;SALDO Fatt.n. 004810967264  del 08/06/2018;23/07/2018;1486;1;404;1;Spese correnti;3;Acquisto di beni e servizi;2;Acquisto di servizi;5;Utenze e canoni;4;Energia elettrica;23/07/2018
1236;1;0;261,12;261,12;OMESSO NOMINATIVO NEL RISPETTO DELLA NORMATIVA SULLA PROTEZIONE DATI PERSONALI; ;LL.RR. 27/83 e 6/93. Talassemici, emofilici ed emolinfopatici maligni. Liquidazione provvidenze gennaio - giugno 2018 in favore di cinque beneficiari.;24/07/2018;1441;1;298;1;Spese correnti;4;Trasferimenti correnti;2;Trasferimenti correnti a Famiglie;2;Interventi assistenziali;999;Altri assegni e sussidi assistenziali;24/07/2018
1237;1;0;994,92;994,92;OMESSO NOMINATIVO NEL RISPETTO DELLA NORMATIVA SULLA PROTEZIONE DATI PERSONALI; ;LL.RR. 27/83 e 6/93. Talassemici, emofilici ed emolinfopatici maligni. Liquidazione provvidenze gennaio - giugno 2018 in favore di cinque beneficiari.;24/07/2018;1441;1;298;1;Spese correnti;4;Trasferimenti correnti;2;Trasferimenti correnti a Famiglie;2;Interventi assistenziali;999;Altri assegni e sussidi assistenziali;24/07/2018
1238;1;0;962,28;962,28;OMESSO NOMINATIVO NEL RISPETTO DELLA NORMATIVA SULLA PROTEZIONE DATI PERSONALI; ;LL.RR. 27/83 e 6/93. Talassemici, emofilici ed emolinfopatici maligni. Liquidazione provvidenze gennaio - giugno 2018 in favore di cinque beneficiari.;24/07/2018;1441;1;298;1;Spese correnti;4;Trasferimenti correnti;2;Trasferimenti correnti a Famiglie;2;Interventi assistenziali;999;Altri assegni e sussidi assistenziali;24/07/2018
1239;1;0;945,96;945,96;OMESSO NOMINATIVO NEL RISPETTO DELLA NORMATIVA SULLA PROTEZIONE DATI PERSONALI; ;LL.RR. 27/83 e 6/93. Talassemici, emofilici ed emolinfopatici maligni. Liquidazione provvidenze gennaio - giugno 2018 in favore di cinque beneficiari.;24/07/2018;1441;1;298;1;Spese correnti;4;Trasferimenti correnti;2;Trasferimenti correnti a Famiglie;2;Interventi assistenziali;999;Altri assegni e sussidi assistenziali;24/07/2018
1240;1;0;945,96;945,96;OMESSO NOMINATIVO NEL RISPETTO DELLA NORMATIVA SULLA PROTEZIONE DATI PERSONALI; ;LL.RR. 27/83 e 6/93. Talassemici, emofilici ed emolinfopatici maligni. Liquidazione provvidenze gennaio - giugno 2018 in favore di cinque beneficiari.;24/07/2018;1441;1;298;1;Spese correnti;4;Trasferimenti correnti;2;Trasferimenti correnti a Famiglie;2;Interventi assistenziali;999;Altri assegni e sussidi assistenziali;24/07/2018
1241;1;0;8,27;2.705,60;ENEL ENERGIA SPA;7429682F87;SALDO Fatt.n. 004811129635  del 06/07/2018;25/07/2018;1015;1;392;1;Spese correnti;3;Acquisto di beni e servizi;2;Acquisto di servizi;5;Utenze e canoni;4;Energia elettrica;25/07/2018
1241;2;0;40;2.705,60;ENEL ENERGIA SPA;7429682F87;SALDO Fatt.n. 004811129629  del 06/07/2018;25/07/2018;1015;1;392;1;Spese correnti;3;Acquisto di beni e servizi;2;Acquisto di servizi;5;Utenze e canoni;4;Energia elettrica;25/07/2018
1241;3;0;88,41;2.705,60;ENEL ENERGIA SPA;7429682F87;SALDO Fatt.n. 004811129620  del 06/07/2018;25/07/2018;1015;1;392;1;Spese correnti;3;Acquisto di beni e servizi;2;Acquisto di servizi;5;Utenze e canoni;4;Energia elettrica;25/07/2018
1241;4;0;157,44;2.705,60;ENEL ENERGIA SPA;7429682F87;SALDO Fatt.n. 004811129615  del 06/07/2018;25/07/2018;1015;1;392;1;Spese correnti;3;Acquisto di beni e servizi;2;Acquisto di servizi;5;Utenze e canoni;4;Energia elettrica;25/07/2018
1241;5;0;167,54;2.705,60;ENEL ENERGIA SPA;7429682F87;SALDO Fatt.n. 004811129623  del 06/07/2018;25/07/2018;1015;1;392;1;Spese correnti;3;Acquisto di beni e servizi;2;Acquisto di servizi;5;Utenze e canoni;4;Energia elettrica;25/07/2018
1241;6;0;183,73;2.705,60;ENEL ENERGIA SPA;7429682F87;SALDO Fatt.n. 004811129631  del 06/07/2018;25/07/2018;1015;1;392;1;Spese correnti;3;Acquisto di beni e servizi;2;Acquisto di servizi;5;Utenze e canoni;4;Energia elettrica;25/07/2018
1241;7;0;244,57;2.705,60;ENEL ENERGIA SPA;7429682F87;SALDO Fatt.n. 004811129619  del 06/07/2018;25/07/2018;1015;1;392;1;Spese correnti;3;Acquisto di beni e servizi;2;Acquisto di servizi;5;Utenze e canoni;4;Energia elettrica;25/07/2018
1241;8;0;269,21;2.705,60;ENEL ENERGIA SPA;7429682F87;SALDO Fatt.n. 004811129630  del 06/07/2018;25/07/2018;1015;1;392;1;Spese correnti;3;Acquisto di beni e servizi;2;Acquisto di servizi;5;Utenze e canoni;4;Energia elettrica;25/07/2018
1241;9;0;390,06;2.705,60;ENEL ENERGIA SPA;7429682F87;SALDO Fatt.n. 004811129621  del 06/07/2018;25/07/2018;1015;1;392;1;Spese correnti;3;Acquisto di beni e servizi;2;Acquisto di servizi;5;Utenze e canoni;4;Energia elettrica;25/07/2018
1241;10;0;392,32;2.705,60;ENEL ENERGIA SPA;7429682F87;SALDO Fatt.n. 004811129633  del 06/07/2018;25/07/2018;1015;1;392;1;Spese correnti;3;Acquisto di beni e servizi;2;Acquisto di servizi;5;Utenze e canoni;4;Energia elettrica;25/07/2018
1241;11;0;764,05;2.705,60;ENEL ENERGIA SPA;7429682F87;SALDO Fatt.n. 004811129611  del 06/07/2018;25/07/2018;1015;1;392;1;Spese correnti;3;Acquisto di beni e servizi;2;Acquisto di servizi;5;Utenze e canoni;4;Energia elettrica;25/07/2018
1242;1;0;22,52;114,08;ENEL ENERGIA SPA;7429682F87;SALDO Fatt.n. 004811129613  del 06/07/2018;25/07/2018;1090;1;393;1;Spese correnti;3;Acquisto di beni e servizi;2;Acquisto di servizi;5;Utenze e canoni;4;Energia elettrica;25/07/2018
1242;2;0;22,52;114,08;ENEL ENERGIA SPA;7429682F87;SALDO Fatt.n. 004811129618  del 06/07/2018;25/07/2018;1090;1;393;1;Spese correnti;3;Acquisto di beni e servizi;2;Acquisto di servizi;5;Utenze e canoni;4;Energia elettrica;25/07/2018
1242;3;0;25,1;114,08;ENEL ENERGIA SPA;7429682F87;SALDO Fatt.n. 004811129614  del 06/07/2018;25/07/2018;1090;1;393;1;Spese correnti;3;Acquisto di beni e servizi;2;Acquisto di servizi;5;Utenze e canoni;4;Energia elettrica;25/07/2018
1242;4;0;43,94;114,08;ENEL ENERGIA SPA;7429682F87;SALDO Fatt.n. 004811129634  del 06/07/2018;25/07/2018;1090;1;393;1;Spese correnti;3;Acquisto di beni e servizi;2;Acquisto di servizi;5;Utenze e canoni;4;Energia elettrica;25/07/2018
1243;1;0;22,52;85,84;ENEL ENERGIA SPA;7429682F87;SALDO Fatt.n. 004811129628  del 06/07/2018;25/07/2018;1302;2;394;1;Spese correnti;3;Acquisto di beni e servizi;2;Acquisto di servizi;5;Utenze e canoni;4;Energia elettrica;25/07/2018
1243;2;0;63,32;85,84;ENEL ENERGIA SPA;7429682F87;SALDO Fatt.n. 004811129610  del 06/07/2018;25/07/2018;1302;2;394;1;Spese correnti;3;Acquisto di beni e servizi;2;Acquisto di servizi;5;Utenze e canoni;4;Energia elettrica;25/07/2018
1244;1;0;154,45;154,45;ENEL ENERGIA SPA;7429682F87;SALDO Fatt.n. 004811129626  del 06/07/2018;25/07/2018;716;4;395;1;Spese correnti;3;Acquisto di beni e servizi;2;Acquisto di servizi;5;Utenze e canoni;4;Energia elettrica;25/07/2018
1245;1;0;188,71;188,71;ENEL ENERGIA SPA;7429682F87;SALDO Fatt.n. 004811129627  del 06/07/2018;25/07/2018;618;4;396;1;Spese correnti;3;Acquisto di beni e servizi;2;Acquisto di servizi;5;Utenze e canoni;4;Energia elettrica;25/07/2018
1246;1;0;28,23;429,66;ENEL ENERGIA SPA;7429682F87;SALDO Fatt.n. 004811129625  del 06/07/2018;25/07/2018;118;4;397;1;Spese correnti;3;Acquisto di beni e servizi;2;Acquisto di servizi;5;Utenze e canoni;4;Energia elettrica;25/07/2018
1246;2;0;72,97;429,66;ENEL ENERGIA SPA;7429682F87;SALDO Fatt.n. 004811129616  del 06/07/2018;25/07/2018;118;4;397;1;Spese correnti;3;Acquisto di beni e servizi;2;Acquisto di servizi;5;Utenze e canoni;4;Energia elettrica;25/07/2018
1246;3;0;328,46;429,66;ENEL ENERGIA SPA;7429682F87;SALDO Fatt.n. 004811129632  del 06/07/2018;25/07/2018;118;4;397;1;Spese correnti;3;Acquisto di beni e servizi;2;Acquisto di servizi;5;Utenze e canoni;4;Energia elettrica;25/07/2018
1247;1;0;134,05;134,05;ENEL ENERGIA SPA;7429682F87;SALDO Fatt.n. 004811129617  del 06/07/2018;25/07/2018;592;4;402;1;Spese correnti;3;Acquisto di beni e servizi;2;Acquisto di servizi;5;Utenze e canoni;4;Energia elettrica;25/07/2018
1248;1;0;27,01;27,01;ENEL ENERGIA SPA;7429682F87;SALDO Fatt.n. 004811198468  del 12/07/2018;25/07/2018;1486;1;404;1;Spese correnti;3;Acquisto di beni e servizi;2;Acquisto di servizi;5;Utenze e canoni;4;Energia elettrica;25/07/2018
1249;1;0;165,4;391,88;ENEL ENERGIA SPA;7429682F87;SALDO Fatt.n. 004811129624  del 06/07/2018;25/07/2018;820;1;405;1;Spese correnti;3;Acquisto di beni e servizi;2;Acquisto di servizi;5;Utenze e canoni;4;Energia elettrica;25/07/2018
1249;2;0;226,48;391,88;ENEL ENERGIA SPA;7429682F87;SALDO Fatt.n. 004811129612  del 06/07/2018;25/07/2018;820;1;405;1;Spese correnti;3;Acquisto di beni e servizi;2;Acquisto di servizi;5;Utenze e canoni;4;Energia elettrica;25/07/2018
1250;1;0;103,64;103,64;ENEL ENERGIA SPA;7429682F87;SALDO Fatt.n. 004811129622  del 06/07/2018;25/07/2018;1340;4;403;1;Spese correnti;3;Acquisto di beni e servizi;2;Acquisto di servizi;5;Utenze e canoni;4;Energia elettrica;25/07/2018
1251;1;0;65,37;65,37;ENEL ENERGIA SPA;Z7122ECA74;SALDO Fatt.n. 004811094849  del 06/07/2018;25/07/2018;744;1;135;1;Spese correnti;3;Acquisto di beni e servizi;2;Acquisto di servizi;5;Utenze e canoni;4;Energia elettrica;25/07/2018
1252;1;0;109,71;109,71;CARTOLIBRERIA ANNYCART;Z9C240A14D;SALDO Fatt.n. 8/PA  del 02/07/2018 VENDITA;25/07/2018;208;9;258;1;Spese correnti;3;Acquisto di beni e servizi;1;Acquisto di beni;2;Altri beni di consumo;6;Materiale informatico;25/07/2018
1254;1;0;951,6;951,6;NUOVA PRIMA;Z1123E422F;SALDO Fatt.n. 157-E/2018  del 30/06/2018;25/07/2018;1304;1;211;1;Spese correnti;3;Acquisto di beni e servizi;2;Acquisto di servizi;99;Altri servizi;999;Altri servizi diversi n.a.c.;25/07/2018
1255;1;0;244;244;MELIS ADOLFO;Z14240A1E7;ACCONTO Fatt.n. FATTPA 1_18  del 10/07/2018;25/07/2018;223;2;256;1;Spese correnti;3;Acquisto di beni e servizi;2;Acquisto di servizi;9;Manutenzione ordinaria e riparazioni;5;Manutenzione ordinaria e riparazioni di attrezzature;25/07/2018
1256;1;0;132,03;132,03;MELIS ADOLFO;Z14240A1E7;SALDO Fatt.n. FATTPA 1_18  del 10/07/2018;25/07/2018;208;2;257;1;Spese correnti;3;Acquisto di beni e servizi;1;Acquisto di beni;2;Altri beni di consumo;999;Altri beni e materiali di consumo n.a.c.;25/07/2018
1260;1;0;4.279,68;4.279,68;OMESSO NOMINATIVO NEL RISPETTO DELLA NORMATIVA SULLA PROTEZIONE DATI PERSONALI; ;LL.RR. 11/85 e 43/93. Erogazione provvidenze a favore dei nefropatici. Liquidazione in favore di n. 4 beneficiari. Gennaio - giugno 2018.;30/07/2018;1463;1;299;1;Spese correnti;4;Trasferimenti correnti;2;Trasferimenti correnti a Famiglie;2;Interventi assistenziali;999;Altri assegni e sussidi assistenziali;30/07/2018
1261;1;0;4.990,80;4.990,80;OMESSO NOMINATIVO NEL RISPETTO DELLA NORMATIVA SULLA PROTEZIONE DATI PERSONALI; ;LL.RR. 11/85 e 43/93. Erogazione provvidenze a favore dei nefropatici. Liquidazione in favore di n. 4 beneficiari. Gennaio - giugno 2018.;30/07/2018;1463;1;299;1;Spese correnti;4;Trasferimenti correnti;2;Trasferimenti correnti a Famiglie;2;Interventi assistenziali;999;Altri assegni e sussidi assistenziali;30/07/2018
1262;1;0;96,28;96,28;OMESSO NOMINATIVO NEL RISPETTO DELLA NORMATIVA SULLA PROTEZIONE DATI PERSONALI; ;LL.RR. 11/85 e 43/93. Erogazione provvidenze a favore dei nefropatici. Liquidazione in favore di n. 4 beneficiari. Gennaio - giugno 2018.;30/07/2018;1463;1;299;1;Spese correnti;4;Trasferimenti correnti;2;Trasferimenti correnti a Famiglie;2;Interventi assistenziali;999;Altri assegni e sussidi assistenziali;30/07/2018
1263;1;0;1.230,20;1.230,20;OMESSO NOMINATIVO NEL RISPETTO DELLA NORMATIVA SULLA PROTEZIONE DATI PERSONALI; ;LL.RR. 11/85 e 43/93. Erogazione provvidenze a favore dei nefropatici. Liquidazione in favore di n. 4 beneficiari. Gennaio - giugno 2018.;30/07/2018;1463;1;299;1;Spese correnti;4;Trasferimenti correnti;2;Trasferimenti correnti a Famiglie;2;Interventi assistenziali;999;Altri assegni e sussidi assistenziali;30/07/2018
1264;1;0;21,28;21,28;OMESSO NOMINATIVO NEL RISPETTO DELLA NORMATIVA SULLA PROTEZIONE DATI PERSONALI; ;L.R. 9/2004. Liquidazione provvidenze a favore di cittadini residenti in Sardegna affetti da neoplasia maligna. Liquidazione provvidenze in favore di quattro beneficiari. Gennaio - giugno 2018.;30/07/2018;1441;3;300;1;Spese correnti;4;Trasferimenti correnti;2;Trasferimenti correnti a Famiglie;2;Interventi assistenziali;999;Altri assegni e sussidi assistenziali;30/07/2018
1265;1;0;20,97;20,97;OMESSO NOMINATIVO NEL RISPETTO DELLA NORMATIVA SULLA PROTEZIONE DATI PERSONALI; ;L.R. 9/2004. Liquidazione provvidenze a favore di cittadini residenti in Sardegna affetti da neoplasia maligna. Liquidazione provvidenze in favore di quattro beneficiari. Gennaio - giugno 2018.;30/07/2018;1441;3;300;1;Spese correnti;4;Trasferimenti correnti;2;Trasferimenti correnti a Famiglie;2;Interventi assistenziali;999;Altri assegni e sussidi assistenziali;30/07/2018
1266;1;0;190,96;190,96;OMESSO NOMINATIVO NEL RISPETTO DELLA NORMATIVA SULLA PROTEZIONE DATI PERSONALI; ;L.R. 9/2004. Liquidazione provvidenze a favore di cittadini residenti in Sardegna affetti da neoplasia maligna. Liquidazione provvidenze in favore di quattro beneficiari. Gennaio - giugno 2018.;30/07/2018;1441;3;300;1;Spese correnti;4;Trasferimenti correnti;2;Trasferimenti correnti a Famiglie;2;Interventi assistenziali;999;Altri assegni e sussidi assistenziali;30/07/2018
1267;1;0;48,96;48,96;OMESSO NOMINATIVO NEL RISPETTO DELLA NORMATIVA SULLA PROTEZIONE DATI PERSONALI; ;L.R. 9/2004. Liquidazione provvidenze a favore di cittadini residenti in Sardegna affetti da neoplasia maligna. Liquidazione provvidenze in favore di quattro beneficiari. Gennaio - giugno 2018.;30/07/2018;1441;3;300;1;Spese correnti;4;Trasferimenti correnti;2;Trasferimenti correnti a Famiglie;2;Interventi assistenziali;999;Altri assegni e sussidi assistenziali;30/07/2018
1268;1;0;1.110,24;1.110,24;ASS. ITALIANA ASS. SPASTICI; ;L.R. 12/1985, art. 92. Trasporto persone disabili. Liquidazione in favore dell'AIAS Cagliari. I e II trimestre 2018.;30/07/2018;1458;1;301;1;Spese correnti;4;Trasferimenti correnti;3;Trasferimenti correnti a Imprese;99;Trasferimenti correnti a altre imprese;999;Trasferimenti correnti a altre imprese;30/07/2018
1269;1;0;10.024,99;10.024,99;ELETTRA APPALTI SRL;6649046655;SALDO Fatt.n. 1  del 05/07/2018 CERTIFICATO N. 2 PAGAMENTO 2 E ULTIMO SAL INTERVENTI DI MESSA IN SICUREZZA SCUOLA SECONDARIA DI CUI AL CONTRATTO REP 437 DEL 21.07.2016;30/07/2018;2530;2;377;2;Spese in conto capitale;2;Investimenti fissi lordi e acquisto di terreni;1;Beni materiali;9;Beni immobili;3;Fabbricati ad uso scolastico;30/07/2018
1270;1;0;3.786,71;3.786,71;OMESSO NOMINATIVO NEL RISPETTO DELLA NORMATIVA SULLA PROTEZIONE DATI PERSONALI; ;L. 09.01.1989, n. 13, art. 9. Concessione di contributi per il superamento e l'eliminazione delle barriere architettoniche negli privati. LIQUIDAZIONE  di spesa in favore di un beneficiario. Annualita 2017.;30/07/2018;1436;1;177;1;Spese correnti;4;Trasferimenti correnti;2;Trasferimenti correnti a Famiglie;2;Interventi assistenziali;999;Altri assegni e sussidi assistenziali;30/07/2018
1271;1;0;4.374,83;4.374,83;GARAU IGNAZIO;ZAA1AFAF50;SALDO Fatt.n. FatPAM 5  del 24/07/2018 Acconto completamento teatro;02/08/2018;2989;1;438;2;Spese in conto capitale;2;Investimenti fissi lordi e acquisto di terreni;1;Beni materiali;9;Beni immobili;18;Musei, teatri e biblioteche;02/08/2018
1272;1;0;1.971,53;1.971,53;I.M.E.C.O. S.A.S DI SPIGA IGNAZIO;Z982417015;SALDO Fatt.n. 110/PA/2018  del 25/07/2018 SERVIZI DI INSTALLAZIONE E MANUTENZIONE IMPIANTI ELETTRICI.;02/08/2018;822;2;261;1;Spese correnti;3;Acquisto di beni e servizi;2;Acquisto di servizi;9;Manutenzione ordinaria e riparazioni;4;Manutenzione ordinaria e riparazioni di impianti e macchinari;02/08/2018
1274;1;0;1.980,01;1.980,01;AS.TR.E.D. COOP. SOCIALE;Z8321734AD;ACCONTO Fatt.n. 13PU_PA2018  del 26/07/2018 CIG Z8321734AD;02/08/2018;1302;1;187;1;Spese correnti;3;Acquisto di beni e servizi;2;Acquisto di servizi;9;Manutenzione ordinaria e riparazioni;11;Manutenzione ordinaria e riparazioni di altri beni materiali;02/08/2018
1275;1;0;989,98;989,98;AS.TR.E.D. COOP. SOCIALE;Z8321734AD;SALDO Fatt.n. 13PU_PA2018  del 26/07/2018 CIG Z8321734AD;02/08/2018;1493;1;188;1;Spese correnti;3;Acquisto di beni e servizi;2;Acquisto di servizi;9;Manutenzione ordinaria e riparazioni;11;Manutenzione ordinaria e riparazioni di altri beni materiali;02/08/2018
1278;1;0;13,87;76,91;GESTORE DEI SERVIZI ENERGETICI; ;SALDO Fatt.n. 27925  del 20/06/2018 CORRISPETTIVO A COPERTURA DEGLI ONERI DI GESTIONE CONVENZIONE: N01E14214907;06/08/2018;592;4;281;1;Spese correnti;3;Acquisto di beni e servizi;2;Acquisto di servizi;5;Utenze e canoni;4;Energia elettrica;06/08/2018
1278;2;0;63,04;76,91;GESTORE DEI SERVIZI ENERGETICI; ;ACCONTO Fatt.n. 27925  del 20/06/2018 CORRISPETTIVO A COPERTURA DEGLI ONERI DI GESTIONE CONVENZIONE: N01E14214907;06/08/2018;592;4;281;1;Spese correnti;3;Acquisto di beni e servizi;2;Acquisto di servizi;5;Utenze e canoni;4;Energia elettrica;06/08/2018
1279;1;0;860;860;SCUOLA MATERNA PADRE MANZELLA; ;"A.E. 2017/2018 - IIQUIDAZIONI di spesa per la concessione di un contributo economico in favore dell'Istituto Suore del Getsemani - Scuola dell'Infanzia ""Padre Manzella"" di Sant'Andrea Frius, per la gestione della mensa scolastica.";07/08/2018;570;3;304;1;Spese correnti;4;Trasferimenti correnti;4;Trasferimenti correnti a Istituzioni Sociali Private;1;Trasferimenti correnti a Istituzioni Sociali Private;1;Trasferimenti correnti a Istituzioni Sociali Private;07/08/2018
1280;1;0;658,99;658,99;TENNIS CLUB FRIUS a.s.d.; ;Liquidazione di spesa per la concessione di un contributo economico straordinario in favore delle Societa Sportive locali, per far fronte alle spese di gestione degli Impianti Sportivi comunali e per lo svolgimento delle attivita agonistiche -  Stagi;07/08/2018;856;3;87;1;Spese correnti;4;Trasferimenti correnti;4;Trasferimenti correnti a Istituzioni Sociali Private;1;Trasferimenti correnti a Istituzioni Sociali Private;1;Trasferimenti correnti a Istituzioni Sociali Private;07/08/2018
1281;1;0;2.676,99;2.676,99;I.M.E.C.O. S.A.S DI SPIGA IGNAZIO;6,59E+52;ACCONTO Fatt.n. 70/PA/2018  del 09/05/2018 SERVIZI DI INSTALLAZIONE E MANUTENZIONE IMPIANTI ELETTRICI.;09/08/2018;1012;1;225;1;Spese correnti;3;Acquisto di beni e servizi;2;Acquisto di servizi;9;Manutenzione ordinaria e riparazioni;4;Manutenzione ordinaria e riparazioni di impianti e macchinari;09/08/2018
1282;1;0;528,99;528,99;I.M.E.C.O. S.A.S DI SPIGA IGNAZIO;6,59E+52;SALDO Fatt.n. 70/PA/2018  del 09/05/2018 SERVIZI DI INSTALLAZIONE E MANUTENZIONE IMPIANTI ELETTRICI.;09/08/2018;1007;3;226;1;Spese correnti;3;Acquisto di beni e servizi;1;Acquisto di beni;2;Altri beni di consumo;999;Altri beni e materiali di consumo n.a.c.;09/08/2018
1283;1;0;5.000,00;5.000,00;A.S.D.  SPORT VILLAGE;Z7023F2BA6;ACCONTO Fatt.n. FATTPA 2_18  del 30/07/2018;09/08/2018;824;1;265;1;Spese correnti;3;Acquisto di beni e servizi;2;Acquisto di servizi;99;Altri servizi;999;Altri servizi diversi n.a.c.;09/08/2018
1284;1;0;420;420;A.S.D.  SPORT VILLAGE;Z7023F2BA6;SALDO Fatt.n. FATTPA 2_18  del 30/07/2018;09/08/2018;1432;1;293;1;Spese correnti;4;Trasferimenti correnti;2;Trasferimenti correnti a Famiglie;2;Interventi assistenziali;999;Altri assegni e sussidi assistenziali;09/08/2018
1285;1;0;169,91;169,91;POSTE ITALIANE spa;Z4A1F1447A;SALDO Fatt.n. 8718262783  del 01/08/2018 Fattura Elettronica relativa all'Identificativo Rendiconto 2098308839;09/08/2018;118;7;228;1;Spese correnti;3;Acquisto di beni e servizi;2;Acquisto di servizi;16;Servizi amministrativi;2;Spese postali;09/08/2018
1286;1;0;75,47;75,47;ABBANOA  SPA; ;SALDO Fatt.n. 0150020180031612000  del 13/07/2018 Cliente 36431143 PDE 35595133;09/08/2018;900;3;140;1;Spese correnti;3;Acquisto di beni e servizi;2;Acquisto di servizi;5;Utenze e canoni;5;Acqua;09/08/2018
1287;1;0;506,88;506,88;ABBANOA  SPA; ;SALDO Fatt.n. 0150020180031610700  del 13/07/2018 Cliente 36425801 PDE 35405713;09/08/2018;716;7;141;1;Spese correnti;3;Acquisto di beni e servizi;2;Acquisto di servizi;5;Utenze e canoni;5;Acqua;09/08/2018
1288;1;0;868,1;868,1;ABBANOA  SPA; ;SALDO Fatt.n. 0150020180031610200  del 13/07/2018 Cliente 36425560 PDE 35405735;09/08/2018;618;8;142;1;Spese correnti;3;Acquisto di beni e servizi;2;Acquisto di servizi;5;Utenze e canoni;5;Acqua;09/08/2018
1289;1;0;425,4;425,4;ABBANOA  SPA; ;SALDO Fatt.n. 0150020180031612100  del 13/07/2018 Cliente 36431156 PDE 35405957;09/08/2018;820;3;144;1;Spese correnti;3;Acquisto di beni e servizi;2;Acquisto di servizi;5;Utenze e canoni;5;Acqua;09/08/2018
1290;1;0;118,51;118,51;ABBANOA  SPA; ;SALDO Fatt.n. 0150020180031610500  del 13/07/2018 Cliente 36425739 PDE 35405958;09/08/2018;820;3;144;1;Spese correnti;3;Acquisto di beni e servizi;2;Acquisto di servizi;5;Utenze e canoni;5;Acqua;09/08/2018
1291;1;0;777,44;777,44;ABBANOA  SPA; ;SALDO Fatt.n. 0150020180031611500  del 13/07/2018 Cliente 36428734 PDE 35405868;09/08/2018;1340;6;145;1;Spese correnti;3;Acquisto di beni e servizi;2;Acquisto di servizi;5;Utenze e canoni;5;Acqua;09/08/2018
1292;1;0;182,66;182,66;ABBANOA  SPA; ;SALDO Fatt.n. 0150020180031610400  del 13/07/2018 Cliente 36425737 PDE 35405609;09/08/2018;42;9;146;1;Spese correnti;3;Acquisto di beni e servizi;2;Acquisto di servizi;5;Utenze e canoni;5;Acqua;09/08/2018
1293;1;0;110,36;110,36;ABBANOA  SPA; ;SALDO Fatt.n. 0150020180031610600  del 13/07/2018 Cliente 36425793 PDE 35405755;09/08/2018;42;9;146;1;Spese correnti;3;Acquisto di beni e servizi;2;Acquisto di servizi;5;Utenze e canoni;5;Acqua;09/08/2018
1294;1;0;75,05;75,05;ABBANOA  SPA; ;SALDO Fatt.n. 0150020180031611400  del 13/07/2018 Cliente 36428723 PDE 35405190;09/08/2018;1302;5;152;1;Spese correnti;3;Acquisto di beni e servizi;2;Acquisto di servizi;5;Utenze e canoni;5;Acqua;09/08/2018
1295;1;0;11,61;11,61;ABBANOA  SPA; ;SALDO Fatt.n. 0150020180031611900  del 13/07/2018 Cliente 36431143 PDE 35406203;09/08/2018;1302;5;152;1;Spese correnti;3;Acquisto di beni e servizi;2;Acquisto di servizi;5;Utenze e canoni;5;Acqua;09/08/2018
1296;1;0;75,47;75,47;ABBANOA  SPA; ;SALDO Fatt.n. 0150020180031611800  del 13/07/2018 Cliente 36431141 PDE 35406202;09/08/2018;1302;5;152;1;Spese correnti;3;Acquisto di beni e servizi;2;Acquisto di servizi;5;Utenze e canoni;5;Acqua;09/08/2018
1297;1;0;150,67;150,67;ABBANOA  SPA; ;SALDO Fatt.n. 0150020180031610800  del 13/07/2018 Cliente 36425831 PDE 35405885;09/08/2018;1486;3;153;1;Spese correnti;3;Acquisto di beni e servizi;2;Acquisto di servizi;5;Utenze e canoni;5;Acqua;09/08/2018
1298;1;0;962;962;OMESSO NOMINATIVO NEL RISPETTO DELLA NORMATIVA SULLA PROTEZIONE DATI PERSONALI; ;ECONOMIA GESTIONE ANNO 2017 - LIQUIDAZIONE LUGLIO 2018;09/08/2018;1429;1;605;1;Spese correnti;4;Trasferimenti correnti;2;Trasferimenti correnti a Famiglie;2;Interventi assistenziali;999;Altri assegni e sussidi assistenziali;09/08/2018
1299;1;0;254,92;254,92;OMESSO NOMINATIVO NEL RISPETTO DELLA NORMATIVA SULLA PROTEZIONE DATI PERSONALI; ;L. 162/98. Piani personalizzati di sostegno in favore di persone con handicap grave. Finanziamento maggio - dicembre 2018. LIQUIDAZIONE di spesa.;09/08/2018;1429;1;179;1;Spese correnti;4;Trasferimenti correnti;2;Trasferimenti correnti a Famiglie;2;Interventi assistenziali;999;Altri assegni e sussidi assistenziali;09/08/2018
1300;1;0;840,34;840,34;OMESSO NOMINATIVO NEL RISPETTO DELLA NORMATIVA SULLA PROTEZIONE DATI PERSONALI; ;L. 162/98. Piani personalizzati di sostegno in favore di persone con handicap grave. Finanziamento maggio - dicembre 2018.LIQUIDAZIONE di spesa. LUGLIO  2018;09/08/2018;1429;1;179;1;Spese correnti;4;Trasferimenti correnti;2;Trasferimenti correnti a Famiglie;2;Interventi assistenziali;999;Altri assegni e sussidi assistenziali;09/08/2018
1301;1;0;136,18;136,18;OMESSO NOMINATIVO NEL RISPETTO DELLA NORMATIVA SULLA PROTEZIONE DATI PERSONALI; ;L. 162/98. Piani personalizzati di sostegno in favore di persone con handicap grave. Finanziamento maggio - dicembre 2018. LIQUIDAZIONE di spesa. MESE LUGLIO 2018;09/08/2018;1429;1;179;1;Spese correnti;4;Trasferimenti correnti;2;Trasferimenti correnti a Famiglie;2;Interventi assistenziali;999;Altri assegni e sussidi assistenziali;09/08/2018
1302;1;0;697;697;OMESSO NOMINATIVO NEL RISPETTO DELLA NORMATIVA SULLA PROTEZIONE DATI PERSONALI; ;L. 162/98. Piani personalizzati di sostegno in favore di persone con handicap grave. Finanziamento maggio - dicembre 2018. LIQUIDAZIONE di spesa.MESE LUGLIO 2018;09/08/2018;1429;1;179;1;Spese correnti;4;Trasferimenti correnti;2;Trasferimenti correnti a Famiglie;2;Interventi assistenziali;999;Altri assegni e sussidi assistenziali;09/08/2018
1303;1;0;190,85;190,85;OMESSO NOMINATIVO NEL RISPETTO DELLA NORMATIVA SULLA PROTEZIONE DATI PERSONALI; ;L. 162/98. Piani personalizzati di sostegno in favore di persone con handicap grave. Finanziamento Luglio 2018.LIQUIDAZIONE di spesa.mese luglio 2018;09/08/2018;1429;1;179;1;Spese correnti;4;Trasferimenti correnti;2;Trasferimenti correnti a Famiglie;2;Interventi assistenziali;999;Altri assegni e sussidi assistenziali;09/08/2018
1304;1;0;138,41;138,41;OMESSO NOMINATIVO NEL RISPETTO DELLA NORMATIVA SULLA PROTEZIONE DATI PERSONALI; ;L. 162/98. Piani personalizzati di sostegno in favore di persone con handicap grave. Finanziamento maggio - dicembre 2018.Liquidazione di spesa.;09/08/2018;1429;1;179;1;Spese correnti;4;Trasferimenti correnti;2;Trasferimenti correnti a Famiglie;2;Interventi assistenziali;999;Altri assegni e sussidi assistenziali;09/08/2018
1305;1;0;820,36;820,36;OMESSO NOMINATIVO NEL RISPETTO DELLA NORMATIVA SULLA PROTEZIONE DATI PERSONALI; ;L. 162/98. Piani personalizzati di sostegno in favore di persone con handicap grave. Finanziamento maggio - dicembre 2018. liquidazione di spesa.luglio 2018;09/08/2018;1429;1;179;1;Spese correnti;4;Trasferimenti correnti;2;Trasferimenti correnti a Famiglie;2;Interventi assistenziali;999;Altri assegni e sussidi assistenziali;09/08/2018
1306;1;0;220;220;OMESSO NOMINATIVO NEL RISPETTO DELLA NORMATIVA SULLA PROTEZIONE DATI PERSONALI; ;L. 162/98. Piani personalizzati di sostegno in favore di persone con handicap grave. Finanziamento maggio - dicembre 2018.LIQUIDAZIONE di spesa.;09/08/2018;1429;1;179;1;Spese correnti;4;Trasferimenti correnti;2;Trasferimenti correnti a Famiglie;2;Interventi assistenziali;999;Altri assegni e sussidi assistenziali;09/08/2018
1307;1;0;1.020,00;1.020,00;OMESSO NOMINATIVO NEL RISPETTO DELLA NORMATIVA SULLA PROTEZIONE DATI PERSONALI; ;L. 162/98. Piani personalizzati di sostegno in favore di persone con handicap grave. Finanziamento maggio - dicembre 2018.Liquidazione di spesa.;09/08/2018;1429;1;179;1;Spese correnti;4;Trasferimenti correnti;2;Trasferimenti correnti a Famiglie;2;Interventi assistenziali;999;Altri assegni e sussidi assistenziali;09/08/2018
1308;1;0;120;120;OMESSO NOMINATIVO NEL RISPETTO DELLA NORMATIVA SULLA PROTEZIONE DATI PERSONALI; ;L. 162/98. Piani personalizzati di sostegno in favore di persone con handicap grave. Finanziamento maggio - dicembre 2018.liquidazione di spesa.mese luglio 2018;09/08/2018;1429;1;179;1;Spese correnti;4;Trasferimenti correnti;2;Trasferimenti correnti a Famiglie;2;Interventi assistenziali;999;Altri assegni e sussidi assistenziali;09/08/2018
1309;1;0;212,15;212,15;OMESSO NOMINATIVO NEL RISPETTO DELLA NORMATIVA SULLA PROTEZIONE DATI PERSONALI; ;L. 162/98. Piani personalizzati di sostegno in favore di persone con handicap grave. Finanziamento maggio - dicembre 2018. Liquidazione di spesa.;09/08/2018;1429;1;179;1;Spese correnti;4;Trasferimenti correnti;2;Trasferimenti correnti a Famiglie;2;Interventi assistenziali;999;Altri assegni e sussidi assistenziali;09/08/2018
1310;1;0;322,78;322,78;OMESSO NOMINATIVO NEL RISPETTO DELLA NORMATIVA SULLA PROTEZIONE DATI PERSONALI; ;L. 162/98. Piani personalizzati di sostegno in favore di persone con handicap grave. Finanziamento maggio - dicembre 2018. liquidazione di spesa.mese Luglio  2018;09/08/2018;1429;1;179;1;Spese correnti;4;Trasferimenti correnti;2;Trasferimenti correnti a Famiglie;2;Interventi assistenziali;999;Altri assegni e sussidi assistenziali;09/08/2018
1311;1;0;419,22;419,22;OMESSO NOMINATIVO NEL RISPETTO DELLA NORMATIVA SULLA PROTEZIONE DATI PERSONALI; ;L. 162/98. Piani personalizzati di sostegno in favore di persone con handicap grave. Finanziamento maggio - dicembre 2018.Liquidazione di spesa.;09/08/2018;1429;1;179;1;Spese correnti;4;Trasferimenti correnti;2;Trasferimenti correnti a Famiglie;2;Interventi assistenziali;999;Altri assegni e sussidi assistenziali;09/08/2018
1312;1;0;878;878;OMESSO NOMINATIVO NEL RISPETTO DELLA NORMATIVA SULLA PROTEZIONE DATI PERSONALI; ;L. 162/98. Piani personalizzati di sostegno in favore di persone con handicap grave. Finanziamento maggio - dicembre 2018 liquidazione di spesa in favore di n. 52 beneficiari.;09/08/2018;1429;1;179;1;Spese correnti;4;Trasferimenti correnti;2;Trasferimenti correnti a Famiglie;2;Interventi assistenziali;999;Altri assegni e sussidi assistenziali;09/08/2018
1313;1;0;258;258;OMESSO NOMINATIVO NEL RISPETTO DELLA NORMATIVA SULLA PROTEZIONE DATI PERSONALI; ;L. 162/98. Piani personalizzati di sostegno in favore di persone con handicap grave. Finanziamento maggio - dicembre 2018. Liquidazione di spes mese LUGLIO 2018;09/08/2018;1429;1;179;1;Spese correnti;4;Trasferimenti correnti;2;Trasferimenti correnti a Famiglie;2;Interventi assistenziali;999;Altri assegni e sussidi assistenziali;09/08/2018
1314;1;0;93,59;93,59;OMESSO NOMINATIVO NEL RISPETTO DELLA NORMATIVA SULLA PROTEZIONE DATI PERSONALI; ;L. 162/98. Piani personalizzati di sostegno in favore di persone con handicap grave. Finanziamento maggio - dicembre 2018. LIQUIDAZIONE di spesa.;09/08/2018;1429;1;179;1;Spese correnti;4;Trasferimenti correnti;2;Trasferimenti correnti a Famiglie;2;Interventi assistenziali;999;Altri assegni e sussidi assistenziali;09/08/2018
1315;1;0;147,03;147,03;OMESSO NOMINATIVO NEL RISPETTO DELLA NORMATIVA SULLA PROTEZIONE DATI PERSONALI; ;L. 162/98. Piani personalizzati di sostegno in favore di persone con handicap grave. Finanziamento maggio - dicembre 2018. Liquidazione di spesa.;09/08/2018;1429;1;179;1;Spese correnti;4;Trasferimenti correnti;2;Trasferimenti correnti a Famiglie;2;Interventi assistenziali;999;Altri assegni e sussidi assistenziali;09/08/2018
1316;1;0;156,66;156,66;OMESSO NOMINATIVO NEL RISPETTO DELLA NORMATIVA SULLA PROTEZIONE DATI PERSONALI; ;L. 162/98. Piani personalizzati di sostegno in favore di persone con handicap grave. Finanziamento maggio - dicembre 2018.liquidazione di spesa.;09/08/2018;1429;1;179;1;Spese correnti;4;Trasferimenti correnti;2;Trasferimenti correnti a Famiglie;2;Interventi assistenziali;999;Altri assegni e sussidi assistenziali;09/08/2018
1317;1;0;280,82;280,82;OMESSO NOMINATIVO NEL RISPETTO DELLA NORMATIVA SULLA PROTEZIONE DATI PERSONALI; ;L. 162/98. Piani personalizzati di sostegno in favore di persone con handicap grave. Finanziamento maggio - dicembre 2018. Liquidazione di spesa.;09/08/2018;1429;1;179;1;Spese correnti;4;Trasferimenti correnti;2;Trasferimenti correnti a Famiglie;2;Interventi assistenziali;999;Altri assegni e sussidi assistenziali;09/08/2018
1318;1;0;329,62;329,62;OMESSO NOMINATIVO NEL RISPETTO DELLA NORMATIVA SULLA PROTEZIONE DATI PERSONALI; ;L. 162/98. Piani personalizzati di sostegno in favore di persone con handicap grave. Finanziamento maggio - dicembre 2018. Liquidazione di spesa.;09/08/2018;1429;1;179;1;Spese correnti;4;Trasferimenti correnti;2;Trasferimenti correnti a Famiglie;2;Interventi assistenziali;999;Altri assegni e sussidi assistenziali;09/08/2018
1319;1;0;335,21;335,21;OMESSO NOMINATIVO NEL RISPETTO DELLA NORMATIVA SULLA PROTEZIONE DATI PERSONALI; ;L. 162/98. Piani personalizzati di sostegno in favore di persone con handicap grave. Finanziamento maggio - dicembre 2018. liquidazione di spesa.;09/08/2018;1429;1;179;1;Spese correnti;4;Trasferimenti correnti;2;Trasferimenti correnti a Famiglie;2;Interventi assistenziali;999;Altri assegni e sussidi assistenziali;09/08/2018
1320;1;0;208,55;208,55;OMESSO NOMINATIVO NEL RISPETTO DELLA NORMATIVA SULLA PROTEZIONE DATI PERSONALI; ;L. 162/98. Piani personalizzati di sostegno in favore di persone con handicap grave. Finanziamento maggio - dicembre 2018. liquidazione di spesa.;09/08/2018;1429;1;179;1;Spese correnti;4;Trasferimenti correnti;2;Trasferimenti correnti a Famiglie;2;Interventi assistenziali;999;Altri assegni e sussidi assistenziali;09/08/2018
1321;1;0;133,67;133,67;OMESSO NOMINATIVO NEL RISPETTO DELLA NORMATIVA SULLA PROTEZIONE DATI PERSONALI; ;L. 162/98. Piani personalizzati di sostegno in favore di persone con handicap grave. Finanziamento maggio - dicembre 2018. Liquidazione di spesa.;09/08/2018;1429;1;179;1;Spese correnti;4;Trasferimenti correnti;2;Trasferimenti correnti a Famiglie;2;Interventi assistenziali;999;Altri assegni e sussidi assistenziali;09/08/2018
1322;1;0;312,54;312,54;OMESSO NOMINATIVO NEL RISPETTO DELLA NORMATIVA SULLA PROTEZIONE DATI PERSONALI; ;L. 162/98. Piani personalizzati di sostegno in favore di persone con handicap grave. Finanziamento maggio - dicembre 2018. Liquidazione di spesa.;09/08/2018;1429;1;179;1;Spese correnti;4;Trasferimenti correnti;2;Trasferimenti correnti a Famiglie;2;Interventi assistenziali;999;Altri assegni e sussidi assistenziali;09/08/2018
1323;1;0;200;200;OMESSO NOMINATIVO NEL RISPETTO DELLA NORMATIVA SULLA PROTEZIONE DATI PERSONALI; ;L. 162/98. Piani personalizzati di sostegno in favore di persone con handicap grave. Finanziamento maggio - dicembre 2018. liquidazione di spesa.;09/08/2018;1429;1;179;1;Spese correnti;4;Trasferimenti correnti;2;Trasferimenti correnti a Famiglie;2;Interventi assistenziali;999;Altri assegni e sussidi assistenziali;09/08/2018
1324;1;0;958,33;958,33;OMESSO NOMINATIVO NEL RISPETTO DELLA NORMATIVA SULLA PROTEZIONE DATI PERSONALI; ;L. 162/98. Piani personalizzati di sostegno in favore di persone con handicap grave. Finanziamento maggio - dicembre 2018. liquidazione di spesa.;09/08/2018;1429;1;179;1;Spese correnti;4;Trasferimenti correnti;2;Trasferimenti correnti a Famiglie;2;Interventi assistenziali;999;Altri assegni e sussidi assistenziali;09/08/2018
1325;1;0;375;375;OMESSO NOMINATIVO NEL RISPETTO DELLA NORMATIVA SULLA PROTEZIONE DATI PERSONALI; ;L. 162/98. Piani personalizzati di sostegno in favore di persone con handicap grave. Finanziamento maggio - dicembre 2018.liquidazione di spesa.;09/08/2018;1429;1;179;1;Spese correnti;4;Trasferimenti correnti;2;Trasferimenti correnti a Famiglie;2;Interventi assistenziali;999;Altri assegni e sussidi assistenziali;09/08/2018
1326;1;0;750,06;750,06;OMESSO NOMINATIVO NEL RISPETTO DELLA NORMATIVA SULLA PROTEZIONE DATI PERSONALI; ;L. 162/98. Piani personalizzati di sostegno in favore di persone con handicap grave. Finanziamento maggio - dicembre 2018. liquidazione di spesa.;09/08/2018;1429;1;179;1;Spese correnti;4;Trasferimenti correnti;2;Trasferimenti correnti a Famiglie;2;Interventi assistenziali;999;Altri assegni e sussidi assistenziali;09/08/2018
1327;1;0;311;311;OMESSO NOMINATIVO NEL RISPETTO DELLA NORMATIVA SULLA PROTEZIONE DATI PERSONALI; ;L. 162/98. Piani personalizzati di sostegno in favore di persone con handicap grave. Finanziamento maggio - dicembre 2018.liquidazione di spesa.;09/08/2018;1429;1;179;1;Spese correnti;4;Trasferimenti correnti;2;Trasferimenti correnti a Famiglie;2;Interventi assistenziali;999;Altri assegni e sussidi assistenziali;09/08/2018
1328;1;0;125;125;OMESSO NOMINATIVO NEL RISPETTO DELLA NORMATIVA SULLA PROTEZIONE DATI PERSONALI; ;L. 162/98. Piani personalizzati di sostegno in favore di persone con handicap grave. Finanziamento maggio - dicembre 2018. Impegno di spesa.;09/08/2018;1429;1;179;1;Spese correnti;4;Trasferimenti correnti;2;Trasferimenti correnti a Famiglie;2;Interventi assistenziali;999;Altri assegni e sussidi assistenziali;09/08/2018
1365;1;0;1.301,48;1.301,48;DIVERSI DIPENDENTI; ;LIQUIDAZIONE DI SPESA PER LA CORRESPONSIONE DELL' INDENNITA' DI FUNZIONE ANNO 2018;09/08/2018;14;1;6;1;Spese correnti;3;Acquisto di beni e servizi;2;Acquisto di servizi;1;Organi e incarichi istituzionali dell'amministrazione;1;Organi istituzionali dell'amministrazione - Indennità;09/08/2018
1376;1;0;0,07;0,07;AGENZIA DELLE ENTRATE - RISCOSSIONE; ;COMMISSIONI RISCOSSIONI TRIBUTI;10/08/2018;190;1;946;1;Spese correnti;3;Acquisto di beni e servizi;2;Acquisto di servizi;3;Aggi di riscossione;999;Altri aggi di riscossione n.a.c.;10/08/2018
1377;1;0;1,04;1,04;AGENZIA DELLE ENTRATE - RISCOSSIONE; ;COMMISSIONI RISCOSSIONI TRIBUTI;10/08/2018;190;1;946;1;Spese correnti;3;Acquisto di beni e servizi;2;Acquisto di servizi;3;Aggi di riscossione;999;Altri aggi di riscossione n.a.c.;10/08/2018
1378;1;0;0,04;0,04;AGENZIA DELLE ENTRATE - RISCOSSIONE; ;COMMISSIONI RISCOSSIONI TRIBUTI;10/08/2018;190;1;946;1;Spese correnti;3;Acquisto di beni e servizi;2;Acquisto di servizi;3;Aggi di riscossione;999;Altri aggi di riscossione n.a.c.;10/08/2018
1379;1;0;0,91;0,91;AGENZIA DELLE ENTRATE - RISCOSSIONE; ;SPESE RISCOSSIONE TRIBUTI;10/08/2018;190;1;923;1;Spese correnti;3;Acquisto di beni e servizi;2;Acquisto di servizi;3;Aggi di riscossione;999;Altri aggi di riscossione n.a.c.;10/08/2018
1380;1;0;0,04;0,04;AGENZIA DELLE ENTRATE - RISCOSSIONE; ;SPESE RISCOSSIONE TRIBUTI;10/08/2018;190;1;923;1;Spese correnti;3;Acquisto di beni e servizi;2;Acquisto di servizi;3;Aggi di riscossione;999;Altri aggi di riscossione n.a.c.;10/08/2018
1381;1;0;800;800;OMESSO NOMINATIVO NEL RISPETTO DELLA NORMATIVA SULLA PROTEZIONE DATI PERSONALI; ;PROGETTO RITORNARE A CASA LIQUIDAZIONE MESE  LUGLIO - DICEMBRE 2018;10/08/2018;1448;1;969;1;Spese correnti;4;Trasferimenti correnti;2;Trasferimenti correnti a Famiglie;2;Interventi assistenziali;999;Altri assegni e sussidi assistenziali;10/08/2018
1382;1;0;260,85;260,85;OMESSO NOMINATIVO NEL RISPETTO DELLA NORMATIVA SULLA PROTEZIONE DATI PERSONALI; ;Legge regionale n. 4 dell'11/05/2006, art. 17, comma 1. Finanziamento per il programma sperimentale  Ritornare a casa. Impegno di spesa in favore di un beneficiario. Luglio -  2018.;10/08/2018;1448;1;295;1;Spese correnti;4;Trasferimenti correnti;2;Trasferimenti correnti a Famiglie;2;Interventi assistenziali;999;Altri assegni e sussidi assistenziali;10/08/2018
1383;1;0;265,21;265,21;OMESSO NOMINATIVO NEL RISPETTO DELLA NORMATIVA SULLA PROTEZIONE DATI PERSONALI; ;"Legge regionale n. 4 dell'11/05/2006, art. 17, comma 1. Finanziamento per il programma sperimentale ""Ritornare a casa"". LIQUIDAZIONE di spesa in favore di un beneficiario. Luglio - dicembre 2018.";10/08/2018;1448;5;296;1;Spese correnti;4;Trasferimenti correnti;2;Trasferimenti correnti a Famiglie;2;Interventi assistenziali;999;Altri assegni e sussidi assistenziali;10/08/2018
1384;1;0;328,19;328,19;COSMAT SRL;ZE12180C39;SALDO Fatt.n. 6/PA  del 25/07/2018 CIG: ZE12180C39;21/08/2018;3264;1;549;2;Spese in conto capitale;2;Investimenti fissi lordi e acquisto di terreni;1;Beni materiali;9;Beni immobili;12;Infrastrutture stradali;21/08/2018
1385;1;0;2,68;2,68;TESORERIA PROVINCIALE  DELLO STATO; ;Codice ente L113A4 Capo X Capitolo 3579/00 anno 2017 Comune di Sant'Andrea Frius;22/08/2018;1046;1;308;1;Spese correnti;4;Trasferimenti correnti;1;Trasferimenti correnti a Amministrazioni Pubbliche;1;Trasferimenti correnti a Amministrazioni Centrali;1;Trasferimenti correnti a Ministeri;22/08/2018
1386;1;0;6,4;6,4;TESORERIA PROVINCIALE  DELLO STATO; ;Codice ente L113A4 Capo X Capitolo 3579/00 anno 2006 (data 31.12.2007) Comune di Sant'Andrea Frius;22/08/2018;1046;1;308;1;Spese correnti;4;Trasferimenti correnti;1;Trasferimenti correnti a Amministrazioni Pubbliche;1;Trasferimenti correnti a Amministrazioni Centrali;1;Trasferimenti correnti a Ministeri;22/08/2018
1387;1;0;124,8;124,8;GRAFICHE E GASPARI SRL;Z12241ECC3;SALDO Fatt.n. 12580  del 24/07/2018;23/08/2018;274;7;263;1;Spese correnti;3;Acquisto di beni e servizi;1;Acquisto di beni;2;Altri beni di consumo;1;Carta, cancelleria e stampati;23/08/2018
1390;1;0;260,01;260,01;FADDA GIANNI;Z0C24326DB;SALDO Fatt.n. 24/D  del 31/07/2018 VENDITA;24/08/2018;208;2;282;1;Spese correnti;3;Acquisto di beni e servizi;1;Acquisto di beni;2;Altri beni di consumo;999;Altri beni e materiali di consumo n.a.c.;24/08/2018
1398;1;0;3.205,98;3.205,98;I.M.E.C.O. S.A.S DI SPIGA IGNAZIO;6,59E+52;SALDO Fatt.n. 117/PA/2018  del 02/08/2018 SERVIZI DI INSTALLAZIONE E MANUTENZIONE IMPIANTI ELETTRICI.;29/08/2018;1012;1;225;1;Spese correnti;3;Acquisto di beni e servizi;2;Acquisto di servizi;9;Manutenzione ordinaria e riparazioni;4;Manutenzione ordinaria e riparazioni di impianti e macchinari;29/08/2018
1399;1;0;143,84;143,84;ENEL ENERGIA SPA;Z7122ECA74;SALDO Fatt.n. 004811363016  del 07/08/2018;29/08/2018;744;1;135;1;Spese correnti;3;Acquisto di beni e servizi;2;Acquisto di servizi;5;Utenze e canoni;4;Energia elettrica;29/08/2018
1400;1;0;-4,88;37,89;ENEL ENERGIA SPA;Z7122ECA74;SALDO Fatt.n. 004811087677  del 03/07/2018;29/08/2018;744;1;135;1;Spese correnti;3;Acquisto di beni e servizi;2;Acquisto di servizi;5;Utenze e canoni;4;Energia elettrica;29/08/2018
1400;2;0;4,88;37,89;ENEL ENERGIA SPA;Z7122ECA74;SALDO Fatt.n. 004811067222  del 23/06/2018;29/08/2018;744;1;135;1;Spese correnti;3;Acquisto di beni e servizi;2;Acquisto di servizi;5;Utenze e canoni;4;Energia elettrica;29/08/2018
1400;3;0;4,88;37,89;ENEL ENERGIA SPA;Z7122ECA74;SALDO Fatt.n. 004811087680  del 03/07/2018;29/08/2018;744;1;135;1;Spese correnti;3;Acquisto di beni e servizi;2;Acquisto di servizi;5;Utenze e canoni;4;Energia elettrica;29/08/2018
1400;4;0;33,01;37,89;ENEL ENERGIA SPA;Z7122ECA74;SALDO Fatt.n. 004811087679  del 03/07/2018;29/08/2018;744;1;135;1;Spese correnti;3;Acquisto di beni e servizi;2;Acquisto di servizi;5;Utenze e canoni;4;Energia elettrica;29/08/2018
1401;1;0;67,3;326,4;KUWAIT PETROLEUM ITALIA SPA;Z621D28DB4;SALDO Fatt.n. PJ00190821  del 31/07/2018;29/08/2018;208;8;508;1;Spese correnti;3;Acquisto di beni e servizi;1;Acquisto di beni;2;Altri beni di consumo;2;Carburanti, combustibili e lubrificanti;29/08/2018
1401;2;0;259,1;326,4;KUWAIT PETROLEUM ITALIA SPA;Z621D28DB4;ACCONTO Fatt.n. PJ00190821  del 31/07/2018;29/08/2018;208;8;508;1;Spese correnti;3;Acquisto di beni e servizi;1;Acquisto di beni;2;Altri beni di consumo;2;Carburanti, combustibili e lubrificanti;29/08/2018
1402;1;0;3.227,44;3.227,44;AUTORITA' D'AMBITO AMBITO TERRITOR.OTTIMALE SARDEGNA; ;Liquidazione di spesa quota fondo consortile Autorita d'Ambito  Ambito Territoriale Ottimale della Sardegna triennio 2016-2018.;29/08/2018;48;1;379;1;Spese correnti;4;Trasferimenti correnti;3;Trasferimenti correnti a Imprese;2;Trasferimenti correnti a altre imprese partecipate;1;Trasferimenti correnti a altre imprese partecipate;29/08/2018
1403;1;0;71,99;182,26;TELECOM ITALIA S.P.A-TIM S.P.A.Direz e coordin.Vivendi;Z1713E63AA;SALDO Fatt.n. 8R00153702  del 06/08/2018 5BIM 2018;29/08/2018;618;3;427;1;Spese correnti;3;Acquisto di beni e servizi;2;Acquisto di servizi;5;Utenze e canoni;1;Telefonia fissa;29/08/2018
1403;2;0;110,27;182,26;TELECOM ITALIA S.P.A-TIM S.P.A.Direz e coordin.Vivendi;Z1713E63AA;SALDO Fatt.n. 8R00153682  del 06/08/2018 5BIM 2018;29/08/2018;618;3;427;1;Spese correnti;3;Acquisto di beni e servizi;2;Acquisto di servizi;5;Utenze e canoni;1;Telefonia fissa;29/08/2018
1404;1;0;148,85;148,85;TELECOM ITALIA S.P.A-TIM S.P.A.Direz e coordin.Vivendi;Z1713E63AA;ACCONTO Fatt.n. 8R00153513  del 06/08/2018 5BIM 2018;29/08/2018;592;3;429;1;Spese correnti;3;Acquisto di beni e servizi;2;Acquisto di servizi;5;Utenze e canoni;1;Telefonia fissa;29/08/2018
1405;1;0;52,79;52,79;TELECOM ITALIA S.P.A-TIM S.P.A.Direz e coordin.Vivendi;Z1713E63AA;ACCONTO Fatt.n. 8R00152596  del 06/08/2018 5BIM 2018;29/08/2018;118;3;430;1;Spese correnti;3;Acquisto di beni e servizi;2;Acquisto di servizi;5;Utenze e canoni;1;Telefonia fissa;29/08/2018
1406;1;0;16,02;63,75;TELECOM ITALIA S.P.A-TIM S.P.A.Direz e coordin.Vivendi;Z1713E63AA;SALDO Fatt.n. 8R00153513  del 06/08/2018 5BIM 2018;29/08/2018;280;3;433;1;Spese correnti;3;Acquisto di beni e servizi;2;Acquisto di servizi;5;Utenze e canoni;1;Telefonia fissa;29/08/2018
1406;2;0;47,73;63,75;TELECOM ITALIA S.P.A-TIM S.P.A.Direz e coordin.Vivendi;Z1713E63AA;SALDO Fatt.n. 8R00152596  del 06/08/2018 5BIM 2018;29/08/2018;280;3;433;1;Spese correnti;3;Acquisto di beni e servizi;2;Acquisto di servizi;5;Utenze e canoni;1;Telefonia fissa;29/08/2018
1407;1;0;140,21;140,21;TELECOM ITALIA S.P.A-TIM S.P.A.Direz e coordin.Vivendi;Z1713E63AA;SALDO Fatt.n. 8R00152925  del 06/08/2018 5BIM 2018;29/08/2018;716;3;428;1;Spese correnti;3;Acquisto di beni e servizi;2;Acquisto di servizi;5;Utenze e canoni;1;Telefonia fissa;29/08/2018
1408;1;0;35,38;169,58;TELECOM ITALIA S.P.A-TIM S.P.A.Direz e coordin.Vivendi;Z1713E63AA;SALDO Fatt.n. 8R00152718  del 06/08/2018 5BIM 2018;29/08/2018;1340;4;434;1;Spese correnti;3;Acquisto di beni e servizi;2;Acquisto di servizi;5;Utenze e canoni;1;Telefonia fissa;29/08/2018
1408;2;0;134,2;169,58;TELECOM ITALIA S.P.A-TIM S.P.A.Direz e coordin.Vivendi;Z1713E63AA;SALDO Fatt.n. 8R00153067  del 06/08/2018 5BIM 2018;29/08/2018;1340;4;434;1;Spese correnti;3;Acquisto di beni e servizi;2;Acquisto di servizi;5;Utenze e canoni;1;Telefonia fissa;29/08/2018
1409;1;0;124,62;124,62;TELECOM ITALIA S.P.A-TIM S.P.A.Direz e coordin.Vivendi;Z4F23F9B5A;SALDO Fatt.n. 8R00152978  del 06/08/2018 5BIM 2018;29/08/2018;280;3;433;1;Spese correnti;3;Acquisto di beni e servizi;2;Acquisto di servizi;5;Utenze e canoni;1;Telefonia fissa;29/08/2018
1411;1;0;200;200;OMESSO NOMINATIVO NEL RISPETTO DELLA NORMATIVA SULLA PROTEZIONE DATI PERSONALI; ;"Legge Regionale 2 agosto 2016, n 18. Fondo regionale per il reddito di inclusione sociale (REIS) ""Aggiudu torrau"". Annualita 2017. LIQUIDAZIONE di spesa.";30/08/2018;1440;3;526;1;Spese correnti;4;Trasferimenti correnti;2;Trasferimenti correnti a Famiglie;2;Interventi assistenziali;999;Altri assegni e sussidi assistenziali;30/08/2018
1412;1;0;120;120;OMESSO NOMINATIVO NEL RISPETTO DELLA NORMATIVA SULLA PROTEZIONE DATI PERSONALI; ;"Legge Regionale 2 agosto 2016, n 18. Fondo regionale per il reddito di inclusione sociale (REIS) ""Aggiudu torrau"". Annualita 2017. Liquidazione  di spesa.";30/08/2018;1440;3;526;1;Spese correnti;4;Trasferimenti correnti;2;Trasferimenti correnti a Famiglie;2;Interventi assistenziali;999;Altri assegni e sussidi assistenziali;30/08/2018
1413;1;0;120;120;OMESSO NOMINATIVO NEL RISPETTO DELLA NORMATIVA SULLA PROTEZIONE DATI PERSONALI; ;"Legge Regionale 2 agosto 2016, n 18. Fondo regionale per il reddito di inclusione sociale (REIS) ""Aggiudu torrau"". Annualita 2017. Liquidazione di spesa.";30/08/2018;1440;3;526;1;Spese correnti;4;Trasferimenti correnti;2;Trasferimenti correnti a Famiglie;2;Interventi assistenziali;999;Altri assegni e sussidi assistenziali;30/08/2018
1414;1;0;320;320;OMESSO NOMINATIVO NEL RISPETTO DELLA NORMATIVA SULLA PROTEZIONE DATI PERSONALI; ;"Legge Regionale 2 agosto 2016, n 18. Fondo regionale per il reddito di inclusione sociale (REIS) ""Aggiudu torrau"". Annualita 2017.liquidazione di spesa.";30/08/2018;1440;3;526;1;Spese correnti;4;Trasferimenti correnti;2;Trasferimenti correnti a Famiglie;2;Interventi assistenziali;999;Altri assegni e sussidi assistenziali;30/08/2018
1415;1;0;320;320;OMESSO NOMINATIVO NEL RISPETTO DELLA NORMATIVA SULLA PROTEZIONE DATI PERSONALI; ;"Legge Regionale 2 agosto 2016, n 18. Fondo regionale per il reddito di inclusione sociale (REIS) ""Aggiudu torrau"". Annualita 2017. LIQUIDAZIONE di spesa.";30/08/2018;1440;3;526;1;Spese correnti;4;Trasferimenti correnti;2;Trasferimenti correnti a Famiglie;2;Interventi assistenziali;999;Altri assegni e sussidi assistenziali;30/08/2018
1416;1;0;200;200;OMESSO NOMINATIVO NEL RISPETTO DELLA NORMATIVA SULLA PROTEZIONE DATI PERSONALI; ;"Legge Regionale 2 agosto 2016, n 18. Fondo regionale per il reddito di inclusione sociale (REIS) ""Aggiudu torrau"". Annualita 2017. LIQUIDAZIONE di spesa.";30/08/2018;1440;3;526;1;Spese correnti;4;Trasferimenti correnti;2;Trasferimenti correnti a Famiglie;2;Interventi assistenziali;999;Altri assegni e sussidi assistenziali;30/08/2018
1417;1;0;120;120;OMESSO NOMINATIVO NEL RISPETTO DELLA NORMATIVA SULLA PROTEZIONE DATI PERSONALI; ;"Legge Regionale 2 agosto 2016, n 18. Fondo regionale per il reddito di inclusione sociale (REIS) ""Aggiudu torrau"". Annualita 2017.LIQUIDAZIONE di spesa.";30/08/2018;1440;3;526;1;Spese correnti;4;Trasferimenti correnti;2;Trasferimenti correnti a Famiglie;2;Interventi assistenziali;999;Altri assegni e sussidi assistenziali;30/08/2018
1418;1;0;200;200;OMESSO NOMINATIVO NEL RISPETTO DELLA NORMATIVA SULLA PROTEZIONE DATI PERSONALI; ;"Legge Regionale 2 agosto 2016, n 18. Fondo regionale per il reddito di inclusione sociale (REIS) ""Aggiudu torrau"". Annualita 2017. LIQUIDAZIONE  di spesa.";30/08/2018;1440;3;526;1;Spese correnti;4;Trasferimenti correnti;2;Trasferimenti correnti a Famiglie;2;Interventi assistenziali;999;Altri assegni e sussidi assistenziali;30/08/2018
1419;1;0;1.000,00;1.000,00;OMESSO NOMINATIVO NEL RISPETTO DELLA NORMATIVA SULLA PROTEZIONE DATI PERSONALI; ;"Legge Regionale 2 agosto 2016, n 18. Fondo regionale per il reddito di inclusione sociale (REIS) ""Aggiudu torrau"". Annualita 2017. LIQUIDAZIONE di spesa.";30/08/2018;1440;3;526;1;Spese correnti;4;Trasferimenti correnti;2;Trasferimenti correnti a Famiglie;2;Interventi assistenziali;999;Altri assegni e sussidi assistenziali;30/08/2018
1420;1;0;400;400;OMESSO NOMINATIVO NEL RISPETTO DELLA NORMATIVA SULLA PROTEZIONE DATI PERSONALI; ;"Legge Regionale 2 agosto 2016, n 18. Fondo regionale per il reddito di inclusione sociale (REIS) ""Aggiudu torrau"". Annualita 2017. LIQUIDAZIONE di spesa.";30/08/2018;1440;3;526;1;Spese correnti;4;Trasferimenti correnti;2;Trasferimenti correnti a Famiglie;2;Interventi assistenziali;999;Altri assegni e sussidi assistenziali;30/08/2018
1421;1;0;600;600;OMESSO NOMINATIVO NEL RISPETTO DELLA NORMATIVA SULLA PROTEZIONE DATI PERSONALI; ;"Legge Regionale 2 agosto 2016, n 18. Fondo regionale per il reddito di inclusione sociale (REIS) ""Aggiudu torrau"". Annualita 2017.LIQUIDAZIONE di spesa.";30/08/2018;1440;3;526;1;Spese correnti;4;Trasferimenti correnti;2;Trasferimenti correnti a Famiglie;2;Interventi assistenziali;999;Altri assegni e sussidi assistenziali;30/08/2018
1422;1;0;400;400;OMESSO NOMINATIVO NEL RISPETTO DELLA NORMATIVA SULLA PROTEZIONE DATI PERSONALI; ;"Legge Regionale 2 agosto 2016, n 18. Fondo regionale per il reddito di inclusione sociale (REIS) ""Aggiudu torrau"". Annualita 2017. LIQUIDAZIONE di spesa.";30/08/2018;1440;3;526;1;Spese correnti;4;Trasferimenti correnti;2;Trasferimenti correnti a Famiglie;2;Interventi assistenziali;999;Altri assegni e sussidi assistenziali;30/08/2018
1423;1;0;400;400;OMESSO NOMINATIVO NEL RISPETTO DELLA NORMATIVA SULLA PROTEZIONE DATI PERSONALI; ;"Legge Regionale 2 agosto 2016, n 18. Fondo regionale per il reddito di inclusione sociale (REIS) ""Aggiudu torrau"". Annualita 2017. LIQUIDAZIONE di spesa.";30/08/2018;1440;3;526;1;Spese correnti;4;Trasferimenti correnti;2;Trasferimenti correnti a Famiglie;2;Interventi assistenziali;999;Altri assegni e sussidi assistenziali;30/08/2018
1424;1;0;400;400;OMESSO NOMINATIVO NEL RISPETTO DELLA NORMATIVA SULLA PROTEZIONE DATI PERSONALI; ;"Legge Regionale 2 agosto 2016, n 18. Fondo regionale per il reddito di inclusione sociale (REIS) ""Aggiudu torrau"". Annualita 2017. LIQUIDAZIONE di spesa.";30/08/2018;1440;3;526;1;Spese correnti;4;Trasferimenti correnti;2;Trasferimenti correnti a Famiglie;2;Interventi assistenziali;999;Altri assegni e sussidi assistenziali;30/08/2018
1425;1;0;1.000,00;1.000,00;OMESSO NOMINATIVO NEL RISPETTO DELLA NORMATIVA SULLA PROTEZIONE DATI PERSONALI; ;"Legge Regionale 2 agosto 2016, n 18. Fondo regionale per il reddito di inclusione sociale (REIS) ""Aggiudu torrau"". Annualita 2017. LIQUIDAZIONE di spesa.";30/08/2018;1440;3;526;1;Spese correnti;4;Trasferimenti correnti;2;Trasferimenti correnti a Famiglie;2;Interventi assistenziali;999;Altri assegni e sussidi assistenziali;30/08/2018
1426;1;0;1.000,00;1.000,00;OMESSO NOMINATIVO NEL RISPETTO DELLA NORMATIVA SULLA PROTEZIONE DATI PERSONALI; ;"Legge Regionale 2 agosto 2016, n 18. Fondo regionale per il reddito di inclusione sociale (REIS) ""Aggiudu torrau"". Annualita 2017. LIQUIDAZIONE di spesa.";30/08/2018;1440;3;526;1;Spese correnti;4;Trasferimenti correnti;2;Trasferimenti correnti a Famiglie;2;Interventi assistenziali;999;Altri assegni e sussidi assistenziali;30/08/2018
1427;1;0;800;800;OMESSO NOMINATIVO NEL RISPETTO DELLA NORMATIVA SULLA PROTEZIONE DATI PERSONALI; ;"Legge Regionale 2 agosto 2016, n 18. Fondo regionale per il reddito di inclusione sociale (REIS) ""Aggiudu torrau"". Annualita 2017. LIQUIDAZIONE di spesa.";30/08/2018;1440;3;526;1;Spese correnti;4;Trasferimenti correnti;2;Trasferimenti correnti a Famiglie;2;Interventi assistenziali;999;Altri assegni e sussidi assistenziali;30/08/2018
1428;1;0;1.633,62;1.633,62;OMESSO NOMINATIVO NEL RISPETTO DELLA NORMATIVA SULLA PROTEZIONE DATI PERSONALI; ;LL.RR. 15/92 e 20/97. Liquidazione sussidio economico in favore di n. 2 beneficiari. Gennaio - giugno 2018.;30/08/2018;1432;1;331;1;Spese correnti;4;Trasferimenti correnti;2;Trasferimenti correnti a Famiglie;2;Interventi assistenziali;999;Altri assegni e sussidi assistenziali;30/08/2018
1429;1;0;2.937,72;2.937,72;OMESSO NOMINATIVO NEL RISPETTO DELLA NORMATIVA SULLA PROTEZIONE DATI PERSONALI; ;LL.RR. 15/92 e 20/97. Liquidazione sussidio economico in favore di n. 2 beneficiari. Gennaio - giugno 2018.;30/08/2018;1432;1;331;1;Spese correnti;4;Trasferimenti correnti;2;Trasferimenti correnti a Famiglie;2;Interventi assistenziali;999;Altri assegni e sussidi assistenziali;30/08/2018
1430;1;0;-472,63;2.745,98;ENEL ENERGIA SPA;7429682F87;SALDO Fatt.n. 004810967149  del 08/06/2018;31/08/2018;1015;1;392;1;Spese correnti;3;Acquisto di beni e servizi;2;Acquisto di servizi;5;Utenze e canoni;4;Energia elettrica;31/08/2018
1430;2;0;-311,64;2.745,98;ENEL ENERGIA SPA;7429682F87;SALDO Fatt.n. 004810967138  del 08/06/2018;31/08/2018;1015;1;392;1;Spese correnti;3;Acquisto di beni e servizi;2;Acquisto di servizi;5;Utenze e canoni;4;Energia elettrica;31/08/2018
1430;3;0;-262,06;2.745,98;ENEL ENERGIA SPA;7429682F87;SALDO Fatt.n. 004810967150  del 08/06/2018;31/08/2018;1015;1;392;1;Spese correnti;3;Acquisto di beni e servizi;2;Acquisto di servizi;5;Utenze e canoni;4;Energia elettrica;31/08/2018
1430;4;0;-199,86;2.745,98;ENEL ENERGIA SPA;7429682F87;SALDO Fatt.n. 004810967137  del 08/06/2018;31/08/2018;1015;1;392;1;Spese correnti;3;Acquisto di beni e servizi;2;Acquisto di servizi;5;Utenze e canoni;4;Energia elettrica;31/08/2018
1430;5;0;-191,88;2.745,98;ENEL ENERGIA SPA;7429682F87;SALDO Fatt.n. 004810967146  del 08/06/2018;31/08/2018;1015;1;392;1;Spese correnti;3;Acquisto di beni e servizi;2;Acquisto di servizi;5;Utenze e canoni;4;Energia elettrica;31/08/2018
1430;6;0;-165,98;2.745,98;ENEL ENERGIA SPA;7429682F87;SALDO Fatt.n. 004810967154  del 08/06/2018;31/08/2018;1015;1;392;1;Spese correnti;3;Acquisto di beni e servizi;2;Acquisto di servizi;5;Utenze e canoni;4;Energia elettrica;31/08/2018
1430;7;0;-99,97;2.745,98;ENEL ENERGIA SPA;7429682F87;SALDO Fatt.n. 004810967241  del 08/06/2018;31/08/2018;1015;1;392;1;Spese correnti;3;Acquisto di beni e servizi;2;Acquisto di servizi;5;Utenze e canoni;4;Energia elettrica;31/08/2018
1430;8;0;-45,92;2.745,98;ENEL ENERGIA SPA;7429682F87;SALDO Fatt.n. 004810967139  del 08/06/2018;31/08/2018;1015;1;392;1;Spese correnti;3;Acquisto di beni e servizi;2;Acquisto di servizi;5;Utenze e canoni;4;Energia elettrica;31/08/2018
1430;9;0;-22,52;2.745,98;ENEL ENERGIA SPA;7429682F87;SALDO Fatt.n. 004810967156  del 08/06/2018;31/08/2018;1015;1;392;1;Spese correnti;3;Acquisto di beni e servizi;2;Acquisto di servizi;5;Utenze e canoni;4;Energia elettrica;31/08/2018
1430;10;0;-9,27;2.745,98;ENEL ENERGIA SPA;7429682F87;SALDO Fatt.n. 004810967133  del 08/06/2018;31/08/2018;1015;1;392;1;Spese correnti;3;Acquisto di beni e servizi;2;Acquisto di servizi;5;Utenze e canoni;4;Energia elettrica;31/08/2018
1430;11;0;8,16;2.745,98;ENEL ENERGIA SPA;7429682F87;SALDO Fatt.n. 004811309692  del 07/08/2018;31/08/2018;1015;1;392;1;Spese correnti;3;Acquisto di beni e servizi;2;Acquisto di servizi;5;Utenze e canoni;4;Energia elettrica;31/08/2018
1430;12;0;9,27;2.745,98;ENEL ENERGIA SPA;7429682F87;SALDO Fatt.n. 004810967352  del 08/06/2018;31/08/2018;1015;1;392;1;Spese correnti;3;Acquisto di beni e servizi;2;Acquisto di servizi;5;Utenze e canoni;4;Energia elettrica;31/08/2018
1430;13;0;22,52;2.745,98;ENEL ENERGIA SPA;7429682F87;SALDO Fatt.n. 004810967330  del 08/06/2018;31/08/2018;1015;1;392;1;Spese correnti;3;Acquisto di beni e servizi;2;Acquisto di servizi;5;Utenze e canoni;4;Energia elettrica;31/08/2018
1430;14;0;39,74;2.745,98;ENEL ENERGIA SPA;7429682F87;SALDO Fatt.n. 004811309686  del 07/08/2018;31/08/2018;1015;1;392;1;Spese correnti;3;Acquisto di beni e servizi;2;Acquisto di servizi;5;Utenze e canoni;4;Energia elettrica;31/08/2018
1430;15;0;45,92;2.745,98;ENEL ENERGIA SPA;7429682F87;SALDO Fatt.n. 004810967346  del 08/06/2018;31/08/2018;1015;1;392;1;Spese correnti;3;Acquisto di beni e servizi;2;Acquisto di servizi;5;Utenze e canoni;4;Energia elettrica;31/08/2018
1430;16;0;87,99;2.745,98;ENEL ENERGIA SPA;7429682F87;SALDO Fatt.n. 004811309677  del 07/08/2018;31/08/2018;1015;1;392;1;Spese correnti;3;Acquisto di beni e servizi;2;Acquisto di servizi;5;Utenze e canoni;4;Energia elettrica;31/08/2018
1430;17;0;99,97;2.745,98;ENEL ENERGIA SPA;7429682F87;SALDO Fatt.n. 004810967337  del 08/06/2018;31/08/2018;1015;1;392;1;Spese correnti;3;Acquisto di beni e servizi;2;Acquisto di servizi;5;Utenze e canoni;4;Energia elettrica;31/08/2018
1430;18;0;154,48;2.745,98;ENEL ENERGIA SPA;7429682F87;SALDO Fatt.n. 004811309672  del 07/08/2018;31/08/2018;1015;1;392;1;Spese correnti;3;Acquisto di beni e servizi;2;Acquisto di servizi;5;Utenze e canoni;4;Energia elettrica;31/08/2018
1430;19;0;165,98;2.745,98;ENEL ENERGIA SPA;7429682F87;SALDO Fatt.n. 004810967332  del 08/06/2018;31/08/2018;1015;1;392;1;Spese correnti;3;Acquisto di beni e servizi;2;Acquisto di servizi;5;Utenze e canoni;4;Energia elettrica;31/08/2018
1430;20;0;169,68;2.745,98;ENEL ENERGIA SPA;7429682F87;SALDO Fatt.n. 004811309680  del 07/08/2018;31/08/2018;1015;1;392;1;Spese correnti;3;Acquisto di beni e servizi;2;Acquisto di servizi;5;Utenze e canoni;4;Energia elettrica;31/08/2018
1430;21;0;179,33;2.745,98;ENEL ENERGIA SPA;7429682F87;SALDO Fatt.n. 004811309688  del 07/08/2018;31/08/2018;1015;1;392;1;Spese correnti;3;Acquisto di beni e servizi;2;Acquisto di servizi;5;Utenze e canoni;4;Energia elettrica;31/08/2018
1430;22;0;191,88;2.745,98;ENEL ENERGIA SPA;7429682F87;SALDO Fatt.n. 004810967340  del 08/06/2018;31/08/2018;1015;1;392;1;Spese correnti;3;Acquisto di beni e servizi;2;Acquisto di servizi;5;Utenze e canoni;4;Energia elettrica;31/08/2018
1430;23;0;199,86;2.745,98;ENEL ENERGIA SPA;7429682F87;SALDO Fatt.n. 004810967348  del 08/06/2018;31/08/2018;1015;1;392;1;Spese correnti;3;Acquisto di beni e servizi;2;Acquisto di servizi;5;Utenze e canoni;4;Energia elettrica;31/08/2018
1430;24;0;245,45;2.745,98;ENEL ENERGIA SPA;7429682F87;SALDO Fatt.n. 004811309676  del 07/08/2018;31/08/2018;1015;1;392;1;Spese correnti;3;Acquisto di beni e servizi;2;Acquisto di servizi;5;Utenze e canoni;4;Energia elettrica;31/08/2018
1430;25;0;262,06;2.745,98;ENEL ENERGIA SPA;7429682F87;SALDO Fatt.n. 004810967336  del 08/06/2018;31/08/2018;1015;1;392;1;Spese correnti;3;Acquisto di beni e servizi;2;Acquisto di servizi;5;Utenze e canoni;4;Energia elettrica;31/08/2018
1430;26;0;277,56;2.745,98;ENEL ENERGIA SPA;7429682F87;SALDO Fatt.n. 004811309687  del 07/08/2018;31/08/2018;1015;1;392;1;Spese correnti;3;Acquisto di beni e servizi;2;Acquisto di servizi;5;Utenze e canoni;4;Energia elettrica;31/08/2018
1430;27;0;311,64;2.745,98;ENEL ENERGIA SPA;7429682F87;SALDO Fatt.n. 004810967347  del 08/06/2018;31/08/2018;1015;1;392;1;Spese correnti;3;Acquisto di beni e servizi;2;Acquisto di servizi;5;Utenze e canoni;4;Energia elettrica;31/08/2018
1430;28;0;392,71;2.745,98;ENEL ENERGIA SPA;7429682F87;SALDO Fatt.n. 004811309690  del 07/08/2018;31/08/2018;1015;1;392;1;Spese correnti;3;Acquisto di beni e servizi;2;Acquisto di servizi;5;Utenze e canoni;4;Energia elettrica;31/08/2018
1430;29;0;399,23;2.745,98;ENEL ENERGIA SPA;7429682F87;SALDO Fatt.n. 004811309678  del 07/08/2018;31/08/2018;1015;1;392;1;Spese correnti;3;Acquisto di beni e servizi;2;Acquisto di servizi;5;Utenze e canoni;4;Energia elettrica;31/08/2018
1430;30;0;472,63;2.745,98;ENEL ENERGIA SPA;7429682F87;SALDO Fatt.n. 004810967338  del 08/06/2018;31/08/2018;1015;1;392;1;Spese correnti;3;Acquisto di beni e servizi;2;Acquisto di servizi;5;Utenze e canoni;4;Energia elettrica;31/08/2018
1430;31;0;791,65;2.745,98;ENEL ENERGIA SPA;7429682F87;SALDO Fatt.n. 004811309668  del 07/08/2018;31/08/2018;1015;1;392;1;Spese correnti;3;Acquisto di beni e servizi;2;Acquisto di servizi;5;Utenze e canoni;4;Energia elettrica;31/08/2018
1431;1;0;-52,58;102,22;ENEL ENERGIA SPA;7429682F87;SALDO Fatt.n. 004810967132  del 08/06/2018;31/08/2018;1090;1;393;1;Spese correnti;3;Acquisto di beni e servizi;2;Acquisto di servizi;5;Utenze e canoni;4;Energia elettrica;31/08/2018
1431;2;0;-43,94;102,22;ENEL ENERGIA SPA;7429682F87;SALDO Fatt.n. 004810967128  del 08/06/2018;31/08/2018;1090;1;393;1;Spese correnti;3;Acquisto di beni e servizi;2;Acquisto di servizi;5;Utenze e canoni;4;Energia elettrica;31/08/2018
1431;3;0;-23,86;102,22;ENEL ENERGIA SPA;7429682F87;SALDO Fatt.n. 004810967131  del 08/06/2018;31/08/2018;1090;1;393;1;Spese correnti;3;Acquisto di beni e servizi;2;Acquisto di servizi;5;Utenze e canoni;4;Energia elettrica;31/08/2018
1431;4;0;-22,52;102,22;ENEL ENERGIA SPA;7429682F87;SALDO Fatt.n. 004810967151  del 08/06/2018;31/08/2018;1090;1;393;1;Spese correnti;3;Acquisto di beni e servizi;2;Acquisto di servizi;5;Utenze e canoni;4;Energia elettrica;31/08/2018
1431;5;0;19,13;102,22;ENEL ENERGIA SPA;7429682F87;SALDO Fatt.n. 004811309675  del 07/08/2018;31/08/2018;1090;1;393;1;Spese correnti;3;Acquisto di beni e servizi;2;Acquisto di servizi;5;Utenze e canoni;4;Energia elettrica;31/08/2018
1431;6;0;19,13;102,22;ENEL ENERGIA SPA;7429682F87;SALDO Fatt.n. 004811309670  del 07/08/2018;31/08/2018;1090;1;393;1;Spese correnti;3;Acquisto di beni e servizi;2;Acquisto di servizi;5;Utenze e canoni;4;Energia elettrica;31/08/2018
1431;7;0;22,52;102,22;ENEL ENERGIA SPA;7429682F87;SALDO Fatt.n. 004810967335  del 08/06/2018;31/08/2018;1090;1;393;1;Spese correnti;3;Acquisto di beni e servizi;2;Acquisto di servizi;5;Utenze e canoni;4;Energia elettrica;31/08/2018
1431;8;0;23,86;102,22;ENEL ENERGIA SPA;7429682F87;SALDO Fatt.n. 004810967331  del 08/06/2018;31/08/2018;1090;1;393;1;Spese correnti;3;Acquisto di beni e servizi;2;Acquisto di servizi;5;Utenze e canoni;4;Energia elettrica;31/08/2018
1431;9;0;26,64;102,22;ENEL ENERGIA SPA;7429682F87;SALDO Fatt.n. 004811309671  del 07/08/2018;31/08/2018;1090;1;393;1;Spese correnti;3;Acquisto di beni e servizi;2;Acquisto di servizi;5;Utenze e canoni;4;Energia elettrica;31/08/2018
1431;10;0;37,32;102,22;ENEL ENERGIA SPA;7429682F87;SALDO Fatt.n. 004811309691  del 07/08/2018;31/08/2018;1090;1;393;1;Spese correnti;3;Acquisto di beni e servizi;2;Acquisto di servizi;5;Utenze e canoni;4;Energia elettrica;31/08/2018
1431;11;0;43,94;102,22;ENEL ENERGIA SPA;7429682F87;SALDO Fatt.n. 004810967325  del 08/06/2018;31/08/2018;1090;1;393;1;Spese correnti;3;Acquisto di beni e servizi;2;Acquisto di servizi;5;Utenze e canoni;4;Energia elettrica;31/08/2018
1431;12;0;52,58;102,22;ENEL ENERGIA SPA;7429682F87;SALDO Fatt.n. 004810967327  del 08/06/2018;31/08/2018;1090;1;393;1;Spese correnti;3;Acquisto di beni e servizi;2;Acquisto di servizi;5;Utenze e canoni;4;Energia elettrica;31/08/2018
1432;1;0;19,13;56,45;ENEL ENERGIA SPA;7429682F87;SALDO Fatt.n. 004811309685  del 07/08/2018;31/08/2018;1302;2;394;1;Spese correnti;3;Acquisto di beni e servizi;2;Acquisto di servizi;5;Utenze e canoni;4;Energia elettrica;31/08/2018
1432;2;0;37,32;56,45;ENEL ENERGIA SPA;7429682F87;SALDO Fatt.n. 004811309667  del 07/08/2018;31/08/2018;1302;2;394;1;Spese correnti;3;Acquisto di beni e servizi;2;Acquisto di servizi;5;Utenze e canoni;4;Energia elettrica;31/08/2018
1433;1;0;-166,04;131,85;ENEL ENERGIA SPA;7429682F87;SALDO Fatt.n. 004810967143  del 08/06/2018;31/08/2018;716;4;395;1;Spese correnti;3;Acquisto di beni e servizi;2;Acquisto di servizi;5;Utenze e canoni;4;Energia elettrica;31/08/2018
1433;2;0;131,85;131,85;ENEL ENERGIA SPA;7429682F87;SALDO Fatt.n. 004811309683  del 07/08/2018;31/08/2018;716;4;395;1;Spese correnti;3;Acquisto di beni e servizi;2;Acquisto di servizi;5;Utenze e canoni;4;Energia elettrica;31/08/2018
1433;3;0;166,04;131,85;ENEL ENERGIA SPA;7429682F87;SALDO Fatt.n. 004810967343  del 08/06/2018;31/08/2018;716;4;395;1;Spese correnti;3;Acquisto di beni e servizi;2;Acquisto di servizi;5;Utenze e canoni;4;Energia elettrica;31/08/2018
1434;1;0;-227,65;107,06;ENEL ENERGIA SPA;7429682F87;SALDO Fatt.n. 004810967142  del 08/06/2018;31/08/2018;618;4;396;1;Spese correnti;3;Acquisto di beni e servizi;2;Acquisto di servizi;5;Utenze e canoni;4;Energia elettrica;31/08/2018
1434;2;0;107,06;107,06;ENEL ENERGIA SPA;7429682F87;SALDO Fatt.n. 004811309684  del 07/08/2018;31/08/2018;618;4;396;1;Spese correnti;3;Acquisto di beni e servizi;2;Acquisto di servizi;5;Utenze e canoni;4;Energia elettrica;31/08/2018
1434;3;0;227,65;107,06;ENEL ENERGIA SPA;7429682F87;SALDO Fatt.n. 004810967344  del 08/06/2018;31/08/2018;618;4;396;1;Spese correnti;3;Acquisto di beni e servizi;2;Acquisto di servizi;5;Utenze e canoni;4;Energia elettrica;31/08/2018
1435;1;0;-406,28;448,52;ENEL ENERGIA SPA;7429682F87;SALDO Fatt.n. 004810967136  del 08/06/2018;31/08/2018;118;4;397;1;Spese correnti;3;Acquisto di beni e servizi;2;Acquisto di servizi;5;Utenze e canoni;4;Energia elettrica;31/08/2018
1435;2;0;-72,81;448,52;ENEL ENERGIA SPA;7429682F87;SALDO Fatt.n. 004810967153  del 08/06/2018;31/08/2018;118;4;397;1;Spese correnti;3;Acquisto di beni e servizi;2;Acquisto di servizi;5;Utenze e canoni;4;Energia elettrica;31/08/2018
1435;3;0;-30;448,52;ENEL ENERGIA SPA;7429682F87;SALDO Fatt.n. 004810967144  del 08/06/2018;31/08/2018;118;4;397;1;Spese correnti;3;Acquisto di beni e servizi;2;Acquisto di servizi;5;Utenze e canoni;4;Energia elettrica;31/08/2018
1435;4;0;25,3;448,52;ENEL ENERGIA SPA;7429682F87;SALDO Fatt.n. 004811309682  del 07/08/2018;31/08/2018;118;4;397;1;Spese correnti;3;Acquisto di beni e servizi;2;Acquisto di servizi;5;Utenze e canoni;4;Energia elettrica;31/08/2018
1435;5;0;30;448,52;ENEL ENERGIA SPA;7429682F87;SALDO Fatt.n. 004810967342  del 08/06/2018;31/08/2018;118;4;397;1;Spese correnti;3;Acquisto di beni e servizi;2;Acquisto di servizi;5;Utenze e canoni;4;Energia elettrica;31/08/2018
1435;6;0;62,48;448,52;ENEL ENERGIA SPA;7429682F87;SALDO Fatt.n. 004811309673  del 07/08/2018;31/08/2018;118;4;397;1;Spese correnti;3;Acquisto di beni e servizi;2;Acquisto di servizi;5;Utenze e canoni;4;Energia elettrica;31/08/2018
1435;7;0;72,81;448,52;ENEL ENERGIA SPA;7429682F87;SALDO Fatt.n. 004810967333  del 08/06/2018;31/08/2018;118;4;397;1;Spese correnti;3;Acquisto di beni e servizi;2;Acquisto di servizi;5;Utenze e canoni;4;Energia elettrica;31/08/2018
1435;8;0;360,74;448,52;ENEL ENERGIA SPA;7429682F87;SALDO Fatt.n. 004811309689  del 07/08/2018;31/08/2018;118;4;397;1;Spese correnti;3;Acquisto di beni e servizi;2;Acquisto di servizi;5;Utenze e canoni;4;Energia elettrica;31/08/2018
1435;9;0;406,28;448,52;ENEL ENERGIA SPA;7429682F87;SALDO Fatt.n. 004810967349  del 08/06/2018;31/08/2018;118;4;397;1;Spese correnti;3;Acquisto di beni e servizi;2;Acquisto di servizi;5;Utenze e canoni;4;Energia elettrica;31/08/2018
1436;1;0;-108,23;100,75;ENEL ENERGIA SPA;7429682F87;SALDO Fatt.n. 004810967130  del 08/06/2018;31/08/2018;1340;4;403;1;Spese correnti;3;Acquisto di beni e servizi;2;Acquisto di servizi;5;Utenze e canoni;4;Energia elettrica;31/08/2018
1436;2;0;100,75;100,75;ENEL ENERGIA SPA;7429682F87;SALDO Fatt.n. 004811309679  del 07/08/2018;31/08/2018;1340;4;403;1;Spese correnti;3;Acquisto di beni e servizi;2;Acquisto di servizi;5;Utenze e canoni;4;Energia elettrica;31/08/2018
1436;3;0;108,23;100,75;ENEL ENERGIA SPA;7429682F87;SALDO Fatt.n. 004810967258  del 08/06/2018;31/08/2018;1340;4;403;1;Spese correnti;3;Acquisto di beni e servizi;2;Acquisto di servizi;5;Utenze e canoni;4;Energia elettrica;31/08/2018
1437;1;0;-23,36;19,83;ENEL ENERGIA SPA;7429682F87;SALDO Fatt.n. 004810967129  del 08/06/2018;31/08/2018;1486;1;404;1;Spese correnti;3;Acquisto di beni e servizi;2;Acquisto di servizi;5;Utenze e canoni;4;Energia elettrica;31/08/2018
1437;2;0;19,83;19,83;ENEL ENERGIA SPA;7429682F87;SALDO Fatt.n. 004811398851  del 13/08/2018;31/08/2018;1486;1;404;1;Spese correnti;3;Acquisto di beni e servizi;2;Acquisto di servizi;5;Utenze e canoni;4;Energia elettrica;31/08/2018
1437;3;0;23,36;19,83;ENEL ENERGIA SPA;7429682F87;SALDO Fatt.n. 004810967318  del 08/06/2018;31/08/2018;1486;1;404;1;Spese correnti;3;Acquisto di beni e servizi;2;Acquisto di servizi;5;Utenze e canoni;4;Energia elettrica;31/08/2018
1438;1;0;-286,21;453,83;ENEL ENERGIA SPA;7429682F87;SALDO Fatt.n. 004810967157  del 08/06/2018;31/08/2018;820;1;405;1;Spese correnti;3;Acquisto di beni e servizi;2;Acquisto di servizi;5;Utenze e canoni;4;Energia elettrica;31/08/2018
1438;2;0;22,91;453,83;ENEL ENERGIA SPA;7429682F87;SALDO Fatt.n. 004811309681  del 07/08/2018;31/08/2018;820;1;405;1;Spese correnti;3;Acquisto di beni e servizi;2;Acquisto di servizi;5;Utenze e canoni;4;Energia elettrica;31/08/2018
1438;3;0;286,21;453,83;ENEL ENERGIA SPA;7429682F87;SALDO Fatt.n. 004810967329  del 08/06/2018;31/08/2018;820;1;405;1;Spese correnti;3;Acquisto di beni e servizi;2;Acquisto di servizi;5;Utenze e canoni;4;Energia elettrica;31/08/2018
1438;4;0;430,92;453,83;ENEL ENERGIA SPA;7429682F87;SALDO Fatt.n. 004811309669  del 07/08/2018;31/08/2018;820;1;405;1;Spese correnti;3;Acquisto di beni e servizi;2;Acquisto di servizi;5;Utenze e canoni;4;Energia elettrica;31/08/2018
1439;1;0;-135,58;212,5;ENEL ENERGIA SPA;7429682F87;SALDO Fatt.n. 004810967152  del 08/06/2018;31/08/2018;592;4;402;1;Spese correnti;3;Acquisto di beni e servizi;2;Acquisto di servizi;5;Utenze e canoni;4;Energia elettrica;31/08/2018
1439;2;0;135,58;212,5;ENEL ENERGIA SPA;7429682F87;SALDO Fatt.n. 004810967334  del 08/06/2018;31/08/2018;592;4;402;1;Spese correnti;3;Acquisto di beni e servizi;2;Acquisto di servizi;5;Utenze e canoni;4;Energia elettrica;31/08/2018
1439;3;0;212,5;212,5;ENEL ENERGIA SPA;7429682F87;SALDO Fatt.n. 004811309674  del 07/08/2018;31/08/2018;592;4;402;1;Spese correnti;3;Acquisto di beni e servizi;2;Acquisto di servizi;5;Utenze e canoni;4;Energia elettrica;31/08/2018
1446;1;0;171,98;171,98;POSTE ITALIANE spa;Z4A1F1447A;SALDO Fatt.n. 8718291461  del 31/08/2018 Fattura Elettronica relativa all'Identificativo Rendiconto 2098740056;06/09/2018;152;7;229;1;Spese correnti;3;Acquisto di beni e servizi;2;Acquisto di servizi;16;Servizi amministrativi;2;Spese postali;06/09/2018
1447;1;0;4.598,65;4.598,65;A.S.D.  SPORT VILLAGE;Z7023F2BA6;ACCONTO Fatt.n. FATTPA 6_18  del 31/08/2018;06/09/2018;824;1;265;1;Spese correnti;3;Acquisto di beni e servizi;2;Acquisto di servizi;99;Altri servizi;999;Altri servizi diversi n.a.c.;06/09/2018
1448;1;0;420;420;A.S.D.  SPORT VILLAGE;Z7023F2BA6;SALDO Fatt.n. FATTPA 6_18  del 31/08/2018;06/09/2018;1432;1;293;1;Spese correnti;4;Trasferimenti correnti;2;Trasferimenti correnti a Famiglie;2;Interventi assistenziali;999;Altri assegni e sussidi assistenziali;06/09/2018
1449;1;0;2.970,02;2.970,02;AS.TR.E.D. COOP. SOCIALE;Z8321734AD;SALDO Fatt.n. 14PU_PA2018  del 27/08/2018 CIG Z8321734AD;12/09/2018;1493;1;188;1;Spese correnti;3;Acquisto di beni e servizi;2;Acquisto di servizi;9;Manutenzione ordinaria e riparazioni;11;Manutenzione ordinaria e riparazioni di altri beni materiali;12/09/2018
1450;1;0;244;244;MELIS ADOLFO;ZCB249DC27;ACCONTO Fatt.n. FATTPA 2_18  del 29/08/2018;12/09/2018;223;2;327;1;Spese correnti;3;Acquisto di beni e servizi;2;Acquisto di servizi;9;Manutenzione ordinaria e riparazioni;5;Manutenzione ordinaria e riparazioni di attrezzature;12/09/2018
1451;1;0;500,2;500,2;MELIS ADOLFO;ZCB249DC27;SALDO Fatt.n. FATTPA 2_18  del 29/08/2018;12/09/2018;208;2;328;1;Spese correnti;3;Acquisto di beni e servizi;1;Acquisto di beni;2;Altri beni di consumo;999;Altri beni e materiali di consumo n.a.c.;12/09/2018
1452;1;0;65,36;65,36;TELECOM ITALIA S.P.A-TIM S.P.A.Direz e coordin.Vivendi;Z8913E8555;SALDO Fatt.n. 7X03701428  del 14/08/2018 5BIM 2018;12/09/2018;42;4;97;1;Spese correnti;3;Acquisto di beni e servizi;2;Acquisto di servizi;5;Utenze e canoni;2;Telefonia mobile;12/09/2018
1453;1;0;0,54;0,54;AGENZIA DELLE ENTRATE - RISCOSSIONE; ;SPESE RISCOSSIONE TRIBUTI;12/09/2018;190;1;917;1;Spese correnti;3;Acquisto di beni e servizi;2;Acquisto di servizi;3;Aggi di riscossione;999;Altri aggi di riscossione n.a.c.;12/09/2018
1454;1;0;0,11;0,11;AGENZIA DELLE ENTRATE - RISCOSSIONE; ;SPESE RISCOSSIONE TRIBUTI;12/09/2018;190;1;923;1;Spese correnti;3;Acquisto di beni e servizi;2;Acquisto di servizi;3;Aggi di riscossione;999;Altri aggi di riscossione n.a.c.;12/09/2018
1455;1;0;0,4;0,4;AGENZIA DELLE ENTRATE - RISCOSSIONE; ;COMMISSIONI RISCOSSIONI TRIBUTI;12/09/2018;190;1;946;1;Spese correnti;3;Acquisto di beni e servizi;2;Acquisto di servizi;3;Aggi di riscossione;999;Altri aggi di riscossione n.a.c.;12/09/2018
1456;1;0;217;217;AGENZIA DELLE ENTRATE - RISCOSSIONE; ;Liquidazione di spesa per pagamento sanzione all'Agenzia delle Entrate.;13/09/2018;142;5;342;1;Spese correnti;10;Altre spese correnti;5;Spese dovute a sanzioni, risarcimenti e indennizzi;1;Spese dovute a sanzioni;1;Spese dovute a sanzioni;13/09/2018
1457;1;0;185,79;185,79;AGENZIA DELLE ENTRATE - RISCOSSIONE; ;Cartella di pagamento n. 025 2018 00085149 72 000,  emessa dall'Agenzia delle Entrate-Riscossione, per l'attribuzione della rendita presunta nell'anno 2012 - Ruolo nr. 2018/000314 . liquidazione di Spesa.;13/09/2018;142;5;343;1;Spese correnti;10;Altre spese correnti;5;Spese dovute a sanzioni, risarcimenti e indennizzi;1;Spese dovute a sanzioni;1;Spese dovute a sanzioni;13/09/2018
1459;1;0;412,55;412,55;OMESSO NOMINATIVO NEL RISPETTO DELLA NORMATIVA SULLA PROTEZIONE DATI PERSONALI; ;ECONOMIA GESTIONE ANNO 2017 -Liquidazione AGOSTO 2018;13/09/2018;1429;1;605;1;Spese correnti;4;Trasferimenti correnti;2;Trasferimenti correnti a Famiglie;2;Interventi assistenziali;999;Altri assegni e sussidi assistenziali;13/09/2018
1460;1;0;363,75;363,75;OMESSO NOMINATIVO NEL RISPETTO DELLA NORMATIVA SULLA PROTEZIONE DATI PERSONALI; ;L. 162/98. Piani personalizzati di sostegno in favore di persone con handicap grave. Finanziamento maggio - 2018. liquidazione di spesa.;13/09/2018;1429;1;179;1;Spese correnti;4;Trasferimenti correnti;2;Trasferimenti correnti a Famiglie;2;Interventi assistenziali;999;Altri assegni e sussidi assistenziali;13/09/2018
1461;1;0;1.083,96;1.083,96;OMESSO NOMINATIVO NEL RISPETTO DELLA NORMATIVA SULLA PROTEZIONE DATI PERSONALI; ;"Legge regionale n. 4 dell'11/05/2006, art. 17, comma 1. Finanziamento per il programma sperimentale ""Ritornare a casa"". liquidazione di spesa in favore di un beneficiario. Luglio - agosto 2018.";13/09/2018;1448;1;295;1;Spese correnti;4;Trasferimenti correnti;2;Trasferimenti correnti a Famiglie;2;Interventi assistenziali;999;Altri assegni e sussidi assistenziali;13/09/2018
1462;1;0;270,99;270,99;OMESSO NOMINATIVO NEL RISPETTO DELLA NORMATIVA SULLA PROTEZIONE DATI PERSONALI; ;"Legge regionale n. 4 dell'11/05/2006, art. 17, comma 1. Finanziamento per il programma sperimentale ""Ritornare a casa"". liquidazione di spesa in favore di un beneficiario. Luglio - Agosto 2018.";13/09/2018;1448;5;296;1;Spese correnti;4;Trasferimenti correnti;2;Trasferimenti correnti a Famiglie;2;Interventi assistenziali;999;Altri assegni e sussidi assistenziali;13/09/2018
1463;1;0;1.822,36;1.822,36;OMESSO NOMINATIVO NEL RISPETTO DELLA NORMATIVA SULLA PROTEZIONE DATI PERSONALI; ;ECONOMIA GESTIONE ANNO 2017 - RETTIFICA LIQUIDAZIONE  LUGLIO /AGOSTO 2018;14/09/2018;1429;1;605;1;Spese correnti;4;Trasferimenti correnti;2;Trasferimenti correnti a Famiglie;2;Interventi assistenziali;999;Altri assegni e sussidi assistenziali;14/09/2018
1464;1;0;767,9;767,9;OMESSO NOMINATIVO NEL RISPETTO DELLA NORMATIVA SULLA PROTEZIONE DATI PERSONALI; ;L. 162/98. Piani personalizzati di sostegno in favore di persone con handicap grave. Finanziamento Luglio agosto 2018.Liquidazione di spesa.;14/09/2018;1429;1;179;1;Spese correnti;4;Trasferimenti correnti;2;Trasferimenti correnti a Famiglie;2;Interventi assistenziali;999;Altri assegni e sussidi assistenziali;14/09/2018
1465;1;0;293,74;293,74;OMESSO NOMINATIVO NEL RISPETTO DELLA NORMATIVA SULLA PROTEZIONE DATI PERSONALI; ;L. 162/98. Piani personalizzati di sostegno in favore di persone con handicap grave. Finanziamento LUGLIO/AGOSTO 2018. liquidazione di spesa.;14/09/2018;1429;1;179;1;Spese correnti;4;Trasferimenti correnti;2;Trasferimenti correnti a Famiglie;2;Interventi assistenziali;999;Altri assegni e sussidi assistenziali;14/09/2018
1466;1;0;363,74;363,74;OMESSO NOMINATIVO NEL RISPETTO DELLA NORMATIVA SULLA PROTEZIONE DATI PERSONALI; ;L. 162/98. Piani personalizzati di sostegno in favore di persone con handicap grave. Finanziamento Luglio /Agosto 2018.liquidazione di spesa.;14/09/2018;1429;1;179;1;Spese correnti;4;Trasferimenti correnti;2;Trasferimenti correnti a Famiglie;2;Interventi assistenziali;999;Altri assegni e sussidi assistenziali;14/09/2018
1467;1;0;625;625;OMESSO NOMINATIVO NEL RISPETTO DELLA NORMATIVA SULLA PROTEZIONE DATI PERSONALI; ;L. 162/98. Piani personalizzati di sostegno in favore di persone con handicap grave. Finanziamento Luglio/Agosto  2018. Liquidazione di spesa.;14/09/2018;1429;1;179;1;Spese correnti;4;Trasferimenti correnti;2;Trasferimenti correnti a Famiglie;2;Interventi assistenziali;999;Altri assegni e sussidi assistenziali;14/09/2018
1468;1;0;250;250;OMESSO NOMINATIVO NEL RISPETTO DELLA NORMATIVA SULLA PROTEZIONE DATI PERSONALI; ;L. 162/98. Piani personalizzati di sostegno in favore di persone con handicap grave. Finanziamento Luglio/Agosto 2018. liquidazione di spesa.;14/09/2018;1429;1;179;1;Spese correnti;4;Trasferimenti correnti;2;Trasferimenti correnti a Famiglie;2;Interventi assistenziali;999;Altri assegni e sussidi assistenziali;14/09/2018
1469;1;0;363,74;363,74;OMESSO NOMINATIVO NEL RISPETTO DELLA NORMATIVA SULLA PROTEZIONE DATI PERSONALI; ;L. 162/98. Piani personalizzati di sostegno in favore di persone con handicap grave. Finanziamento Luglio/AGOSTO 2018. Liquidazione di spesa.;14/09/2018;1429;1;179;1;Spese correnti;4;Trasferimenti correnti;2;Trasferimenti correnti a Famiglie;2;Interventi assistenziali;999;Altri assegni e sussidi assistenziali;14/09/2018
1470;1;0;606,24;606,24;OMESSO NOMINATIVO NEL RISPETTO DELLA NORMATIVA SULLA PROTEZIONE DATI PERSONALI; ;L. 162/98. Piani personalizzati di sostegno in favore di persone con handicap grave. Finanziamento Luglio/AGOSTO 2018.Liquidazione di spesa.;14/09/2018;1429;1;179;1;Spese correnti;4;Trasferimenti correnti;2;Trasferimenti correnti a Famiglie;2;Interventi assistenziali;999;Altri assegni e sussidi assistenziali;14/09/2018
1471;1;0;312,5;312,5;OMESSO NOMINATIVO NEL RISPETTO DELLA NORMATIVA SULLA PROTEZIONE DATI PERSONALI; ;L. 162/98. Piani personalizzati di sostegno in favore di persone con handicap grave. Finanziamento Luglio/Agosto2018. Liquidazione di spesa.;14/09/2018;1429;1;179;1;Spese correnti;4;Trasferimenti correnti;2;Trasferimenti correnti a Famiglie;2;Interventi assistenziali;999;Altri assegni e sussidi assistenziali;14/09/2018
1472;1;0;606,24;606,24;OMESSO NOMINATIVO NEL RISPETTO DELLA NORMATIVA SULLA PROTEZIONE DATI PERSONALI; ;L. 162/98. Piani personalizzati di sostegno in favore di persone con handicap grave. Finanziamento maggio - dicembre 2018.Liquidazione di spesa.;14/09/2018;1429;1;179;1;Spese correnti;4;Trasferimenti correnti;2;Trasferimenti correnti a Famiglie;2;Interventi assistenziali;999;Altri assegni e sussidi assistenziali;14/09/2018
1473;1;0;750;750;OMESSO NOMINATIVO NEL RISPETTO DELLA NORMATIVA SULLA PROTEZIONE DATI PERSONALI; ;L. 162/98. Piani personalizzati di sostegno in favore di persone con handicap grave. Finanziamento Luglio/Agosto  2018. liquidazione di spesa.;14/09/2018;1429;1;179;1;Spese correnti;4;Trasferimenti correnti;2;Trasferimenti correnti a Famiglie;2;Interventi assistenziali;999;Altri assegni e sussidi assistenziali;14/09/2018
1474;1;0;375;375;OMESSO NOMINATIVO NEL RISPETTO DELLA NORMATIVA SULLA PROTEZIONE DATI PERSONALI; ;L. 162/98. Piani personalizzati di sostegno in favore di persone con handicap grave. Finanziamento Luglio/Agosto 2018.liquidazione di spesa.;14/09/2018;1429;1;179;1;Spese correnti;4;Trasferimenti correnti;2;Trasferimenti correnti a Famiglie;2;Interventi assistenziali;999;Altri assegni e sussidi assistenziali;14/09/2018
1475;1;0;312,5;312,5;OMESSO NOMINATIVO NEL RISPETTO DELLA NORMATIVA SULLA PROTEZIONE DATI PERSONALI; ;L. 162/98. Piani personalizzati di sostegno in favore di persone con handicap grave. Finanziamento Luglio /Agosto  2018. Liquidazione di spesa.;14/09/2018;1429;1;179;1;Spese correnti;4;Trasferimenti correnti;2;Trasferimenti correnti a Famiglie;2;Interventi assistenziali;999;Altri assegni e sussidi assistenziali;14/09/2018
1476;1;0;341,22;341,22;OMESSO NOMINATIVO NEL RISPETTO DELLA NORMATIVA SULLA PROTEZIONE DATI PERSONALI; ;L. 162/98. Piani personalizzati di sostegno in favore di persone con handicap grave. Finanziamento Agosto 2018. liquidazione di spesa.;14/09/2018;1429;1;179;1;Spese correnti;4;Trasferimenti correnti;2;Trasferimenti correnti a Famiglie;2;Interventi assistenziali;999;Altri assegni e sussidi assistenziali;14/09/2018
1477;1;0;696;696;OMESSO NOMINATIVO NEL RISPETTO DELLA NORMATIVA SULLA PROTEZIONE DATI PERSONALI; ;L. 162/98. Piani personalizzati di sostegno in favore di persone con handicap grave. Finanziamento AGOSTO 2018. LIQUIDAZIONE di spesa.;14/09/2018;1429;1;179;1;Spese correnti;4;Trasferimenti correnti;2;Trasferimenti correnti a Famiglie;2;Interventi assistenziali;999;Altri assegni e sussidi assistenziali;14/09/2018
1478;1;0;269,12;269,12;OMESSO NOMINATIVO NEL RISPETTO DELLA NORMATIVA SULLA PROTEZIONE DATI PERSONALI; ;L. 162/98. Piani personalizzati di sostegno in favore di persone con handicap grave. Finanziamento AGOSTO 2018.Liquidazione di spesa.;14/09/2018;1429;1;179;1;Spese correnti;4;Trasferimenti correnti;2;Trasferimenti correnti a Famiglie;2;Interventi assistenziali;999;Altri assegni e sussidi assistenziali;14/09/2018
1479;1;0;152,04;152,04;OMESSO NOMINATIVO NEL RISPETTO DELLA NORMATIVA SULLA PROTEZIONE DATI PERSONALI; ;L. 162/98. Piani personalizzati di sostegno in favore di persone con handicap grave. Finanziamento Agosto 2018. Liquidazione di spesa.;14/09/2018;1429;1;179;1;Spese correnti;4;Trasferimenti correnti;2;Trasferimenti correnti a Famiglie;2;Interventi assistenziali;999;Altri assegni e sussidi assistenziali;14/09/2018
1480;1;0;133,94;133,94;OMESSO NOMINATIVO NEL RISPETTO DELLA NORMATIVA SULLA PROTEZIONE DATI PERSONALI; ;L. 162/98. Piani personalizzati di sostegno in favore di persone con handicap grave. Finanziamento Agosto  2018. LIQUIDAZIONE di spesa.;14/09/2018;1429;1;179;1;Spese correnti;4;Trasferimenti correnti;2;Trasferimenti correnti a Famiglie;2;Interventi assistenziali;999;Altri assegni e sussidi assistenziali;14/09/2018
1481;1;0;326,9;326,9;OMESSO NOMINATIVO NEL RISPETTO DELLA NORMATIVA SULLA PROTEZIONE DATI PERSONALI; ;L. 162/98. Piani personalizzati di sostegno in favore di persone con handicap grave. Finanziamento Agosto  2018. Liquidazione di spesa.;14/09/2018;1429;1;179;1;Spese correnti;4;Trasferimenti correnti;2;Trasferimenti correnti a Famiglie;2;Interventi assistenziali;999;Altri assegni e sussidi assistenziali;14/09/2018
1482;1;0;200;200;OMESSO NOMINATIVO NEL RISPETTO DELLA NORMATIVA SULLA PROTEZIONE DATI PERSONALI; ;L. 162/98. Piani personalizzati di sostegno in favore di persone con handicap grave. Finanziamento Agosto 2018. Liquidazione di spesa.;14/09/2018;1429;1;179;1;Spese correnti;4;Trasferimenti correnti;2;Trasferimenti correnti a Famiglie;2;Interventi assistenziali;999;Altri assegni e sussidi assistenziali;14/09/2018
1483;1;0;434,18;434,18;OMESSO NOMINATIVO NEL RISPETTO DELLA NORMATIVA SULLA PROTEZIONE DATI PERSONALI; ;L. 162/98. Piani personalizzati di sostegno in favore di persone con handicap grave. Finanziamento Agosto 2018. Liquidazione  di spesa.;14/09/2018;1429;1;179;1;Spese correnti;4;Trasferimenti correnti;2;Trasferimenti correnti a Famiglie;2;Interventi assistenziali;999;Altri assegni e sussidi assistenziali;14/09/2018
1484;1;0;794,2;794,2;OMESSO NOMINATIVO NEL RISPETTO DELLA NORMATIVA SULLA PROTEZIONE DATI PERSONALI; ;L. 162/98. Piani personalizzati di sostegno in favore di persone con handicap grave. Finanziamento Agosto 2018. Liquidazione di spesa.;14/09/2018;1429;1;179;1;Spese correnti;4;Trasferimenti correnti;2;Trasferimenti correnti a Famiglie;2;Interventi assistenziali;999;Altri assegni e sussidi assistenziali;14/09/2018
1485;1;0;220;220;OMESSO NOMINATIVO NEL RISPETTO DELLA NORMATIVA SULLA PROTEZIONE DATI PERSONALI; ;L. 162/98. Piani personalizzati di sostegno in favore di persone con handicap grave. Finanziamento Agosto 2018.Liquidazione  di spesa.;14/09/2018;1429;1;179;1;Spese correnti;4;Trasferimenti correnti;2;Trasferimenti correnti a Famiglie;2;Interventi assistenziali;999;Altri assegni e sussidi assistenziali;14/09/2018
1486;1;0;121;121;OMESSO NOMINATIVO NEL RISPETTO DELLA NORMATIVA SULLA PROTEZIONE DATI PERSONALI; ;L. 162/98. Piani personalizzati di sostegno in favore di persone con handicap grave. Finanziamento agosto 2018. liquidazione di spesa.;14/09/2018;1429;1;179;1;Spese correnti;4;Trasferimenti correnti;2;Trasferimenti correnti a Famiglie;2;Interventi assistenziali;999;Altri assegni e sussidi assistenziali;14/09/2018
1487;1;0;241,68;241,68;OMESSO NOMINATIVO NEL RISPETTO DELLA NORMATIVA SULLA PROTEZIONE DATI PERSONALI; ;L. 162/98. Piani personalizzati di sostegno in favore di persone con handicap grave. Finanziamento Agosto 2018.Liquidazione di spesa.;14/09/2018;1429;1;179;1;Spese correnti;4;Trasferimenti correnti;2;Trasferimenti correnti a Famiglie;2;Interventi assistenziali;999;Altri assegni e sussidi assistenziali;14/09/2018
1488;1;0;384,5;384,5;OMESSO NOMINATIVO NEL RISPETTO DELLA NORMATIVA SULLA PROTEZIONE DATI PERSONALI; ;L. 162/98. Piani personalizzati di sostegno in favore di persone con handicap grave. Finanziamento maggio - dicembre 2018. liquidazione di spesa.;14/09/2018;1429;1;179;1;Spese correnti;4;Trasferimenti correnti;2;Trasferimenti correnti a Famiglie;2;Interventi assistenziali;999;Altri assegni e sussidi assistenziali;14/09/2018
1489;1;0;840,34;840,34;OMESSO NOMINATIVO NEL RISPETTO DELLA NORMATIVA SULLA PROTEZIONE DATI PERSONALI; ;L. 162/98. Piani personalizzati di sostegno in favore di persone con handicap grave. Finanziamento Agosto 2018 Liquidazione  di spesa.;14/09/2018;1429;1;179;1;Spese correnti;4;Trasferimenti correnti;2;Trasferimenti correnti a Famiglie;2;Interventi assistenziali;999;Altri assegni e sussidi assistenziali;14/09/2018
1490;1;0;1.003,65;1.003,65;OMESSO NOMINATIVO NEL RISPETTO DELLA NORMATIVA SULLA PROTEZIONE DATI PERSONALI; ;L. 162/98. Piani personalizzati di sostegno in favore di persone con handicap grave. Finanziamento maggio - dicembre 2018. liquidazione di spesa.;14/09/2018;1429;1;179;1;Spese correnti;4;Trasferimenti correnti;2;Trasferimenti correnti a Famiglie;2;Interventi assistenziali;999;Altri assegni e sussidi assistenziali;14/09/2018
1491;1;0;109,33;109,33;OMESSO NOMINATIVO NEL RISPETTO DELLA NORMATIVA SULLA PROTEZIONE DATI PERSONALI; ;L. 162/98. Piani personalizzati di sostegno in favore di persone con handicap grave. Finanziamento AGOSTO 2018. Liquidazione di spesa.;14/09/2018;1429;1;179;1;Spese correnti;4;Trasferimenti correnti;2;Trasferimenti correnti a Famiglie;2;Interventi assistenziali;999;Altri assegni e sussidi assistenziali;14/09/2018
1492;1;0;152,09;152,09;OMESSO NOMINATIVO NEL RISPETTO DELLA NORMATIVA SULLA PROTEZIONE DATI PERSONALI; ;L. 162/98. Piani personalizzati di sostegno in favore di persone con handicap grave. Finanziamento AGOSTO 2018.lIQUIDAZIONE di spesa.;14/09/2018;1429;1;179;1;Spese correnti;4;Trasferimenti correnti;2;Trasferimenti correnti a Famiglie;2;Interventi assistenziali;999;Altri assegni e sussidi assistenziali;14/09/2018
1493;1;0;316;316;OMESSO NOMINATIVO NEL RISPETTO DELLA NORMATIVA SULLA PROTEZIONE DATI PERSONALI; ;L. 162/98. Piani personalizzati di sostegno in favore di persone con handicap grave. Finanziamento maggio - dicembre 2018.LIQUIDAZIONE di spesa.;14/09/2018;1429;1;179;1;Spese correnti;4;Trasferimenti correnti;2;Trasferimenti correnti a Famiglie;2;Interventi assistenziali;999;Altri assegni e sussidi assistenziali;14/09/2018
1494;1;0;140;140;OMESSO NOMINATIVO NEL RISPETTO DELLA NORMATIVA SULLA PROTEZIONE DATI PERSONALI; ;L. 162/98. Piani personalizzati di sostegno in favore di persone con handicap grave. Finanziamento AGOSTO  2018. Liquidazaione di spesa.;14/09/2018;1429;1;179;1;Spese correnti;4;Trasferimenti correnti;2;Trasferimenti correnti a Famiglie;2;Interventi assistenziali;999;Altri assegni e sussidi assistenziali;14/09/2018
1495;1;0;750,06;750,06;OMESSO NOMINATIVO NEL RISPETTO DELLA NORMATIVA SULLA PROTEZIONE DATI PERSONALI; ;L. 162/98. Piani personalizzati di sostegno in favore di persone con handicap grave. Finanziamento Agosto 2018. liquidazione di spesa.;14/09/2018;1429;1;179;1;Spese correnti;4;Trasferimenti correnti;2;Trasferimenti correnti a Famiglie;2;Interventi assistenziali;999;Altri assegni e sussidi assistenziali;14/09/2018
1496;1;0;246,8;246,8;OMESSO NOMINATIVO NEL RISPETTO DELLA NORMATIVA SULLA PROTEZIONE DATI PERSONALI; ;L. 162/98. Piani personalizzati di sostegno in favore di persone con handicap grave. Finanziamento Agosto  2018. LIQUIDAZIONE di spesa.;14/09/2018;1429;1;179;1;Spese correnti;4;Trasferimenti correnti;2;Trasferimenti correnti a Famiglie;2;Interventi assistenziali;999;Altri assegni e sussidi assistenziali;14/09/2018
1497;1;0;216,01;216,01;OMESSO NOMINATIVO NEL RISPETTO DELLA NORMATIVA SULLA PROTEZIONE DATI PERSONALI; ;L. 162/98. Piani personalizzati di sostegno in favore di persone con handicap grave. Finanziamento Agosto 2018. Liquidzione di spesa.;14/09/2018;1429;1;179;1;Spese correnti;4;Trasferimenti correnti;2;Trasferimenti correnti a Famiglie;2;Interventi assistenziali;999;Altri assegni e sussidi assistenziali;14/09/2018
1498;1;0;366,8;366,8;OMESSO NOMINATIVO NEL RISPETTO DELLA NORMATIVA SULLA PROTEZIONE DATI PERSONALI; ;L. 162/98. Piani personalizzati di sostegno in favore di persone con handicap grave. Finanziamento maggio - dicembre 2018. liquidazione di spesa.;14/09/2018;1429;1;179;1;Spese correnti;4;Trasferimenti correnti;2;Trasferimenti correnti a Famiglie;2;Interventi assistenziali;999;Altri assegni e sussidi assistenziali;14/09/2018
1499;1;0;956,2;956,2;OMESSO NOMINATIVO NEL RISPETTO DELLA NORMATIVA SULLA PROTEZIONE DATI PERSONALI; ;L. 162/98. Piani personalizzati di sostegno in favore di persone con handicap grave. Finanziamento Agosto 2018 liquidazione di spesa in favore di n. 52 beneficiari.;14/09/2018;1429;1;179;1;Spese correnti;4;Trasferimenti correnti;2;Trasferimenti correnti a Famiglie;2;Interventi assistenziali;999;Altri assegni e sussidi assistenziali;14/09/2018
1500;1;0;319,03;319,03;OMESSO NOMINATIVO NEL RISPETTO DELLA NORMATIVA SULLA PROTEZIONE DATI PERSONALI; ;L. 162/98. Piani personalizzati di sostegno in favore di persone con handicap grave. Finanziamento Agosto 2018. Liquidazione  di spesa.;14/09/2018;1429;1;179;1;Spese correnti;4;Trasferimenti correnti;2;Trasferimenti correnti a Famiglie;2;Interventi assistenziali;999;Altri assegni e sussidi assistenziali;14/09/2018
1501;1;0;358,51;358,51;OMESSO NOMINATIVO NEL RISPETTO DELLA NORMATIVA SULLA PROTEZIONE DATI PERSONALI; ;L. 162/98. Piani personalizzati di sostegno in favore di persone con handicap grave. Finanziamento maggio - dicembre 2018. liquidazione di spesa.;14/09/2018;1429;1;179;1;Spese correnti;4;Trasferimenti correnti;2;Trasferimenti correnti a Famiglie;2;Interventi assistenziali;999;Altri assegni e sussidi assistenziali;14/09/2018
1502;1;0;208,55;208,55;OMESSO NOMINATIVO NEL RISPETTO DELLA NORMATIVA SULLA PROTEZIONE DATI PERSONALI; ;L. 162/98. Piani personalizzati di sostegno in favore di persone con handicap grave. Finanziamento Agosto 2018.liquidazione di spesa.;14/09/2018;1429;1;179;1;Spese correnti;4;Trasferimenti correnti;2;Trasferimenti correnti a Famiglie;2;Interventi assistenziali;999;Altri assegni e sussidi assistenziali;14/09/2018
1503;1;0;168,64;168,64;OMESSO NOMINATIVO NEL RISPETTO DELLA NORMATIVA SULLA PROTEZIONE DATI PERSONALI; ;L. 162/98. Piani personalizzati di sostegno in favore di persone con handicap grave. Finanziamento AGOSTO 2018. Liquidazione di spesa.;14/09/2018;1429;1;179;1;Spese correnti;4;Trasferimenti correnti;2;Trasferimenti correnti a Famiglie;2;Interventi assistenziali;999;Altri assegni e sussidi assistenziali;14/09/2018
1547;1;0;1.301,48;1.301,48;DIVERSI DIPENDENTI; ;LIQUIODAZIONE DI SPESA PER LA CORRESPONSIONE DELL' INDENNITA' DI FUNZIONE MESE SETTEMBRE 2018;17/09/2018;14;1;6;1;Spese correnti;3;Acquisto di beni e servizi;2;Acquisto di servizi;1;Organi e incarichi istituzionali dell'amministrazione;1;Organi istituzionali dell'amministrazione - Indennità;17/09/2018
1549;1;0;180;180;OMESSO NOMINATIVO NEL RISPETTO DELLA NORMATIVA SULLA PROTEZIONE DATI PERSONALI; ;Servizio di Assistenza Domiciliare per anziani e disabili.LIQUIDAZIONE di spesa in favore di n. 7 beneficiari. Luglio - dicembre 2018.;18/09/2018;1433;3;345;1;Spese correnti;4;Trasferimenti correnti;2;Trasferimenti correnti a Famiglie;2;Interventi assistenziali;999;Altri assegni e sussidi assistenziali;18/09/2018
1550;1;0;486;486;OMESSO NOMINATIVO NEL RISPETTO DELLA NORMATIVA SULLA PROTEZIONE DATI PERSONALI; ;Servizio di Assistenza Domiciliare per anziani e disabili.LIQUIDAZIONE di spesa in favore di n. 7 beneficiari. Luglio - AGOSTO 2018.;18/09/2018;1433;3;345;1;Spese correnti;4;Trasferimenti correnti;2;Trasferimenti correnti a Famiglie;2;Interventi assistenziali;999;Altri assegni e sussidi assistenziali;18/09/2018
1551;1;0;180;180;OMESSO NOMINATIVO NEL RISPETTO DELLA NORMATIVA SULLA PROTEZIONE DATI PERSONALI; ;Servizio di Assistenza Domiciliare per anziani e disabili.LIQUIDAZIONE di spesa in favore di n. 7 beneficiari. Luglio - Agosto 2018.;18/09/2018;1433;3;345;1;Spese correnti;4;Trasferimenti correnti;2;Trasferimenti correnti a Famiglie;2;Interventi assistenziali;999;Altri assegni e sussidi assistenziali;18/09/2018
1552;1;0;420;420;OMESSO NOMINATIVO NEL RISPETTO DELLA NORMATIVA SULLA PROTEZIONE DATI PERSONALI; ;Servizio di Assistenza Domiciliare per anziani e disabili. liquidazione di spesa in favore di n. 7 beneficiari. Luglio - AGOSTO  2018.;18/09/2018;1433;3;345;1;Spese correnti;4;Trasferimenti correnti;2;Trasferimenti correnti a Famiglie;2;Interventi assistenziali;999;Altri assegni e sussidi assistenziali;18/09/2018
1553;1;0;107,11;107,11;OMESSO NOMINATIVO NEL RISPETTO DELLA NORMATIVA SULLA PROTEZIONE DATI PERSONALI; ;Servizio di Assistenza Domiciliare per anziani e disabili. LIQUIDAZIONE di spesa in favore di n. 7 beneficiari. Luglio -AGOSTO 2018.;18/09/2018;1433;3;345;1;Spese correnti;4;Trasferimenti correnti;2;Trasferimenti correnti a Famiglie;2;Interventi assistenziali;999;Altri assegni e sussidi assistenziali;18/09/2018
1554;1;0;480;480;OMESSO NOMINATIVO NEL RISPETTO DELLA NORMATIVA SULLA PROTEZIONE DATI PERSONALI; ;Servizio di Assistenza Domiciliare per anziani e disabili. Impegno di spesa in favore di n. 7 beneficiari. Luglio - dicembre 2018.;18/09/2018;1433;3;345;1;Spese correnti;4;Trasferimenti correnti;2;Trasferimenti correnti a Famiglie;2;Interventi assistenziali;999;Altri assegni e sussidi assistenziali;18/09/2018
1555;1;0;1.033,98;1.033,98;OMESSO NOMINATIVO NEL RISPETTO DELLA NORMATIVA SULLA PROTEZIONE DATI PERSONALI; ;LL.RR. 15/92 e 20/97. Liquidazione sussidio economico in favore di n. 6 beneficiari. Gennaio - giugno 2018.;18/09/2018;1432;1;353;1;Spese correnti;4;Trasferimenti correnti;2;Trasferimenti correnti a Famiglie;2;Interventi assistenziali;999;Altri assegni e sussidi assistenziali;18/09/2018
1556;1;0;1.059,24;1.059,24;OMESSO NOMINATIVO NEL RISPETTO DELLA NORMATIVA SULLA PROTEZIONE DATI PERSONALI; ;LL.RR. 15/92 e 20/97. Liquidazione sussidio economico in favore di n. 6 beneficiari. Gennaio - giugno 2018.;18/09/2018;1432;1;353;1;Spese correnti;4;Trasferimenti correnti;2;Trasferimenti correnti a Famiglie;2;Interventi assistenziali;999;Altri assegni e sussidi assistenziali;18/09/2018
1557;1;0;1.033,98;1.033,98;OMESSO NOMINATIVO NEL RISPETTO DELLA NORMATIVA SULLA PROTEZIONE DATI PERSONALI; ;LL.RR. 15/92 e 20/97. Liquidazione sussidio economico in favore di n. 6 beneficiari. Gennaio - giugno 2018.;18/09/2018;1432;1;353;1;Spese correnti;4;Trasferimenti correnti;2;Trasferimenti correnti a Famiglie;2;Interventi assistenziali;999;Altri assegni e sussidi assistenziali;18/09/2018
1558;1;0;929,22;929,22;OMESSO NOMINATIVO NEL RISPETTO DELLA NORMATIVA SULLA PROTEZIONE DATI PERSONALI; ;LL.RR. 15/92 e 20/97. Liquidazione sussidio economico in favore di n. 6 beneficiari. Gennaio - giugno 2018.;18/09/2018;1432;1;353;1;Spese correnti;4;Trasferimenti correnti;2;Trasferimenti correnti a Famiglie;2;Interventi assistenziali;999;Altri assegni e sussidi assistenziali;18/09/2018
1559;1;0;2.937,72;2.937,72;OMESSO NOMINATIVO NEL RISPETTO DELLA NORMATIVA SULLA PROTEZIONE DATI PERSONALI; ;LL.RR. 15/92 e 20/97. Liquidazione sussidio economico in favore di n. 6 beneficiari. Gennaio - giugno 2018.;18/09/2018;1432;1;353;1;Spese correnti;4;Trasferimenti correnti;2;Trasferimenti correnti a Famiglie;2;Interventi assistenziali;999;Altri assegni e sussidi assistenziali;18/09/2018
1560;1;0;2.937,72;2.937,72;OMESSO NOMINATIVO NEL RISPETTO DELLA NORMATIVA SULLA PROTEZIONE DATI PERSONALI; ;LL.RR. 15/92 e 20/97. Liquidazione sussidio economico in favore di n. 6 beneficiari. Gennaio - giugno 2018.;18/09/2018;1432;1;353;1;Spese correnti;4;Trasferimenti correnti;2;Trasferimenti correnti a Famiglie;2;Interventi assistenziali;999;Altri assegni e sussidi assistenziali;18/09/2018
1561;1;0;1.200,00;1.200,00;"ISTITUTO COMPRENSIVO STATALE ""E. DE MAGISTRIS"""; ;"A.S. 2018/2019 - LIQUIDAZIONE di spesa per trasferimento fondi all'Istituto Comprensivo Statale ""E. de Magistris"" con sede a San Nicolo Gerrei (CA), per l'acquisto di materiale per la pulizia, registri di classe, giornali dell'insegnante, ecc., per l";18/09/2018;620;2;344;1;Spese correnti;4;Trasferimenti correnti;1;Trasferimenti correnti a Amministrazioni Pubbliche;1;Trasferimenti correnti a Amministrazioni Centrali;2;Trasferimenti correnti a Ministero dell'Istruzione - Istituzioni scolastiche;18/09/2018
1562;1;0;722,69;722,69;OMESSO NOMINATIVO NEL RISPETTO DELLA NORMATIVA SULLA PROTEZIONE DATI PERSONALI; ;L. 162/98. Piani personalizzati di sostegno in favore di persone con handicap grave. Finanziamento maggio - dicembre 2018.Liquidazione di spesa.;18/09/2018;1429;1;179;1;Spese correnti;4;Trasferimenti correnti;2;Trasferimenti correnti a Famiglie;2;Interventi assistenziali;999;Altri assegni e sussidi assistenziali;18/09/2018
1563;1;0;393,39;393,39;OMESSO NOMINATIVO NEL RISPETTO DELLA NORMATIVA SULLA PROTEZIONE DATI PERSONALI; ;Servizio di Assistenza Domiciliare per anziani e disabili. liquidazione di spesa in favore di n. 7 beneficiari. Luglio - Agosto 2018.;18/09/2018;1433;3;345;1;Spese correnti;4;Trasferimenti correnti;2;Trasferimenti correnti a Famiglie;2;Interventi assistenziali;999;Altri assegni e sussidi assistenziali;18/09/2018
1566;1;0;93,55;236,32;KUWAIT PETROLEUM ITALIA SPA;Z621D28DB4;SALDO Fatt.n. PJ00271603  del 31/08/2018;20/09/2018;208;8;508;1;Spese correnti;3;Acquisto di beni e servizi;1;Acquisto di beni;2;Altri beni di consumo;2;Carburanti, combustibili e lubrificanti;20/09/2018
1566;2;0;142,77;236,32;KUWAIT PETROLEUM ITALIA SPA;Z621D28DB4;ACCONTO Fatt.n. PJ00271603  del 31/08/2018;20/09/2018;208;8;508;1;Spese correnti;3;Acquisto di beni e servizi;1;Acquisto di beni;2;Altri beni di consumo;2;Carburanti, combustibili e lubrificanti;20/09/2018
1567;1;0;-593,2;3.262,62;ENEL ENERGIA SPA;7429682F87;SALDO Fatt.n. 004810967230  del 08/06/2018;24/09/2018;1015;1;392;1;Spese correnti;3;Acquisto di beni e servizi;2;Acquisto di servizi;5;Utenze e canoni;4;Energia elettrica;24/09/2018
1567;2;0;-567,98;3.262,62;ENEL ENERGIA SPA;7429682F87;SALDO Fatt.n. 004810967224  del 08/06/2018;24/09/2018;1015;1;392;1;Spese correnti;3;Acquisto di beni e servizi;2;Acquisto di servizi;5;Utenze e canoni;4;Energia elettrica;24/09/2018
1567;3;0;-397,7;3.262,62;ENEL ENERGIA SPA;7429682F87;SALDO Fatt.n. 004810967226  del 08/06/2018;24/09/2018;1015;1;392;1;Spese correnti;3;Acquisto di beni e servizi;2;Acquisto di servizi;5;Utenze e canoni;4;Energia elettrica;24/09/2018
1567;4;0;-347,18;3.262,62;ENEL ENERGIA SPA;7429682F87;SALDO Fatt.n. 004810967231  del 08/06/2018;24/09/2018;1015;1;392;1;Spese correnti;3;Acquisto di beni e servizi;2;Acquisto di servizi;5;Utenze e canoni;4;Energia elettrica;24/09/2018
1567;5;0;-253,09;3.262,62;ENEL ENERGIA SPA;7429682F87;SALDO Fatt.n. 004810967225  del 08/06/2018;24/09/2018;1015;1;392;1;Spese correnti;3;Acquisto di beni e servizi;2;Acquisto di servizi;5;Utenze e canoni;4;Energia elettrica;24/09/2018
1567;6;0;-229,04;3.262,62;ENEL ENERGIA SPA;7429682F87;SALDO Fatt.n. 004810967232  del 08/06/2018;24/09/2018;1015;1;392;1;Spese correnti;3;Acquisto di beni e servizi;2;Acquisto di servizi;5;Utenze e canoni;4;Energia elettrica;24/09/2018
1567;7;0;-63,76;3.262,62;ENEL ENERGIA SPA;7429682F87;SALDO Fatt.n. 004810967220  del 08/06/2018;24/09/2018;1015;1;392;1;Spese correnti;3;Acquisto di beni e servizi;2;Acquisto di servizi;5;Utenze e canoni;4;Energia elettrica;24/09/2018
1567;8;0;9,61;3.262,62;ENEL ENERGIA SPA;7429682F87;SALDO Fatt.n. 004811514427  del 06/09/2018;24/09/2018;1015;1;392;1;Spese correnti;3;Acquisto di beni e servizi;2;Acquisto di servizi;5;Utenze e canoni;4;Energia elettrica;24/09/2018
1567;9;0;48,51;3.262,62;ENEL ENERGIA SPA;7429682F87;SALDO Fatt.n. 004811514421  del 06/09/2018;24/09/2018;1015;1;392;1;Spese correnti;3;Acquisto di beni e servizi;2;Acquisto di servizi;5;Utenze e canoni;4;Energia elettrica;24/09/2018
1567;10;0;63,76;3.262,62;ENEL ENERGIA SPA;7429682F87;SALDO Fatt.n. 004810967266  del 08/06/2018;24/09/2018;1015;1;392;1;Spese correnti;3;Acquisto di beni e servizi;2;Acquisto di servizi;5;Utenze e canoni;4;Energia elettrica;24/09/2018
1567;11;0;94,2;3.262,62;ENEL ENERGIA SPA;7429682F87;SALDO Fatt.n. 004811514412  del 06/09/2018;24/09/2018;1015;1;392;1;Spese correnti;3;Acquisto di beni e servizi;2;Acquisto di servizi;5;Utenze e canoni;4;Energia elettrica;24/09/2018
1567;12;0;188;3.262,62;ENEL ENERGIA SPA;7429682F87;SALDO Fatt.n. 004811514407  del 06/09/2018;24/09/2018;1015;1;392;1;Spese correnti;3;Acquisto di beni e servizi;2;Acquisto di servizi;5;Utenze e canoni;4;Energia elettrica;24/09/2018
1567;13;0;201,25;3.262,62;ENEL ENERGIA SPA;7429682F87;SALDO Fatt.n. 004811514415  del 06/09/2018;24/09/2018;1015;1;392;1;Spese correnti;3;Acquisto di beni e servizi;2;Acquisto di servizi;5;Utenze e canoni;4;Energia elettrica;24/09/2018
1567;14;0;218,82;3.262,62;ENEL ENERGIA SPA;7429682F87;SALDO Fatt.n. 004811514423  del 06/09/2018;24/09/2018;1015;1;392;1;Spese correnti;3;Acquisto di beni e servizi;2;Acquisto di servizi;5;Utenze e canoni;4;Energia elettrica;24/09/2018
1567;15;0;229,04;3.262,62;ENEL ENERGIA SPA;7429682F87;SALDO Fatt.n. 004810967251  del 08/06/2018;24/09/2018;1015;1;392;1;Spese correnti;3;Acquisto di beni e servizi;2;Acquisto di servizi;5;Utenze e canoni;4;Energia elettrica;24/09/2018
1567;16;0;253,09;3.262,62;ENEL ENERGIA SPA;7429682F87;SALDO Fatt.n. 004810967268  del 08/06/2018;24/09/2018;1015;1;392;1;Spese correnti;3;Acquisto di beni e servizi;2;Acquisto di servizi;5;Utenze e canoni;4;Energia elettrica;24/09/2018
1567;17;0;300,11;3.262,62;ENEL ENERGIA SPA;7429682F87;SALDO Fatt.n. 004811514411  del 06/09/2018;24/09/2018;1015;1;392;1;Spese correnti;3;Acquisto di beni e servizi;2;Acquisto di servizi;5;Utenze e canoni;4;Energia elettrica;24/09/2018
1567;18;0;321,51;3.262,62;ENEL ENERGIA SPA;7429682F87;SALDO Fatt.n. 004811514422  del 06/09/2018;24/09/2018;1015;1;392;1;Spese correnti;3;Acquisto di beni e servizi;2;Acquisto di servizi;5;Utenze e canoni;4;Energia elettrica;24/09/2018
1567;19;0;347,18;3.262,62;ENEL ENERGIA SPA;7429682F87;SALDO Fatt.n. 004810967282  del 08/06/2018;24/09/2018;1015;1;392;1;Spese correnti;3;Acquisto di beni e servizi;2;Acquisto di servizi;5;Utenze e canoni;4;Energia elettrica;24/09/2018
1567;20;0;397,7;3.262,62;ENEL ENERGIA SPA;7429682F87;SALDO Fatt.n. 004810967267  del 08/06/2018;24/09/2018;1015;1;392;1;Spese correnti;3;Acquisto di beni e servizi;2;Acquisto di servizi;5;Utenze e canoni;4;Energia elettrica;24/09/2018
1567;21;0;455,32;3.262,62;ENEL ENERGIA SPA;7429682F87;SALDO Fatt.n. 004811514425  del 06/09/2018;24/09/2018;1015;1;392;1;Spese correnti;3;Acquisto di beni e servizi;2;Acquisto di servizi;5;Utenze e canoni;4;Energia elettrica;24/09/2018
1567;22;0;481,89;3.262,62;ENEL ENERGIA SPA;7429682F87;SALDO Fatt.n. 004811514413  del 06/09/2018;24/09/2018;1015;1;392;1;Spese correnti;3;Acquisto di beni e servizi;2;Acquisto di servizi;5;Utenze e canoni;4;Energia elettrica;24/09/2018
1567;23;0;567,98;3.262,62;ENEL ENERGIA SPA;7429682F87;SALDO Fatt.n. 004810967297  del 08/06/2018;24/09/2018;1015;1;392;1;Spese correnti;3;Acquisto di beni e servizi;2;Acquisto di servizi;5;Utenze e canoni;4;Energia elettrica;24/09/2018
1567;24;0;593,2;3.262,62;ENEL ENERGIA SPA;7429682F87;SALDO Fatt.n. 004810967257  del 08/06/2018;24/09/2018;1015;1;392;1;Spese correnti;3;Acquisto di beni e servizi;2;Acquisto di servizi;5;Utenze e canoni;4;Energia elettrica;24/09/2018
1567;25;0;943,4;3.262,62;ENEL ENERGIA SPA;7429682F87;SALDO Fatt.n. 004811514403  del 06/09/2018;24/09/2018;1015;1;392;1;Spese correnti;3;Acquisto di beni e servizi;2;Acquisto di servizi;5;Utenze e canoni;4;Energia elettrica;24/09/2018
1568;1;0;-42,9;100;ENEL ENERGIA SPA;7429682F87;SALDO Fatt.n. 004810967134  del 08/06/2018;24/09/2018;1090;1;393;1;Spese correnti;3;Acquisto di beni e servizi;2;Acquisto di servizi;5;Utenze e canoni;4;Energia elettrica;24/09/2018
1568;2;0;-23,41;100;ENEL ENERGIA SPA;7429682F87;SALDO Fatt.n. 004810967233  del 08/06/2018;24/09/2018;1090;1;393;1;Spese correnti;3;Acquisto di beni e servizi;2;Acquisto di servizi;5;Utenze e canoni;4;Energia elettrica;24/09/2018
1568;3;0;-21,98;100;ENEL ENERGIA SPA;7429682F87;SALDO Fatt.n. 004810967216  del 08/06/2018;24/09/2018;1090;1;393;1;Spese correnti;3;Acquisto di beni e servizi;2;Acquisto di servizi;5;Utenze e canoni;4;Energia elettrica;24/09/2018
1568;4;0;-21,98;100;ENEL ENERGIA SPA;7429682F87;SALDO Fatt.n. 004810967214  del 08/06/2018;24/09/2018;1090;1;393;1;Spese correnti;3;Acquisto di beni e servizi;2;Acquisto di servizi;5;Utenze e canoni;4;Energia elettrica;24/09/2018
1568;5;0;-21,98;100;ENEL ENERGIA SPA;7429682F87;SALDO Fatt.n. 004810967215  del 08/06/2018;24/09/2018;1090;1;393;1;Spese correnti;3;Acquisto di beni e servizi;2;Acquisto di servizi;5;Utenze e canoni;4;Energia elettrica;24/09/2018
1568;6;0;19,13;100;ENEL ENERGIA SPA;7429682F87;SALDO Fatt.n. 004811514405  del 06/09/2018;24/09/2018;1090;1;393;1;Spese correnti;3;Acquisto di beni e servizi;2;Acquisto di servizi;5;Utenze e canoni;4;Energia elettrica;24/09/2018
1568;7;0;19,13;100;ENEL ENERGIA SPA;7429682F87;SALDO Fatt.n. 004811514410  del 06/09/2018;24/09/2018;1090;1;393;1;Spese correnti;3;Acquisto di beni e servizi;2;Acquisto di servizi;5;Utenze e canoni;4;Energia elettrica;24/09/2018
1568;8;0;21,98;100;ENEL ENERGIA SPA;7429682F87;SALDO Fatt.n. 004810967249  del 08/06/2018;24/09/2018;1090;1;393;1;Spese correnti;3;Acquisto di beni e servizi;2;Acquisto di servizi;5;Utenze e canoni;4;Energia elettrica;24/09/2018
1568;9;0;21,98;100;ENEL ENERGIA SPA;7429682F87;SALDO Fatt.n. 004810967254  del 08/06/2018;24/09/2018;1090;1;393;1;Spese correnti;3;Acquisto di beni e servizi;2;Acquisto di servizi;5;Utenze e canoni;4;Energia elettrica;24/09/2018
1568;10;0;21,98;100;ENEL ENERGIA SPA;7429682F87;SALDO Fatt.n. 004810967265  del 08/06/2018;24/09/2018;1090;1;393;1;Spese correnti;3;Acquisto di beni e servizi;2;Acquisto di servizi;5;Utenze e canoni;4;Energia elettrica;24/09/2018
1568;11;0;23,41;100;ENEL ENERGIA SPA;7429682F87;SALDO Fatt.n. 004810967250  del 08/06/2018;24/09/2018;1090;1;393;1;Spese correnti;3;Acquisto di beni e servizi;2;Acquisto di servizi;5;Utenze e canoni;4;Energia elettrica;24/09/2018
1568;12;0;24,42;100;ENEL ENERGIA SPA;7429682F87;SALDO Fatt.n. 004811514406  del 06/09/2018;24/09/2018;1090;1;393;1;Spese correnti;3;Acquisto di beni e servizi;2;Acquisto di servizi;5;Utenze e canoni;4;Energia elettrica;24/09/2018
1568;13;0;37,32;100;ENEL ENERGIA SPA;7429682F87;SALDO Fatt.n. 004811514426  del 06/09/2018;24/09/2018;1090;1;393;1;Spese correnti;3;Acquisto di beni e servizi;2;Acquisto di servizi;5;Utenze e canoni;4;Energia elettrica;24/09/2018
1568;14;0;42,9;100;ENEL ENERGIA SPA;7429682F87;SALDO Fatt.n. 004810967298  del 08/06/2018;24/09/2018;1090;1;393;1;Spese correnti;3;Acquisto di beni e servizi;2;Acquisto di servizi;5;Utenze e canoni;4;Energia elettrica;24/09/2018
1569;1;0;19,13;66,99;ENEL ENERGIA SPA;7429682F87;SALDO Fatt.n. 004811514420  del 06/09/2018;24/09/2018;1302;2;394;1;Spese correnti;3;Acquisto di beni e servizi;2;Acquisto di servizi;5;Utenze e canoni;4;Energia elettrica;24/09/2018
1569;2;0;47,86;66,99;ENEL ENERGIA SPA;7429682F87;SALDO Fatt.n. 004811514402  del 06/09/2018;24/09/2018;1302;2;394;1;Spese correnti;3;Acquisto di beni e servizi;2;Acquisto di servizi;5;Utenze e canoni;4;Energia elettrica;24/09/2018
1570;1;0;-228,46;134,61;ENEL ENERGIA SPA;7429682F87;SALDO Fatt.n. 004810967211  del 08/06/2018;24/09/2018;716;4;395;1;Spese correnti;3;Acquisto di beni e servizi;2;Acquisto di servizi;5;Utenze e canoni;4;Energia elettrica;24/09/2018
1570;2;0;134,61;134,61;ENEL ENERGIA SPA;7429682F87;SALDO Fatt.n. 004811514418  del 06/09/2018;24/09/2018;716;4;395;1;Spese correnti;3;Acquisto di beni e servizi;2;Acquisto di servizi;5;Utenze e canoni;4;Energia elettrica;24/09/2018
1570;3;0;228,46;134,61;ENEL ENERGIA SPA;7429682F87;SALDO Fatt.n. 004810967262  del 08/06/2018;24/09/2018;716;4;395;1;Spese correnti;3;Acquisto di beni e servizi;2;Acquisto di servizi;5;Utenze e canoni;4;Energia elettrica;24/09/2018
1571;1;0;-244,71;141,34;ENEL ENERGIA SPA;7429682F87;SALDO Fatt.n. 004810967210  del 08/06/2018;24/09/2018;618;4;396;1;Spese correnti;3;Acquisto di beni e servizi;2;Acquisto di servizi;5;Utenze e canoni;4;Energia elettrica;24/09/2018
1571;2;0;141,34;141,34;ENEL ENERGIA SPA;7429682F87;SALDO Fatt.n. 004811514419  del 06/09/2018;24/09/2018;618;4;396;1;Spese correnti;3;Acquisto di beni e servizi;2;Acquisto di servizi;5;Utenze e canoni;4;Energia elettrica;24/09/2018
1571;3;0;244,71;141,34;ENEL ENERGIA SPA;7429682F87;SALDO Fatt.n. 004810967263  del 08/06/2018;24/09/2018;618;4;396;1;Spese correnti;3;Acquisto di beni e servizi;2;Acquisto di servizi;5;Utenze e canoni;4;Energia elettrica;24/09/2018
1572;1;0;-580,4;408,16;ENEL ENERGIA SPA;7429682F87;SALDO Fatt.n. 004810967219  del 08/06/2018;24/09/2018;118;4;397;1;Spese correnti;3;Acquisto di beni e servizi;2;Acquisto di servizi;5;Utenze e canoni;4;Energia elettrica;24/09/2018
1572;2;0;-72,82;408,16;ENEL ENERGIA SPA;7429682F87;SALDO Fatt.n. 004810967221  del 08/06/2018;24/09/2018;118;4;397;1;Spese correnti;3;Acquisto di beni e servizi;2;Acquisto di servizi;5;Utenze e canoni;4;Energia elettrica;24/09/2018
1572;3;0;-47,03;408,16;ENEL ENERGIA SPA;7429682F87;SALDO Fatt.n. 004810967227  del 08/06/2018;24/09/2018;118;4;397;1;Spese correnti;3;Acquisto di beni e servizi;2;Acquisto di servizi;5;Utenze e canoni;4;Energia elettrica;24/09/2018
1572;4;0;-12,08;408,16;ENEL ENERGIA SPA;7429682F87;SALDO Fatt.n. 004810967217  del 08/06/2018;24/09/2018;118;4;397;1;Spese correnti;3;Acquisto di beni e servizi;2;Acquisto di servizi;5;Utenze e canoni;4;Energia elettrica;24/09/2018
1572;5;0;12,08;408,16;ENEL ENERGIA SPA;7429682F87;SALDO Fatt.n. 004810967272  del 08/06/2018;24/09/2018;118;4;397;1;Spese correnti;3;Acquisto di beni e servizi;2;Acquisto di servizi;5;Utenze e canoni;4;Energia elettrica;24/09/2018
1572;6;0;25,34;408,16;ENEL ENERGIA SPA;7429682F87;SALDO Fatt.n. 004811514417  del 06/09/2018;24/09/2018;118;4;397;1;Spese correnti;3;Acquisto di beni e servizi;2;Acquisto di servizi;5;Utenze e canoni;4;Energia elettrica;24/09/2018
1572;7;0;47,03;408,16;ENEL ENERGIA SPA;7429682F87;SALDO Fatt.n. 004810967261  del 08/06/2018;24/09/2018;118;4;397;1;Spese correnti;3;Acquisto di beni e servizi;2;Acquisto di servizi;5;Utenze e canoni;4;Energia elettrica;24/09/2018
1572;8;0;62,59;408,16;ENEL ENERGIA SPA;7429682F87;SALDO Fatt.n. 004811514408  del 06/09/2018;24/09/2018;118;4;397;1;Spese correnti;3;Acquisto di beni e servizi;2;Acquisto di servizi;5;Utenze e canoni;4;Energia elettrica;24/09/2018
1572;9;0;72,82;408,16;ENEL ENERGIA SPA;7429682F87;SALDO Fatt.n. 004810967252  del 08/06/2018;24/09/2018;118;4;397;1;Spese correnti;3;Acquisto di beni e servizi;2;Acquisto di servizi;5;Utenze e canoni;4;Energia elettrica;24/09/2018
1572;10;0;320,23;408,16;ENEL ENERGIA SPA;7429682F87;SALDO Fatt.n. 004811514424  del 06/09/2018;24/09/2018;118;4;397;1;Spese correnti;3;Acquisto di beni e servizi;2;Acquisto di servizi;5;Utenze e canoni;4;Energia elettrica;24/09/2018
1572;11;0;580,4;408,16;ENEL ENERGIA SPA;7429682F87;SALDO Fatt.n. 004810967269  del 08/06/2018;24/09/2018;118;4;397;1;Spese correnti;3;Acquisto di beni e servizi;2;Acquisto di servizi;5;Utenze e canoni;4;Energia elettrica;24/09/2018
1573;1;0;-186,46;210,69;ENEL ENERGIA SPA;7429682F87;SALDO Fatt.n. 004810967212  del 08/06/2018;24/09/2018;592;4;402;1;Spese correnti;3;Acquisto di beni e servizi;2;Acquisto di servizi;5;Utenze e canoni;4;Energia elettrica;24/09/2018
1573;2;0;186,46;210,69;ENEL ENERGIA SPA;7429682F87;SALDO Fatt.n. 004810967253  del 08/06/2018;24/09/2018;592;4;402;1;Spese correnti;3;Acquisto di beni e servizi;2;Acquisto di servizi;5;Utenze e canoni;4;Energia elettrica;24/09/2018
1573;3;0;210,69;210,69;ENEL ENERGIA SPA;7429682F87;SALDO Fatt.n. 004811514409  del 06/09/2018;24/09/2018;592;4;402;1;Spese correnti;3;Acquisto di beni e servizi;2;Acquisto di servizi;5;Utenze e canoni;4;Energia elettrica;24/09/2018
1574;1;0;-117,91;90,9;ENEL ENERGIA SPA;7429682F87;SALDO Fatt.n. 004810967147  del 08/06/2018;24/09/2018;1340;4;403;1;Spese correnti;3;Acquisto di beni e servizi;2;Acquisto di servizi;5;Utenze e canoni;4;Energia elettrica;24/09/2018
1574;2;0;-115,85;90,9;ENEL ENERGIA SPA;7429682F87;SALDO Fatt.n. 004810967208  del 08/06/2018;24/09/2018;1340;4;403;1;Spese correnti;3;Acquisto di beni e servizi;2;Acquisto di servizi;5;Utenze e canoni;4;Energia elettrica;24/09/2018
1574;3;0;90,9;90,9;ENEL ENERGIA SPA;7429682F87;SALDO Fatt.n. 004811514414  del 06/09/2018;24/09/2018;1340;4;403;1;Spese correnti;3;Acquisto di beni e servizi;2;Acquisto di servizi;5;Utenze e canoni;4;Energia elettrica;24/09/2018
1574;4;0;115,85;90,9;ENEL ENERGIA SPA;7429682F87;SALDO Fatt.n. 004810967285  del 08/06/2018;24/09/2018;1340;4;403;1;Spese correnti;3;Acquisto di beni e servizi;2;Acquisto di servizi;5;Utenze e canoni;4;Energia elettrica;24/09/2018
1574;5;0;117,91;90,9;ENEL ENERGIA SPA;7429682F87;SALDO Fatt.n. 004810967339  del 08/06/2018;24/09/2018;1340;4;403;1;Spese correnti;3;Acquisto di beni e servizi;2;Acquisto di servizi;5;Utenze e canoni;4;Energia elettrica;24/09/2018
1575;1;0;-22,73;20,42;ENEL ENERGIA SPA;7429682F87;SALDO Fatt.n. 004810967141  del 08/06/2018;24/09/2018;1486;1;404;1;Spese correnti;3;Acquisto di beni e servizi;2;Acquisto di servizi;5;Utenze e canoni;4;Energia elettrica;24/09/2018
1575;2;0;20,42;20,42;ENEL ENERGIA SPA;7429682F87;SALDO Fatt.n. 004811604235  del 12/09/2018;24/09/2018;1486;1;404;1;Spese correnti;3;Acquisto di beni e servizi;2;Acquisto di servizi;5;Utenze e canoni;4;Energia elettrica;24/09/2018
1575;3;0;22,73;20,42;ENEL ENERGIA SPA;7429682F87;SALDO Fatt.n. 004810967291  del 08/06/2018;24/09/2018;1486;1;404;1;Spese correnti;3;Acquisto di beni e servizi;2;Acquisto di servizi;5;Utenze e canoni;4;Energia elettrica;24/09/2018
1576;1;0;-462,18;419,66;ENEL ENERGIA SPA;7429682F87;SALDO Fatt.n. 004810967222  del 08/06/2018;24/09/2018;820;1;405;1;Spese correnti;3;Acquisto di beni e servizi;2;Acquisto di servizi;5;Utenze e canoni;4;Energia elettrica;24/09/2018
1576;2;0;-316,83;419,66;ENEL ENERGIA SPA;7429682F87;SALDO Fatt.n. 004810967228  del 08/06/2018;24/09/2018;820;1;405;1;Spese correnti;3;Acquisto di beni e servizi;2;Acquisto di servizi;5;Utenze e canoni;4;Energia elettrica;24/09/2018
1576;3;0;138,34;419,66;ENEL ENERGIA SPA;7429682F87;SALDO Fatt.n. 004811514416  del 06/09/2018;24/09/2018;820;1;405;1;Spese correnti;3;Acquisto di beni e servizi;2;Acquisto di servizi;5;Utenze e canoni;4;Energia elettrica;24/09/2018
1576;4;0;281,32;419,66;ENEL ENERGIA SPA;7429682F87;SALDO Fatt.n. 004811514404  del 06/09/2018;24/09/2018;820;1;405;1;Spese correnti;3;Acquisto di beni e servizi;2;Acquisto di servizi;5;Utenze e canoni;4;Energia elettrica;24/09/2018
1576;5;0;316,83;419,66;ENEL ENERGIA SPA;7429682F87;SALDO Fatt.n. 004810967260  del 08/06/2018;24/09/2018;820;1;405;1;Spese correnti;3;Acquisto di beni e servizi;2;Acquisto di servizi;5;Utenze e canoni;4;Energia elettrica;24/09/2018
1576;6;0;462,18;419,66;ENEL ENERGIA SPA;7429682F87;SALDO Fatt.n. 004810967248  del 08/06/2018;24/09/2018;820;1;405;1;Spese correnti;3;Acquisto di beni e servizi;2;Acquisto di servizi;5;Utenze e canoni;4;Energia elettrica;24/09/2018
1577;1;0;18,93;18,93;ENEL ENERGIA SPA;Z7122ECA74;SALDO Fatt.n. 004811543595  del 06/09/2018;24/09/2018;744;1;135;1;Spese correnti;3;Acquisto di beni e servizi;2;Acquisto di servizi;5;Utenze e canoni;4;Energia elettrica;24/09/2018
1578;1;0;3.796,28;3.796,28;S. NICOLO' GERREI SOC. COOP AGRICOLA A R.L.;654275001B;ACCONTO Fatt.n. FATTPA 1_18  del 30/08/2018;24/09/2018;3492;1;608;2;Spese in conto capitale;2;Investimenti fissi lordi e acquisto di terreni;2;Terreni e beni materiali non prodotti;2;Patrimonio naturale non prodotto;3;Foreste;24/09/2018
1579;1;0;1.846,16;1.846,16;S. NICOLO' GERREI SOC. COOP AGRICOLA A R.L.;654275001B;SALDO Fatt.n. FATTPA 1_18  del 30/08/2018;24/09/2018;3492;1;607;2;Spese in conto capitale;2;Investimenti fissi lordi e acquisto di terreni;2;Terreni e beni materiali non prodotti;2;Patrimonio naturale non prodotto;3;Foreste;24/09/2018
1580;1;0;5.384,00;5.384,00;UNIONE COMUNI DELLA TREXENTA; ;L.R. 05.03.2008 n. 3 art. 4 comma 1 lett. a) come modificato dalla L.R. 14.05.2009 n. 1, art. 3, comma 18. Interventi a favore degli enti locali per il supporto organizzativo del servizio di istruzione per alunni con disabilita. Liquidazione di spesa;24/09/2018;1452;1;527;1;Spese correnti;4;Trasferimenti correnti;1;Trasferimenti correnti a Amministrazioni Pubbliche;2;Trasferimenti correnti a Amministrazioni Locali;5;Trasferimenti correnti a Unioni di Comuni;24/09/2018
1581;1;0;6.377,00;6.377,00;UNIONE COMUNI DELLA TREXENTA; ;L.R. 05.03.2008 n. 3 art. 4 comma 1 lett. a) come modificato dalla L.R. 14.05.2009 n. 1, art. 3, comma 18. Interventi a favore degli enti locali per il supporto organizzativo del servizio di istruzione per alunni con disabilita. Liquidazione di spesa;24/09/2018;1452;1;550;1;Spese correnti;4;Trasferimenti correnti;1;Trasferimenti correnti a Amministrazioni Pubbliche;2;Trasferimenti correnti a Amministrazioni Locali;5;Trasferimenti correnti a Unioni di Comuni;24/09/2018
1582;1;0;80;80;OMESSO NOMINATIVO NEL RISPETTO DELLA NORMATIVA SULLA PROTEZIONE DATI PERSONALI; ;A.S. 2017/2018 -Liquidazione di spesa per l'attribuzione assegni di studio in favore degli studenti dal I al IV anno della Scuola Secondaria di II grado, che abbiano conseguito la promozione alla classe successiva senza sospensione del giudizio - App;24/09/2018;682;6;246;1;Spese correnti;4;Trasferimenti correnti;2;Trasferimenti correnti a Famiglie;3;Borse di studio, dottorati di ricerca e contratti di formazione specialistica area medica;1;Borse di studio;24/09/2018
1583;1;0;80;80;OMESSO NOMINATIVO NEL RISPETTO DELLA NORMATIVA SULLA PROTEZIONE DATI PERSONALI; ;A.S. 2017/2018 -Liquidazione di spesa per l'attribuzione assegni di studio in favore degli studenti dal I al IV anno della Scuola Secondaria di II grado, che abbiano conseguito la promozione alla classe successiva senza sospensione del giudizio - App;24/09/2018;682;6;246;1;Spese correnti;4;Trasferimenti correnti;2;Trasferimenti correnti a Famiglie;3;Borse di studio, dottorati di ricerca e contratti di formazione specialistica area medica;1;Borse di studio;24/09/2018
1584;1;0;80;80;OMESSO NOMINATIVO NEL RISPETTO DELLA NORMATIVA SULLA PROTEZIONE DATI PERSONALI; ;A.S. 2017/2018 -Liquidazione di spesa per l'attribuzione assegni di studio in favore degli studenti dal I al IV anno della Scuola Secondaria di II grado, che abbiano conseguito la promozione alla classe successiva senza sospensione del giudizio - App;24/09/2018;682;6;246;1;Spese correnti;4;Trasferimenti correnti;2;Trasferimenti correnti a Famiglie;3;Borse di studio, dottorati di ricerca e contratti di formazione specialistica area medica;1;Borse di studio;24/09/2018
1585;1;0;80;80;OMESSO NOMINATIVO NEL RISPETTO DELLA NORMATIVA SULLA PROTEZIONE DATI PERSONALI; ;A.S. 2017/2018 -Liquidazione di spesa per l'attribuzione assegni di studio in favore degli studenti dal I al IV anno della Scuola Secondaria di II grado, che abbiano conseguito la promozione alla classe successiva senza sospensione del giudizio - App;24/09/2018;682;6;246;1;Spese correnti;4;Trasferimenti correnti;2;Trasferimenti correnti a Famiglie;3;Borse di studio, dottorati di ricerca e contratti di formazione specialistica area medica;1;Borse di studio;24/09/2018
1586;1;0;80;80;OMESSO NOMINATIVO NEL RISPETTO DELLA NORMATIVA SULLA PROTEZIONE DATI PERSONALI; ;A.S. 2017/2018 -Liquidazione di spesa per l'attribuzione assegni di studio in favore degli studenti dal I al IV anno della Scuola Secondaria di II grado, che abbiano conseguito la promozione alla classe successiva senza sospensione del giudizio - App;24/09/2018;682;6;246;1;Spese correnti;4;Trasferimenti correnti;2;Trasferimenti correnti a Famiglie;3;Borse di studio, dottorati di ricerca e contratti di formazione specialistica area medica;1;Borse di studio;24/09/2018
